Workbook

Sheet Example Table 1
A1: CSU_3.0.xlsm | F1: Data input from cell B100 | I1: Instructions in cell V3 | P1: Author: Bo Svensmark, svensmark@plen.ku.dk, Analytical Chemistry, ECP, PLEN, University of Copenhagen, 2022
B3: Run at: | C3: =IF(L27<>"",L27,"Please update CSU") -> 2022-05-29T12:21:25 | E3: Runtime: | F3: =IF(M27<>"",M27,"Not run") -> 5 | G3: s | V3: Manual: | W3: NOTE: The input data must be average concentrations unaffected by FSE
A4: Title: | B4: Example of calculation of CSU for Table 1 in: Extentions to the Theory of Sampling 2, Proceedings of the 10th World cOnference on Sampling and Blending 2022
A5: Comm: | B5: For a riffle splitter with 18 chutes, there will be Ni = 9 increments in each sample. | W5: Do only enter values in the WHITE cells
B7: To make your own CSU estimates, start with the next Sheet CSU | W7: 1) Enter the input data f(x) in Table 1 starting i cell B100
X8: Indices 1,2,3… is only for infrmation
B9: Table 2a | F9: Table 2b | I9: Analyte: | J9: 1 | K9: 2 | L9: 3 | M9: 4 | N9: 5 | O9: 6 | P9: Macro input | S9: Intermediate results | X9: Organization of dats, see layout below
B10: Sampling ratio | D10: 2 | F10: Class (k) | G10: Name | H10: m(k) | I10: Name: | J10: sand | K10: sesame | L10: barley | M10: steel | N10: Analyte 5
B11: kmx, no of classes | D11: 4 | F11: 1 | G11: Sand | H11: 0.0001 | I11: Conc, g/g: | J11: 1 | K11: 0 | L11: 0 | M11: 0 | N11: 0.7 | P11: Runs | Q11: =COUNT(D16:D21) -> 1 | S11: M(L) | T11: =IF(D23<>"",D23,"") -> 1000 | W11: 2) Enter parameters in Table 2
B12: hmx, horizontal length | D12: 144 | F12: 2 | G12: Sesame | H12: 0.003 | J12: 0 | K12: 1 | L12: 0 | M12: 0 | N12: 0.3 | S12: M(S) | T12: =IF(D24<>"",D24,"") -> 125 | X12: If ni is not a divisor in hmx, input will be truncated and a warning is given,
B13: vmx, vertical depth | D13: 1 | F13: 3 | G13: Barley | H13: 0.045 | J13: 0 | K13: 0 | L13: 1 | M13: 0 | N13: 0.05 | S13: M(L)/MS() | T13: =IF(T12="","",T11/T12) -> 8 | X13: hmx may be < than the length of input data
B14: Run analyte 1 to ? | D14: 4 | E14: =IF(OR(D14>6, D14<1),"Error","") ->  | F14: 4 | G14: Steel | H14: 0.881 | J14: 0 | K14: 0 | L14: 0 | M14: 1 | N14: 0 | S14: Rounds | T14: =LN(T13)/LN(D10) -> 3 | X14: Unused entries for ni in Table 1 must be blank
B15: MC runs: | D15: 4000 | F15: 5 | S15: (1/MS-1/ML) | T15: =(1/T12-1/T11) -> 0.007 | X15: For point selection enter the number of increments with a minus sign (-ni)
B16: ni, no of increments | D16: 9 | E16: =IF(D16="","",IF(D16*D$10>D$12,"Too big!",IF(MOD(D$12,D16*$D$10)<>0,"Warning",""))) ->  | F16: 6 | X16: For point selection the number of Rounds must be 1. Adjust ratio or ML/MS
F17: 7
F18: 8 | W18: 3) Press the button Update CSU
F19: 9 | X19: The progress can be seen in the lower left corner of the screen
F20: 10 | X20: If it takes too long time press ESC and then End
B22: Table 2c | F22: =IF(MOD(T13,D10)=0,"","Error in Sampling ratio vs M(L) or M(S)") ->  | W22: 4) Analyse the results
B23: M(Lot), g | D23: 1000 | L23: s2(CSU) = s2(FSU) + s2(SU) | O23: In this spreadsheet s(SU) = s(GSE) | X23: You can change the masses M(L) end M(S) and CSU will change accordingly
B24: M(Sample), g | D24: 125
W25: 5) Save the workbook under a new name: Save As…
B26: Table 3 | F26: =IF(O27="","",IF(SUM(D10:R21)=O27,"","Input parameter has changed - please Update CSU")) ->  | L26: Macro output
B27: Analyte 1 | C27: =J10 -> sand | D27: aL: | E27: =IF(S29="","",S29) -> 0.04992723167 | G27: RSD(aL) %: | H27: =IF(T29="","",T29) -> 30.75548214 | L27: 2022-05-29T12:21:25 | M27: 5 | N27: 144 | O27: 4225.9791 | P27: 0 | W27: 6) To continue: Change input and try again - or create a new sheet
D28: s(CSU) % | G28: s(SU) %
B29: N | C29: Ni | D29: Syst % | E29: Strat % | F29: Rand % | G29: Syst % | H29: Strat % | I29: Rand % | J29: s(FSU) % | K29: s(FSE) % | R29: 0.2096611823 | S29: 0.04992723167 | T29: 30.75548214 | W29: 7) To create a new sheet press the New Sheet button
B30: =IF(L30="","",L30) -> 144 | C30: 1 | D30: =IF(G30<>"",SQRT($J30^2+G30^2),"") -> 19.84465512 | E30: =IF(H30<>"",SQRT($J30^2+H30^2),"") -> 19.84465512 | F30: 19.84465512 | G30: =IF(O30<>"",SQRT($T$14)*O30,"") -> 19.47174348 | H30: =IF(P30<>"",SQRT($T$14)*P30,"") -> 19.47174348 | I30: 19.47174348 | J30: =IF(O30="","",100*SQRT($T$15*R30)) -> 3.829039391 | K30: =IF(R29="","",100*SQRT($T$15*R29)) -> 3.830963685 | L30: 144 | M30: 72 | N30: 1 | O30: 11.24201634 | P30: 11.24201634 | Q30: 11.24201634 | R30: 0.2094506094 | S30: 0.04992723167 | T30: 30.75548214 | X30: The new sheet will contain a copy of data in Table 1 & 2
B31: =IF(L31="","",L31) -> 144 | C31: 9 | D31: =IF(G31<>"",SQRT($J31^2+G31^2),"") -> 9.098191033 | E31: 8.802126462 | F31: 9.843234272 | G31: =IF(O31<>"",SQRT($T$14)*O31,"") -> 8.253213763 | H31: 7.925647456 | I31: 9.06795006 | J31: 3.829039391 | L31: 144 | M31: 8 | N31: 9 | O31: 4.764995188 | P31: 4.575874692 | Q31: 5.235383408 | R31: 0.2094506094 | S31: 0.04992723167 | T31: 30.75548214
W32: 8) Troubleshooting
X33: If you get a runtime error in the macros: | AF33: Error in concentrations | AI33: =P27 -> 0 | AM33: Max DFT: | AN33: =MAX(AH57:FD57) -> 0.8846905388 | AP33: Analyte # | AR33: DFT: Discrete Fourier Transform of horizontal means
X34: Press Debug in the pop up window | AF34: (average error in one box) | AI34: 1 | AP34: 1 | AR34: =IF(AI34=AP34,"","Please update DFT") -> 
K35: =IF(P35="","",100*SQRT($T$14*S35)) ->  | X35: Look at the code and try to understand the problem | AF35: Table 4
K36: =IF(P36="","",100*SQRT($T$14*S36)) ->  | X36: Press the reset button (blue square in the tools) and try to fix the | AF36: Index | AG36: 1 | AH36: 2 | AI36: 3 | AJ36: 4 | AK36: 5 | AL36: 6 | AM36: 7 | AN36: 8 | AO36: 9 | AP36: 10 | AQ36: 11 | AR36: 12 | AS36: 13 | AT36: 14 | AU36: 15 | AV36: 16 | AW36: 17 | AX36: 18 | AY36: 19 | AZ36: 20 | BA36: 21 | BB36: 22 | BC36: 23 | BD36: 24 | BE36: 25 | BF36: 26 | BG36: 27 | BH36: 28 | BI36: 29 | BJ36: 30 | BK36: 31 | BL36: 32 | BM36: 33 | BN36: 34 | BO36: 35 | BP36: 36 | BQ36: 37 | BR36: 38 | BS36: 39 | BT36: 40 | BU36: 41 | BV36: 42 | BW36: 43 | BX36: 44 | BY36: 45 | BZ36: 46 | CA36: 47 | CB36: 48 | CC36: 49 | CD36: 50 | CE36: 51 | CF36: 52 | CG36: 53 | CH36: 54 | CI36: 55 | CJ36: 56 | CK36: 57 | CL36: 58 | CM36: 59 | CN36: 60 | CO36: 61 | CP36: 62 | CQ36: 63 | CR36: 64 | CS36: 65 | CT36: 66 | CU36: 67 | CV36: 68 | CW36: 69 | CX36: 70 | CY36: 71 | CZ36: 72 | DA36: 73 | DB36: 74 | DC36: 75 | DD36: 76 | DE36: 77 | DF36: 78 | DG36: 79 | DH36: 80 | DI36: 81 | DJ36: 82 | DK36: 83 | DL36: 84 | DM36: 85 | DN36: 86 | DO36: 87 | DP36: 88 | DQ36: 89 | DR36: 90 | DS36: 91 | DT36: 92 | DU36: 93 | DV36: 94 | DW36: 95 | DX36: 96 | DY36: 97 | DZ36: 98 | EA36: 99 | EB36: 100 | EC36: 101 | ED36: 102 | EE36: 103 | EF36: 104 | EG36: 105 | EH36: 106 | EI36: 107 | EJ36: 108 | EK36: 109 | EL36: 110 | EM36: 111 | EN36: 112 | EO36: 113 | EP36: 114 | EQ36: 115 | ER36: 116 | ES36: 117 | ET36: 118 | EU36: 119 | EV36: 120 | EW36: 121 | EX36: 122 | EY36: 123 | EZ36: 124 | FA36: 125 | FB36: 126 | FC36: 127 | FD36: 128 | FE36: 129 | FF36: 130 | FG36: 131 | FH36: 132 | FI36: 133 | FJ36: 134 | FK36: 135 | FL36: 136 | FM36: 137 | FN36: 138 | FO36: 139 | FP36: 140 | FQ36: 141 | FR36: 142 | FS36: 143 | FT36: 144 | FU36: 145 | FV36: 146 | FW36: 147 | FX36: 148 | FY36: 149 | FZ36: 150 | GA36: 151 | GB36: 152 | GC36: 153 | GD36: 154 | GE36: 155 | GF36: 156 | GG36: 157 | GH36: 158 | GI36: 159 | GJ36: 160 | GK36: 161 | GL36: 162 | GM36: 163 | GN36: 164 | GO36: 165 | GP36: 166 | GQ36: 167 | GR36: 168 | GS36: 169 | GT36: 170 | GU36: 171 | GV36: 172 | GW36: 173 | GX36: 174 | GY36: 175 | GZ36: 176 | HA36: 177 | HB36: 178 | HC36: 179 | HD36: 180 | HE36: 181 | HF36: 182 | HG36: 183 | HH36: 184 | HI36: 185 | HJ36: 186 | HK36: 187 | HL36: 188 | HM36: 189 | HN36: 190 | HO36: 191 | HP36: 192 | HQ36: 193 | HR36: 194 | HS36: 195 | HT36: 196 | HU36: 197 | HV36: 198 | HW36: 199 | HX36: 200 | HY36: 201 | HZ36: 202 | IA36: 203 | IB36: 204 | IC36: 205 | ID36: 206 | IE36: 207 | IF36: 208 | IG36: 209 | IH36: 210 | II36: 211 | IJ36: 212 | IK36: 213 | IL36: 214 | IM36: 215 | IN36: 216 | IO36: 217 | IP36: 218 | IQ36: 219 | IR36: 220 | IS36: 221 | IT36: 222 | IU36: 223 | IV36: 224 | IW36: 225 | IX36: 226 | IY36: 227 | IZ36: 228 | JA36: 229 | JB36: 230 | JC36: 231 | JD36: 232 | JE36: 233 | JF36: 234 | JG36: 235 | JH36: 236 | JI36: 237 | JJ36: 238 | JK36: 239 | JL36: 240 | JM36: 241 | JN36: 242 | JO36: 243 | JP36: 244 | JQ36: 245 | JR36: 246 | JS36: 247 | JT36: 248 | JU36: 249 | JV36: 250 | JW36: 251 | JX36: 252 | JY36: 253 | JZ36: 254 | KA36: 255 | KB36: 256
X37: error or go to the spreadsheet and fix the error | AF37: Depth | AG37: -1 | AH37: -2 | AI37: -3 | AJ37: -4 | AK37: -5 | AL37: -6 | AM37: -7 | AN37: -8 | AO37: -9 | AP37: -10 | AQ37: -11 | AR37: -12 | AS37: -13 | AT37: -14 | AU37: -15 | AV37: -16 | AW37: -17 | AX37: -18 | AY37: -19 | AZ37: -20 | BA37: -21 | BB37: -22 | BC37: -23 | BD37: -24 | BE37: -25 | BF37: -26 | BG37: -27 | BH37: -28 | BI37: -29 | BJ37: -30 | BK37: -31 | BL37: -32 | BM37: -33 | BN37: -34 | BO37: -35 | BP37: -36 | BQ37: -37 | BR37: -38 | BS37: -39 | BT37: -40 | BU37: -41 | BV37: -42 | BW37: -43 | BX37: -44 | BY37: -45 | BZ37: -46 | CA37: -47 | CB37: -48 | CC37: -49 | CD37: -50 | CE37: -51 | CF37: -52 | CG37: -53 | CH37: -54 | CI37: -55 | CJ37: -56 | CK37: -57 | CL37: -58 | CM37: -59 | CN37: -60 | CO37: -61 | CP37: -62 | CQ37: -63 | CR37: -64 | CS37: -65 | CT37: -66 | CU37: -67 | CV37: -68 | CW37: -69 | CX37: -70 | CY37: -71 | CZ37: -72 | DA37: -73 | DB37: -74 | DC37: -75 | DD37: -76 | DE37: -77 | DF37: -78 | DG37: -79 | DH37: -80 | DI37: -81 | DJ37: -82 | DK37: -83 | DL37: -84 | DM37: -85 | DN37: -86 | DO37: -87 | DP37: -88 | DQ37: -89 | DR37: -90 | DS37: -91 | DT37: -92 | DU37: -93 | DV37: -94 | DW37: -95 | DX37: -96 | DY37: -97 | DZ37: -98 | EA37: -99 | EB37: -100 | EC37: -101 | ED37: -102 | EE37: -103 | EF37: -104 | EG37: -105 | EH37: -106 | EI37: -107 | EJ37: -108 | EK37: -109 | EL37: -110 | EM37: -111 | EN37: -112 | EO37: -113 | EP37: -114 | EQ37: -115 | ER37: -116 | ES37: -117 | ET37: -118 | EU37: -119 | EV37: -120 | EW37: -121 | EX37: -122 | EY37: -123 | EZ37: -124 | FA37: -125 | FB37: -126 | FC37: -127 | FD37: -128 | FE37: -129 | FF37: -130 | FG37: -131 | FH37: -132 | FI37: -133 | FJ37: -134 | FK37: -135 | FL37: -136 | FM37: -137 | FN37: -138 | FO37: -139 | FP37: -140 | FQ37: -141 | FR37: -142 | FS37: -143 | FT37: -144 | FU37: -145 | FV37: -146 | FW37: -147 | FX37: -148 | FY37: -149 | FZ37: -150 | GA37: -151 | GB37: -152 | GC37: -153 | GD37: -154 | GE37: -155 | GF37: -156 | GG37: -157 | GH37: -158 | GI37: -159 | GJ37: -160 | GK37: -161 | GL37: -162 | GM37: -163 | GN37: -164 | GO37: -165 | GP37: -166 | GQ37: -167 | GR37: -168 | GS37: -169 | GT37: -170 | GU37: -171 | GV37: -172 | GW37: -173 | GX37: -174 | GY37: -175 | GZ37: -176 | HA37: -177 | HB37: -178 | HC37: -179 | HD37: -180 | HE37: -181 | HF37: -182 | HG37: -183 | HH37: -184 | HI37: -185 | HJ37: -186 | HK37: -187 | HL37: -188 | HM37: -189 | HN37: -190 | HO37: -191 | HP37: -192 | HQ37: -193 | HR37: -194 | HS37: -195 | HT37: -196 | HU37: -197 | HV37: -198 | HW37: -199 | HX37: -200 | HY37: -201 | HZ37: -202 | IA37: -203 | IB37: -204 | IC37: -205 | ID37: -206 | IE37: -207 | IF37: -208 | IG37: -209 | IH37: -210 | II37: -211 | IJ37: -212 | IK37: -213 | IL37: -214 | IM37: -215 | IN37: -216 | IO37: -217 | IP37: -218 | IQ37: -219 | IR37: -220 | IS37: -221 | IT37: -222 | IU37: -223 | IV37: -224 | IW37: -225 | IX37: -226 | IY37: -227 | IZ37: -228 | JA37: -229 | JB37: -230 | JC37: -231 | JD37: -232 | JE37: -233 | JF37: -234 | JG37: -235 | JH37: -236 | JI37: -237 | JJ37: -238 | JK37: -239 | JL37: -240 | JM37: -241 | JN37: -242 | JO37: -243 | JP37: -244 | JQ37: -245 | JR37: -246 | JS37: -247 | JT37: -248 | JU37: -249 | JV37: -250 | JW37: -251 | JX37: -252 | JY37: -253 | JZ37: -254 | KA37: -255 | KB37: -256
B38: Analyte 2 | C38: sesame | D38: aL: | E38: =IF(S40="","",S40) -> 0.05 | G38: RSD(aL) %: | H38: =IF(T40="","",T40) -> 7.554567661e-06 | AF38: Horz 1 | AG38: 0.04277779815 | AH38: 0.05555939253 | AI38: 0.05882289383 | AJ38: 0.06063293784 | AK38: 0.05861670512 | AL38: 0.06238757623 | AM38: 0.06534287141 | AN38: 0.06964019061 | AO38: 0.07619963273 | AP38: 0.07962124919 | AQ38: 0.07896741043 | AR38: 0.0793950905 | AS38: 0.07767817543 | AT38: 0.06782949682 | AU38: 0.05487599546 | AV38: 0.04933321632 | AW38: 0.05489261184 | AX38: 0.05416191322 | AY38: 0.04808450651 | AZ38: 0.05195730472 | BA38: 0.05557535496 | BB38: 0.05331121521 | BC38: 0.0554146988 | BD38: 0.06291272878 | BE38: 0.06188100391 | BF38: 0.0536111941 | BG38: 0.05280425012 | BH38: 0.05616061459 | BI38: 0.05850239521 | BJ38: 0.05421710611 | BK38: 0.04324679457 | BL38: 0.03471396057 | BM38: 0.03012169444 | BN38: 0.0295149179 | BO38: 0.03067101399 | BP38: 0.02494067362 | BQ38: 0.02270871156 | BR38: 0.0269960855 | BS38: 0.02575057581 | BT38: 0.02220447055 | BU38: 0.01966467964 | BV38: 0.01896748919 | BW38: 0.02667692894 | BX38: 0.03569324376 | BY38: 0.03875301549 | BZ38: 0.04482458068 | CA38: 0.04695917018 | CB38: 0.04926729372 | CC38: 0.05457550964 | CD38: 0.04953537546 | CE38: 0.03762536334 | CF38: 0.02865879208 | CG38: 0.03196927338 | CH38: 0.04039931223 | CI38: 0.03621578775 | CJ38: 0.02954566949 | CK38: 0.02421906288 | CL38: 0.01881425884 | CM38: 0.01940134869 | CN38: 0.02687635129 | CO38: 0.03749137896 | CP38: 0.04213083265 | CQ38: 0.04196582545 | CR38: 0.03713216532 | CS38: 0.03076318068 | CT38: 0.03277560482 | CU38: 0.03986943499 | CV38: 0.03811033393 | CW38: 0.03518144756 | CX38: 0.03921143725 | CY38: 0.04332775864 | CZ38: 0.0460580074 | DA38: 0.053439368 | DB38: 0.05937043179 | DC38: 0.05813766235 | DD38: 0.0555563788 | DE38: 0.05233881481 | DF38: 0.05577845498 | DG38: 0.06715403786 | DH38: 0.07542942414 | DI38: 0.07169338585 | DJ38: 0.06561806448 | DK38: 0.06201631374 | DL38: 0.05538844116 | DM38: 0.05077936716 | DN38: 0.04552574077 | DO38: 0.04050681705 | DP38: 0.03773234533 | DQ38: 0.03637948519 | DR38: 0.04005153139 | DS38: 0.04237254028 | DT38: 0.04782936382 | DU38: 0.05539368532 | DV38: 0.05859546182 | DW38: 0.05969317562 | DX38: 0.05944579089 | DY38: 0.05385572446 | DZ38: 0.04773332453 | EA38: 0.04522580846 | EB38: 0.0467347739 | EC38: 0.03893081045 | ED38: 0.02912702416 | EE38: 0.02764213044 | EF38: 0.02822662559 | EG38: 0.03178394608 | EH38: 0.04060468672 | EI38: 0.04732076477 | EJ38: 0.04192733892 | EK38: 0.0364640954 | EL38: 0.03947207415 | EM38: 0.0470060481 | EN38: 0.05349509747 | EO38: 0.05014293867 | EP38: 0.04563369406 | EQ38: 0.05112085279 | ER38: 0.05470039244 | ES38: 0.05571089466 | ET38: 0.06299089108 | EU38: 0.07456486417 | EV38: 0.08308029298 | EW38: 0.08081328745 | EX38: 0.06964108916 | EY38: 0.06631968347 | EZ38: 0.07487668766 | FA38: 0.08102726302 | FB38: 0.0760525774 | FC38: 0.0669668167 | FD38: 0.06371291731 | FE38: 0.05874706534 | FF38: 0.0513362806 | FG38: 0.05164649104 | FH38: 0.05666248235 | FI38: 0.05602726072 | FJ38: 0.04982988052 | FK38: 0.04961442786 | FL38: 0.05038450892 | FM38: 0.0496432335 | FN38: 0.05717337281 | FO38: 0.06269058969 | FP38: 0.06159415275 | FQ38: 0.06131747694 | FR38: 0.06836191229 | FS38: 0.07944966307 | FT38: 0.06121471884
D39: s(CSU) % | G39: s(SU) % | AF39: Horz 2 | AG39: 0.05 | AH39: 0.05 | AI39: 0.05 | AJ39: 0.05 | AK39: 0.05 | AL39: 0.05 | AM39: 0.05 | AN39: 0.05 | AO39: 0.05 | AP39: 0.05 | AQ39: 0.05 | AR39: 0.05 | AS39: 0.05 | AT39: 0.05 | AU39: 0.05 | AV39: 0.05 | AW39: 0.05 | AX39: 0.05 | AY39: 0.05 | AZ39: 0.05 | BA39: 0.05 | BB39: 0.05 | BC39: 0.05 | BD39: 0.05 | BE39: 0.05 | BF39: 0.05 | BG39: 0.05 | BH39: 0.05 | BI39: 0.05 | BJ39: 0.05 | BK39: 0.05 | BL39: 0.05 | BM39: 0.05 | BN39: 0.05 | BO39: 0.05 | BP39: 0.05 | BQ39: 0.05 | BR39: 0.05 | BS39: 0.05 | BT39: 0.05 | BU39: 0.05 | BV39: 0.05 | BW39: 0.05 | BX39: 0.05 | BY39: 0.05 | BZ39: 0.05 | CA39: 0.05 | CB39: 0.05 | CC39: 0.05 | CD39: 0.05 | CE39: 0.05 | CF39: 0.05 | CG39: 0.05 | CH39: 0.05 | CI39: 0.05 | CJ39: 0.05 | CK39: 0.05 | CL39: 0.05 | CM39: 0.05 | CN39: 0.05 | CO39: 0.05 | CP39: 0.05 | CQ39: 0.05 | CR39: 0.05 | CS39: 0.05 | CT39: 0.05 | CU39: 0.05 | CV39: 0.05 | CW39: 0.05 | CX39: 0.05 | CY39: 0.05 | CZ39: 0.05 | DA39: 0.05 | DB39: 0.05 | DC39: 0.05 | DD39: 0.05 | DE39: 0.05 | DF39: 0.05 | DG39: 0.05 | DH39: 0.05 | DI39: 0.05 | DJ39: 0.05 | DK39: 0.05 | DL39: 0.05 | DM39: 0.05 | DN39: 0.05 | DO39: 0.05 | DP39: 0.05 | DQ39: 0.05 | DR39: 0.05 | DS39: 0.05 | DT39: 0.05 | DU39: 0.05 | DV39: 0.05 | DW39: 0.05 | DX39: 0.05 | DY39: 0.05 | DZ39: 0.05 | EA39: 0.05 | EB39: 0.05 | EC39: 0.05 | ED39: 0.05 | EE39: 0.05 | EF39: 0.05 | EG39: 0.05 | EH39: 0.05 | EI39: 0.05 | EJ39: 0.05 | EK39: 0.05 | EL39: 0.05 | EM39: 0.05 | EN39: 0.05 | EO39: 0.05 | EP39: 0.05 | EQ39: 0.05 | ER39: 0.05 | ES39: 0.05 | ET39: 0.05 | EU39: 0.05 | EV39: 0.05 | EW39: 0.05 | EX39: 0.05 | EY39: 0.05 | EZ39: 0.05 | FA39: 0.05 | FB39: 0.05 | FC39: 0.05 | FD39: 0.05 | FE39: 0.05 | FF39: 0.05 | FG39: 0.05 | FH39: 0.05 | FI39: 0.05 | FJ39: 0.05 | FK39: 0.05 | FL39: 0.05 | FM39: 0.05 | FN39: 0.05 | FO39: 0.05 | FP39: 0.05 | FQ39: 0.05 | FR39: 0.05 | FS39: 0.05 | FT39: 0.05
B40: N | C40: Ni | D40: Syst % | E40: Strat % | F40: Rand % | G40: Syst % | H40: Strat % | I40: Rand % | J40: s(FSU) % | K40: s(FSE) % | R40: 0.2618582673 | S40: 0.05 | T40: 7.554567661e-06 | V40: Table 2: | W40: Ratio: | X40: Sampling ratio M(L)/M(S) | AF40: Horz 3 | AG40: 0.7072222018 | AH40: 0.6944406075 | AI40: 0.6911771062 | AJ40: 0.6893670622 | AK40: 0.6913832949 | AL40: 0.6876124238 | AM40: 0.6846571286 | AN40: 0.6803598094 | AO40: 0.6738003673 | AP40: 0.6703787508 | AQ40: 0.6710325896 | AR40: 0.6706049095 | AS40: 0.6723218246 | AT40: 0.6821705032 | AU40: 0.6951240045 | AV40: 0.7006667837 | AW40: 0.6951073882 | AX40: 0.6958380868 | AY40: 0.7019154935 | AZ40: 0.6980426953 | BA40: 0.694424645 | BB40: 0.6966887848 | BC40: 0.6945853012 | BD40: 0.6870872712 | BE40: 0.6881189961 | BF40: 0.6963888059 | BG40: 0.6971957499 | BH40: 0.6938393854 | BI40: 0.6914976048 | BJ40: 0.6957828939 | BK40: 0.7067532054 | BL40: 0.7152860394 | BM40: 0.7198783056 | BN40: 0.7204850821 | BO40: 0.719328986 | BP40: 0.7250593264 | BQ40: 0.7272912884 | BR40: 0.7230039145 | BS40: 0.7242494242 | BT40: 0.7277955294 | BU40: 0.7303353204 | BV40: 0.7310325108 | BW40: 0.7233230711 | BX40: 0.7143067562 | BY40: 0.7112469845 | BZ40: 0.7051754193 | CA40: 0.7030408298 | CB40: 0.7007327063 | CC40: 0.6954244904 | CD40: 0.7004646245 | CE40: 0.7123746367 | CF40: 0.7213412079 | CG40: 0.7180307266 | CH40: 0.7096006878 | CI40: 0.7137842122 | CJ40: 0.7204543305 | CK40: 0.7257809371 | CL40: 0.7311857412 | CM40: 0.7305986513 | CN40: 0.7231236487 | CO40: 0.712508621 | CP40: 0.7078691674 | CQ40: 0.7080341746 | CR40: 0.7128678347 | CS40: 0.7192368193 | CT40: 0.7172243952 | CU40: 0.710130565 | CV40: 0.7118896661 | CW40: 0.7148185524 | CX40: 0.7107885627 | CY40: 0.7066722414 | CZ40: 0.7039419926 | DA40: 0.696560632 | DB40: 0.6906295682 | DC40: 0.6918623377 | DD40: 0.6944436212 | DE40: 0.6976611852 | DF40: 0.694221545 | DG40: 0.6828459621 | DH40: 0.6745705759 | DI40: 0.6783066142 | DJ40: 0.6843819355 | DK40: 0.6879836863 | DL40: 0.6946115588 | DM40: 0.6992206328 | DN40: 0.7044742592 | DO40: 0.709493183 | DP40: 0.7122676547 | DQ40: 0.7136205148 | DR40: 0.7099484686 | DS40: 0.7076274597 | DT40: 0.7021706362 | DU40: 0.6946063147 | DV40: 0.6914045382 | DW40: 0.6903068244 | DX40: 0.6905542091 | DY40: 0.6961442755 | DZ40: 0.7022666755 | EA40: 0.7047741915 | EB40: 0.7032652261 | EC40: 0.7110691896 | ED40: 0.7208729758 | EE40: 0.7223578696 | EF40: 0.7217733744 | EG40: 0.7182160539 | EH40: 0.7093953133 | EI40: 0.7026792352 | EJ40: 0.7080726611 | EK40: 0.7135359046 | EL40: 0.7105279258 | EM40: 0.7029939519 | EN40: 0.6965049025 | EO40: 0.6998570613 | EP40: 0.7043663059 | EQ40: 0.6988791472 | ER40: 0.6952996076 | ES40: 0.6942891053 | ET40: 0.6870091089 | EU40: 0.6754351358 | EV40: 0.666919707 | EW40: 0.6691867126 | EX40: 0.6803589108 | EY40: 0.6836803165 | EZ40: 0.6751233123 | FA40: 0.668972737 | FB40: 0.6739474226 | FC40: 0.6830331833 | FD40: 0.6862870827 | FE40: 0.6912529347 | FF40: 0.6986637194 | FG40: 0.698353509 | FH40: 0.6933375176 | FI40: 0.6939727393 | FJ40: 0.7001701195 | FK40: 0.7003855721 | FL40: 0.6996154911 | FM40: 0.7003567665 | FN40: 0.6928266272 | FO40: 0.6873094103 | FP40: 0.6884058472 | FQ40: 0.6886825231 | FR40: 0.6816380877 | FS40: 0.6705503369 | FT40: 0.6887852812
B41: =IF(L41="","",L41) -> 144 | C41: 1 | D41: =IF(G41<>"",SQRT($J41^2+G41^2),"") -> 4.281364118 | E41: =IF(H41<>"",SQRT($J41^2+H41^2),"") -> 4.281364118 | F41: 4.281364118 | G41: =IF(O41<>"",SQRT($T$14)*O41,"") -> 1.929674618e-13 | H41: =IF(P41<>"",SQRT($T$14)*P41,"") -> 1.929674618e-13 | I41: 1.929674618e-13 | J41: =IF(O41="","",100*SQRT($T$15*R41)) -> 4.281364118 | K41: =IF(R40="","",100*SQRT($T$15*R40)) -> 4.281364118 | L41: 144 | M41: 72 | N41: 1 | O41: 1.11409816e-13 | P41: 1.11409816e-13 | Q41: 1.11409816e-13 | R41: 0.2618582673 | S41: 0.05 | T41: 7.554567661e-06 | W41: kmx: | X41: No of classes (1-10) | AF41: Horz 4 | AG41: 0.2 | AH41: 0.2 | AI41: 0.2 | AJ41: 0.2 | AK41: 0.2 | AL41: 0.2 | AM41: 0.2 | AN41: 0.2 | AO41: 0.2 | AP41: 0.2 | AQ41: 0.2 | AR41: 0.2 | AS41: 0.2 | AT41: 0.2 | AU41: 0.2 | AV41: 0.2 | AW41: 0.2 | AX41: 0.2 | AY41: 0.2 | AZ41: 0.2 | BA41: 0.2 | BB41: 0.2 | BC41: 0.2 | BD41: 0.2 | BE41: 0.2 | BF41: 0.2 | BG41: 0.2 | BH41: 0.2 | BI41: 0.2 | BJ41: 0.2 | BK41: 0.2 | BL41: 0.2 | BM41: 0.2 | BN41: 0.2 | BO41: 0.2 | BP41: 0.2 | BQ41: 0.2 | BR41: 0.2 | BS41: 0.2 | BT41: 0.2 | BU41: 0.2 | BV41: 0.2 | BW41: 0.2 | BX41: 0.2 | BY41: 0.2 | BZ41: 0.2 | CA41: 0.2 | CB41: 0.2 | CC41: 0.2 | CD41: 0.2 | CE41: 0.2 | CF41: 0.2 | CG41: 0.2 | CH41: 0.2 | CI41: 0.2 | CJ41: 0.2 | CK41: 0.2 | CL41: 0.2 | CM41: 0.2 | CN41: 0.2 | CO41: 0.2 | CP41: 0.2 | CQ41: 0.2 | CR41: 0.2 | CS41: 0.2 | CT41: 0.2 | CU41: 0.2 | CV41: 0.2 | CW41: 0.2 | CX41: 0.2 | CY41: 0.2 | CZ41: 0.2 | DA41: 0.2 | DB41: 0.2 | DC41: 0.2 | DD41: 0.2 | DE41: 0.2 | DF41: 0.2 | DG41: 0.2 | DH41: 0.2 | DI41: 0.2 | DJ41: 0.2 | DK41: 0.2 | DL41: 0.2 | DM41: 0.2 | DN41: 0.2 | DO41: 0.2 | DP41: 0.2 | DQ41: 0.2 | DR41: 0.2 | DS41: 0.2 | DT41: 0.2 | DU41: 0.2 | DV41: 0.2 | DW41: 0.2 | DX41: 0.2 | DY41: 0.2 | DZ41: 0.2 | EA41: 0.2 | EB41: 0.2 | EC41: 0.2 | ED41: 0.2 | EE41: 0.2 | EF41: 0.2 | EG41: 0.2 | EH41: 0.2 | EI41: 0.2 | EJ41: 0.2 | EK41: 0.2 | EL41: 0.2 | EM41: 0.2 | EN41: 0.2 | EO41: 0.2 | EP41: 0.2 | EQ41: 0.2 | ER41: 0.2 | ES41: 0.2 | ET41: 0.2 | EU41: 0.2 | EV41: 0.2 | EW41: 0.2 | EX41: 0.2 | EY41: 0.2 | EZ41: 0.2 | FA41: 0.2 | FB41: 0.2 | FC41: 0.2 | FD41: 0.2 | FE41: 0.2 | FF41: 0.2 | FG41: 0.2 | FH41: 0.2 | FI41: 0.2 | FJ41: 0.2 | FK41: 0.2 | FL41: 0.2 | FM41: 0.2 | FN41: 0.2 | FO41: 0.2 | FP41: 0.2 | FQ41: 0.2 | FR41: 0.2 | FS41: 0.2 | FT41: 0.2
B42: =IF(L42="","",L42) -> 144 | C42: 9 | D42: =IF(G42<>"",SQRT($J42^2+G42^2),"") -> 4.281364118 | E42: 4.281364118 | F42: 4.281364118 | G42: =IF(O42<>"",SQRT($T$14)*O42,"") -> 1.986027323e-13 | H42: 1.923203102e-13 | I42: 1.923203102e-13 | J42: 4.281364118 | L42: 144 | M42: 8 | N42: 9 | O42: 1.146633409e-13 | P42: 1.110361829e-13 | Q42: 1.110361829e-13 | R42: 0.2618582673 | S42: 0.05 | T42: 7.554567661e-06 | W42: hmx: | X42: Horizontal length (1-256) | AF42: Horz 5
W43: vmx: | X43: Vertical depth (1-16) | AF43: Horz 6
W44: Run cases: | X44: Number of cases to run now | AF44: Vert 1 | AG44: 0.04992723167
W45: ni: | X45: No of increments in a sample (>1). Grab sampling (ni = 1) is automatically included | AF45: Vert 2 | AG45: 0.05
K46: =IF(P46="","",100*SQRT($T$14*S46)) ->  | W46: m(k): | X46: Mass of one fragment of class k | AF46: Vert 3 | AG46: 0.7000727683
K47: =IF(P47="","",100*SQRT($T$14*S47)) ->  | W47: Name: | X47: Name of analyte in this case | AF47: Vert 4 | AG47: 0.2
W48: ak(i): | X48: Analyte concentration in class k in case , g/g | AF48: Vert 5
B49: Analyte 3 | C49: barley | D49: aL: | E49: =IF(S51="","",S51) -> 0.7000727683 | G49: RSD(aL) %: | H49: =IF(T51="","",T51) -> 2.19339496 | AF49: Vert 6
D50: s(CSU) % | G50: s(SU) % | V50: Table 3: | W50: s(FSE) %: | X50: s in % due to FSE, i.e. as if all boxes were mixed completely | AF50: Vario 1 | AG50: 1.671934979e-05 | AH50: 4.540490905e-05 | AI50: 7.027683707e-05 | AJ50: 9.080650745e-05 | AK50: 0.0001124864526 | AL50: 0.0001346212011 | AM50: 0.0001563090663 | AN50: 0.000177259307 | AO50: 0.0001929341745 | AP50: 0.0001996912714 | AQ50: 0.0002007218342 | AR50: 0.000198532252 | AS50: 0.0001953998347 | AT50: 0.0001961168415 | AU50: 0.0002009245568 | AV50: 0.0002047133477 | AW50: 0.0002047428338 | AX50: 0.0002060360098 | AY50: 0.0002119207276 | AZ50: 0.0002211258683 | BA50: 0.0002328339284 | BB50: 0.000244869172 | BC50: 0.0002528230812 | BD50: 0.0002528964655 | BE50: 0.0002505090207 | BF50: 0.0002549778635 | BG50: 0.000267105261 | BH50: 0.0002802809755 | BI50: 0.0002876990649 | BJ50: 0.000287881534 | BK50: 0.0002833631478 | BL50: 0.0002799454092 | BM50: 0.0002820042122 | BN50: 0.0002864483196 | BO50: 0.0002851221788 | BP50: 0.0002793024674 | BQ50: 0.0002780058692 | BR50: 0.0002793046448 | BS50: 0.0002769089313 | BT50: 0.0002711053923 | BU50: 0.0002623374491 | BV50: 0.0002490643839 | BW50: 0.0002346717685 | BX50: 0.0002230706267 | BY50: 0.0002161497584 | BZ50: 0.000217656037 | CA50: 0.0002272950855 | CB50: 0.0002370176452 | CC50: 0.0002396747851 | CD50: 0.0002412943488 | CE50: 0.0002482227741 | CF50: 0.0002590246304 | CG50: 0.0002727234542 | CH50: 0.0002856285445 | CI50: 0.0002910882579 | CJ50: 0.0002860104166 | CK50: 0.0002746466049 | CL50: 0.0002648246599 | CM50: 0.0002619535304 | CN50: 0.0002616690702 | CO50: 0.0002571731583 | CP50: 0.0002484659999 | CQ50: 0.0002409541608 | CR50: 0.0002348143319 | CS50: 0.0002267300221 | CT50: 0.0002204960842 | CU50: 0.0002155229801 | CV50: 0.0002088295655 | CW50: 0.0002018458502 | CX50: 0.0001995105062 | CY50: 0.0002057956353 | CZ50: 0.0002253249486
B51: N | C51: Ni | D51: Syst % | E51: Strat % | F51: Rand % | G51: Syst % | H51: Strat % | I51: Rand % | J51: s(FSU) % | K51: s(FSE) % | R51: 0.1821372995 | S51: 0.7000727683 | T51: 2.19339496 | W51: FSU % | X51: s in % due to FSU as function of actual distribution and sampling | AF51: Vario 2 | AG51: 0 | AH51: 0 | AI51: 0 | AJ51: 0 | AK51: 0 | AL51: 0 | AM51: 0 | AN51: 0 | AO51: 0 | AP51: 0 | AQ51: 0 | AR51: 0 | AS51: 0 | AT51: 0 | AU51: 0 | AV51: 0 | AW51: 0 | AX51: 0 | AY51: 0 | AZ51: 0 | BA51: 0 | BB51: 0 | BC51: 0 | BD51: 0 | BE51: 0 | BF51: 0 | BG51: 0 | BH51: 0 | BI51: 0 | BJ51: 0 | BK51: 0 | BL51: 0 | BM51: 0 | BN51: 0 | BO51: 0 | BP51: 0 | BQ51: 0 | BR51: 0 | BS51: 0 | BT51: 0 | BU51: 0 | BV51: 0 | BW51: 0 | BX51: 0 | BY51: 0 | BZ51: 0 | CA51: 0 | CB51: 0 | CC51: 0 | CD51: 0 | CE51: 0 | CF51: 0 | CG51: 0 | CH51: 0 | CI51: 0 | CJ51: 0 | CK51: 0 | CL51: 0 | CM51: 0 | CN51: 0 | CO51: 0 | CP51: 0 | CQ51: 0 | CR51: 0 | CS51: 0 | CT51: 0 | CU51: 0 | CV51: 0 | CW51: 0 | CX51: 0 | CY51: 0 | CZ51: 0
B52: =IF(L52="","",L52) -> 144 | C52: 1 | D52: =IF(G52<>"",SQRT($J52^2+G52^2),"") -> 3.831327098 | E52: =IF(H52<>"",SQRT($J52^2+H52^2),"") -> 3.831327098 | F52: 3.831327098 | G52: =IF(O52<>"",SQRT($T$14)*O52,"") -> 1.388670281 | H52: =IF(P52<>"",SQRT($T$14)*P52,"") -> 1.388670281 | I52: 1.388670281 | J52: =IF(O52="","",100*SQRT($T$15*R52)) -> 3.570806938 | K52: =IF(R51="","",100*SQRT($T$15*R51)) -> 3.570659738 | L52: 144 | M52: 72 | N52: 1 | O52: 0.8017491605 | P52: 0.8017491605 | Q52: 0.8017491605 | R52: 0.1821523169 | S52: 0.7000727683 | T52: 2.19339496 | W52: SU % | X52: s in % due to GSE as function of actual distribution and sampling | AF52: Vario 3 | AG52: 1.671934979e-05 | AH52: 4.540490905e-05 | AI52: 7.027683707e-05 | AJ52: 9.080650745e-05 | AK52: 0.0001124864526 | AL52: 0.0001346212011 | AM52: 0.0001563090663 | AN52: 0.000177259307 | AO52: 0.0001929341745 | AP52: 0.0001996912714 | AQ52: 0.0002007218342 | AR52: 0.000198532252 | AS52: 0.0001953998347 | AT52: 0.0001961168415 | AU52: 0.0002009245568 | AV52: 0.0002047133477 | AW52: 0.0002047428338 | AX52: 0.0002060360098 | AY52: 0.0002119207276 | AZ52: 0.0002211258683 | BA52: 0.0002328339284 | BB52: 0.000244869172 | BC52: 0.0002528230812 | BD52: 0.0002528964655 | BE52: 0.0002505090207 | BF52: 0.0002549778635 | BG52: 0.000267105261 | BH52: 0.0002802809755 | BI52: 0.0002876990649 | BJ52: 0.000287881534 | BK52: 0.0002833631478 | BL52: 0.0002799454092 | BM52: 0.0002820042122 | BN52: 0.0002864483196 | BO52: 0.0002851221788 | BP52: 0.0002793024674 | BQ52: 0.0002780058692 | BR52: 0.0002793046448 | BS52: 0.0002769089313 | BT52: 0.0002711053923 | BU52: 0.0002623374491 | BV52: 0.0002490643839 | BW52: 0.0002346717685 | BX52: 0.0002230706267 | BY52: 0.0002161497584 | BZ52: 0.000217656037 | CA52: 0.0002272950855 | CB52: 0.0002370176452 | CC52: 0.0002396747851 | CD52: 0.0002412943488 | CE52: 0.0002482227741 | CF52: 0.0002590246304 | CG52: 0.0002727234542 | CH52: 0.0002856285445 | CI52: 0.0002910882579 | CJ52: 0.0002860104166 | CK52: 0.0002746466049 | CL52: 0.0002648246599 | CM52: 0.0002619535304 | CN52: 0.0002616690702 | CO52: 0.0002571731583 | CP52: 0.0002484659999 | CQ52: 0.0002409541608 | CR52: 0.0002348143319 | CS52: 0.0002267300221 | CT52: 0.0002204960842 | CU52: 0.0002155229801 | CV52: 0.0002088295655 | CW52: 0.0002018458502 | CX52: 0.0001995105062 | CY52: 0.0002057956353 | CZ52: 0.0002253249486
B53: =IF(L53="","",L53) -> 144 | C53: 9 | D53: =IF(G53<>"",SQRT($J53^2+G53^2),"") -> 3.618992619 | E53: 3.613187505 | F53: 3.627559284 | G53: =IF(O53<>"",SQRT($T$14)*O53,"") -> 0.5885961206 | H53: 0.5517805345 | I53: 0.6391589566 | J53: 3.570806938 | L53: 144 | M53: 8 | N53: 9 | O53: 0.3398261286 | P53: 0.3185706401 | Q53: 0.3690185957 | R53: 0.1821523169 | S53: 0.7000727683 | T53: 2.19339496 | W53: CSU % | X53: Total sampling uncertainty s in % as function of actual distribution and sampling | AF53: Vario 4 | AG53: 0 | AH53: 0 | AI53: 0 | AJ53: 0 | AK53: 0 | AL53: 0 | AM53: 0 | AN53: 0 | AO53: 0 | AP53: 0 | AQ53: 0 | AR53: 0 | AS53: 0 | AT53: 0 | AU53: 0 | AV53: 0 | AW53: 0 | AX53: 0 | AY53: 0 | AZ53: 0 | BA53: 0 | BB53: 0 | BC53: 0 | BD53: 0 | BE53: 0 | BF53: 0 | BG53: 0 | BH53: 0 | BI53: 0 | BJ53: 0 | BK53: 0 | BL53: 0 | BM53: 0 | BN53: 0 | BO53: 0 | BP53: 0 | BQ53: 0 | BR53: 0 | BS53: 0 | BT53: 0 | BU53: 0 | BV53: 0 | BW53: 0 | BX53: 0 | BY53: 0 | BZ53: 0 | CA53: 0 | CB53: 0 | CC53: 0 | CD53: 0 | CE53: 0 | CF53: 0 | CG53: 0 | CH53: 0 | CI53: 0 | CJ53: 0 | CK53: 0 | CL53: 0 | CM53: 0 | CN53: 0 | CO53: 0 | CP53: 0 | CQ53: 0 | CR53: 0 | CS53: 0 | CT53: 0 | CU53: 0 | CV53: 0 | CW53: 0 | CX53: 0 | CY53: 0 | CZ53: 0
W54: Syst %: | X54: Relative standard deviation in % for systematic sampling | AF54: Vario 5
W55: Strat%: | X55: Relative standard deviation in % for stratified random sampling | AF55: Vario 6
W56: Rand%: | X56: Relative standard deviation in % for random sampling | AF56: ni | AG56: 0 | AH56: 1 | AI56: 2 | AJ56: 3 | AK56: 4 | AL56: 5 | AM56: 6 | AN56: 7 | AO56: 8 | AP56: 9 | AQ56: 10 | AR56: 11 | AS56: 12 | AT56: 13 | AU56: 14 | AV56: 15 | AW56: 16 | AX56: 17 | AY56: 18 | AZ56: 19 | BA56: 20 | BB56: 21 | BC56: 22 | BD56: 23 | BE56: 24 | BF56: 25 | BG56: 26 | BH56: 27 | BI56: 28 | BJ56: 29 | BK56: 30 | BL56: 31 | BM56: 32 | BN56: 33 | BO56: 34 | BP56: 35 | BQ56: 36 | BR56: 37 | BS56: 38 | BT56: 39 | BU56: 40 | BV56: 41 | BW56: 42 | BX56: 43 | BY56: 44 | BZ56: 45 | CA56: 46 | CB56: 47 | CC56: 48 | CD56: 49 | CE56: 50 | CF56: 51 | CG56: 52 | CH56: 53 | CI56: 54 | CJ56: 55 | CK56: 56 | CL56: 57 | CM56: 58 | CN56: 59 | CO56: 60 | CP56: 61 | CQ56: 62 | CR56: 63 | CS56: 64 | CT56: 65 | CU56: 66 | CV56: 67 | CW56: 68 | CX56: 69 | CY56: 70 | CZ56: 71 | DA56: 72 | DB56: 73 | DC56: 74 | DD56: 75 | DE56: 76 | DF56: 77 | DG56: 78 | DH56: 79 | DI56: 80 | DJ56: 81 | DK56: 82 | DL56: 83 | DM56: 84 | DN56: 85 | DO56: 86 | DP56: 87 | DQ56: 88 | DR56: 89 | DS56: 90 | DT56: 91 | DU56: 92 | DV56: 93 | DW56: 94 | DX56: 95 | DY56: 96 | DZ56: 97 | EA56: 98 | EB56: 99 | EC56: 100 | ED56: 101 | EE56: 102 | EF56: 103 | EG56: 104 | EH56: 105 | EI56: 106 | EJ56: 107 | EK56: 108 | EL56: 109 | EM56: 110 | EN56: 111 | EO56: 112 | EP56: 113 | EQ56: 114 | ER56: 115 | ES56: 116 | ET56: 117 | EU56: 118 | EV56: 119 | EW56: 120 | EX56: 121 | EY56: 122 | EZ56: 123 | FA56: 124 | FB56: 125 | FC56: 126 | FD56: 127
K57: =IF(P57="","",100*SQRT($T$14*S57)) ->  | AF57: DFT F(z) | AG57: 7.18952136 | AH57: 0.8846905388 | AI57: 0.5882372257 | AJ57: 0.3722553643 | AK57: 0.5444757183 | AL57: 0.005221829452 | AM57: 0.4908474306 | AN57: 0.09584294246 | AO57: 0.3318363557 | AP57: 0.3656994017 | AQ57: 0.2918666182 | AR57: 0.04067611471 | AS57: 0.2340699146 | AT57: 0.08220770682 | AU57: 0.06209049162 | AV57: 0.04509262719 | AW57: 0.1141336442 | AX57: 0.1227666557 | AY57: 0.1012010819 | AZ57: 0.04516642475 | BA57: 0.1120417018 | BB57: 0.06717644675 | BC57: 0.149932656 | BD57: 0.1869020855 | BE57: 0.05783867223 | BF57: 0.09291586252 | BG57: 0.034030387 | BH57: 0.04538587884 | BI57: 0.1340606177 | BJ57: 0.05317536047 | BK57: 0.0453277819 | BL57: 0.05847467279 | BM57: 0.1309958423 | BN57: 0.05692037893 | BO57: 0.04097849278 | BP57: 0.06493488671 | BQ57: 0.03122601972 | BR57: 0.04726871679 | BS57: 0.05075717672 | BT57: 0.06637267601 | BU57: 0.101925267 | BV57: 0.04327363498 | BW57: 0.02102684028 | BX57: 0.02249520724 | BY57: 0.05161557373 | BZ57: 0.01463766503 | CA57: 0.01436064413 | CB57: 0.03002591809 | CC57: 0.02160681873 | CD57: 0.02163757546 | CE57: 0.0107378186 | CF57: 0.01300129953 | CG57: 0.0329221385 | CH57: 0.01265698565 | CI57: 0.001407614769 | CJ57: 0.02637259383 | CK57: 0.02518824352 | CL57: 0.02028416296 | CM57: 0.01637486647 | CN57: 0.01107207021 | CO57: 0.01700044937 | CP57: 0.01099420912 | CQ57: 0.008360518818 | CR57: 0.007284701374 | CS57: 0.01326176261 | CT57: 0.005289837795 | CU57: 0.01010914444 | CV57: 0.006150758813 | CW57: 0.006050714634 | CX57: 0.008184809297 | CY57: 0.006137280735 | CZ57: 0.004095088392 | DA57: 0.006459258038 | DB57: =IF(DB59="","",IMABS(DB59)) -> 
K58: =IF(P58="","",100*SQRT($T$14*S58)) -> 
V59: Classes: | X59: 1-10 classes with or without analyte
B60: Analyte 4 | C60: steel | D60: aL: | E60: =IF(S62="","",S62) -> 0.2 | G60: RSD(aL) %: | H60: =IF(T62="","",T62) -> 7.554567661e-06 | X60: class: only SU is calculated
D61: s(CSU) % | G61: s(SU) % | V61: Horizontal: | X61: No limit of length, but if > 256 graphs needs to be modified
B62: N | C62: Ni | D62: Syst % | E62: Strat % | F62: Rand % | G62: Syst % | H62: Strat % | I62: Rand % | J62: s(FSU) % | K62: s(FSE) % | R62: 2.850858267 | S62: 0.2 | T62: 7.554567661e-06 | X62: If = 1 only FSU and FSE is calculated
B63: =IF(L63="","",L63) -> 144 | C63: 1 | D63: =IF(G63<>"",SQRT($J63^2+G63^2),"") -> 14.1265735 | E63: =IF(H63<>"",SQRT($J63^2+H63^2),"") -> 14.1265735 | F63: 14.1265735 | G63: =IF(O63<>"",SQRT($T$14)*O63,"") -> 1.929674618e-13 | H63: =IF(P63<>"",SQRT($T$14)*P63,"") -> 1.929674618e-13 | I63: 1.929674618e-13 | J63: =IF(O63="","",100*SQRT($T$15*R63)) -> 14.1265735 | K63: =IF(R62="","",100*SQRT($T$15*R62)) -> 14.1265735 | L63: 144 | M63: 72 | N63: 1 | O63: 1.11409816e-13 | P63: 1.11409816e-13 | Q63: 1.11409816e-13 | R63: 2.850858267 | S63: 0.2 | T63: 7.554567661e-06 | V63: Vertical: | X63: No limit of length, but if > 16 graphs needs to be modified
B64: =IF(L64="","",L64) -> 144 | C64: 9 | D64: =IF(G64<>"",SQRT($J64^2+G64^2),"") -> 14.1265735 | E64: 14.1265735 | F64: 14.1265735 | G64: =IF(O64<>"",SQRT($T$14)*O64,"") -> 1.986027323e-13 | H64: 1.923203102e-13 | I64: 1.923203102e-13 | J64: 14.1265735 | L64: 144 | M64: 8 | N64: 9 | O64: 1.146633409e-13 | P64: 1.110361829e-13 | Q64: 1.110361829e-13 | R64: 2.850858267 | S64: 0.2 | T64: 7.554567661e-06 | X64: If =1 FSU and FSE will be identical
D66: =IF(G66<>"",SQRT($J66^2+G66^2),"") -> 
K68: =IF(P68="","",100*SQRT($T$14*S68)) -> 
K69: =IF(P69="","",100*SQRT($T$14*S69)) ->  | V69: Organization of data:
V70: Horizontal in columns, vertical in rows, classes in kmx rows within each vertical depth
B71: Analyte 5 | C71: Analyte 5 | D71: aL: | E71: =IF(S73="","",S73) ->  | G71: RSD(aL) %: | H71: =IF(T73="","",T73) -> 
D72: s(CSU) % | G72: s(SU) % | X72: Horizontal
B73: N | C73: Ni | D73: Syst % | E73: Strat % | F73: Rand % | G73: Syst % | H73: Strat % | I73: Rand % | J73: s(FSU) % | K73: s(FSE) % | V73: Vertical | W73: Class | X73: 1 | Y73: 2 | Z73: … | AA73: hmx
B74: =IF(L74="","",L74) ->  | D74: =IF(G74<>"",SQRT($J74^2+G74^2),"") ->  | E74: =IF(H74<>"",SQRT($J74^2+H74^2),"") ->  | G74: =IF(O74<>"",SQRT($T$13)*O74,"") ->  | J74: =IF(O74="","",100*SQRT($T$15*R74)) ->  | K74: =IF(R73="","",100*SQRT($T$15*R73)) ->  | V74: 1 | W74: 1 | X74: B100 | Y74: C100 | Z74: … | AA74: …
B75: =IF(L75="","",L75) ->  | D75: =IF(G75<>"",SQRT($J75^2+G75^2),"") ->  | V75: 1 | W75: 2 | X75: B101 | Y75: C101 | Z75: … | AA75: …
V76: 1 | W76: … | X76: … | Y76: … | Z76: … | AA76: …
V77: 1 | W77: kmx | X77: … | Y77: … | Z77: … | AA77: …
V78: 2 | W78: 1 | X78: … | Y78: … | Z78: … | AA78: …
K79: =IF(P79="","",100*SQRT($T$14*S79)) ->  | V79: 2 | W79: 2 | X79: … | Y79: … | Z79: … | AA79: …
K80: =IF(P80="","",100*SQRT($T$14*S80)) ->  | V80: 2 | W80: … | X80: … | Y80: … | Z80: … | AA80: …
V81: 2 | W81: kmx | X81: … | Y81: … | Z81: … | AA81: …
B82: Analyte 6 | C82: 0 | D82: aL: | E82: =IF(S84="","",S84) ->  | G82: RSD(aL) %: | H82: =IF(T84="","",T84) ->  | V82: … | W82: 1 | X82: … | Y82: … | Z82: … | AA82: …
D83: s(CSU) % | G83: s(SU) % | V83: … | W83: 2 | X83: … | Y83: … | Z83: … | AA83: …
B84: N | C84: Ni | D84: Syst % | E84: Strat % | F84: Rand % | G84: Syst % | H84: Strat % | I84: Rand % | J84: s(FSU) % | K84: s(FSE) % | V84: … | W84: … | X84: … | Y84: … | Z84: … | AA84: …
B85: =IF(L85="","",L85) ->  | D85: =IF(G85<>"",SQRT($J85^2+G85^2),"") ->  | E85: =IF(H85<>"",SQRT($J85^2+H85^2),"") ->  | G85: =IF(O85<>"",SQRT($T$13)*O85,"") ->  | J85: =IF(O85="","",100*SQRT($T$15*R85)) ->  | K85: =IF(R84="","",100*SQRT($T$15*R84)) ->  | V85: … | W85: kmx | X85: … | Y85: … | Z85: … | AA85: …
B86: =IF(L86="","",L86) ->  | D86: =IF(G86<>"",SQRT($J86^2+G86^2),"") ->  | V86: vmx | W86: 1 | X86: … | Y86: … | Z86: … | AA86: …
V87: vmx | W87: 2 | X87: … | Y87: … | Z87: … | AA87: …
V88: vmx | W88: … | X88: … | Y88: … | Z88: … | AA88: …
V89: vmx | W89: kmx | X89: … | Y89: … | Z89: … | AA89: …
K90: =IF(P90="","",100*SQRT($T$14*S90)) -> 
K91: =IF(P91="","",100*SQRT($T$14*S91)) -> 
X92: Input are proportion of each class, x(k) = 0 to 1
X93: The sum of x(k) in each box must be 1
F94: NOTE: The input data must be average concentrations unaffected by FSE | X94: Error in concentrations are shown in cell AI33
X95: NOTE: The input data must be average concentrations unaffected by FSE
A96: Table 1 | F96: s2(CSU) = s2(FSU) + s2(SU) | I96: In this spreadsheet s(SU) = s(GSE)
A98: INPUT DATA IN THE WHITE CELLS starting in B100: | F98: (Row and Column no. 1, 2, 3… is only for information)
B99: 1 | C99: 2 | D99: 3 | E99: 4 | F99: 5 | G99: 6 | H99: 7 | I99: 8 | J99: 9 | K99: 10 | L99: 11 | M99: 12 | N99: 13 | O99: 14 | P99: 15 | Q99: 16 | R99: 17 | S99: 18 | T99: 19 | U99: 20 | V99: 21 | W99: 22 | X99: 23 | Y99: 24 | Z99: 25 | AA99: 26 | AB99: 27 | AC99: 28 | AD99: 29 | AE99: 30 | AF99: 31 | AG99: 32 | AH99: 33 | AI99: 34 | AJ99: 35 | AK99: 36 | AL99: 37 | AM99: 38 | AN99: 39 | AO99: 40 | AP99: 41 | AQ99: 42 | AR99: 43 | AS99: 44 | AT99: 45 | AU99: 46 | AV99: 47 | AW99: 48 | AX99: 49 | AY99: 50 | AZ99: 51 | BA99: 52 | BB99: 53 | BC99: 54 | BD99: 55 | BE99: 56 | BF99: 57 | BG99: 58 | BH99: 59 | BI99: 60 | BJ99: 61 | BK99: 62 | BL99: 63 | BM99: 64 | BN99: 65 | BO99: 66 | BP99: 67 | BQ99: 68 | BR99: 69 | BS99: 70 | BT99: 71 | BU99: 72 | BV99: 73 | BW99: 74 | BX99: 75 | BY99: 76 | BZ99: 77 | CA99: 78 | CB99: 79 | CC99: 80 | CD99: 81 | CE99: 82 | CF99: 83 | CG99: 84 | CH99: 85 | CI99: 86 | CJ99: 87 | CK99: 88 | CL99: 89 | CM99: 90 | CN99: 91 | CO99: 92 | CP99: 93 | CQ99: 94 | CR99: 95 | CS99: 96 | CT99: 97 | CU99: 98 | CV99: 99 | CW99: 100 | CX99: 101 | CY99: 102 | CZ99: 103 | DA99: 104 | DB99: 105 | DC99: 106 | DD99: 107 | DE99: 108 | DF99: 109 | DG99: 110 | DH99: 111 | DI99: 112 | DJ99: 113 | DK99: 114 | DL99: 115 | DM99: 116 | DN99: 117 | DO99: 118 | DP99: 119 | DQ99: 120 | DR99: 121 | DS99: 122 | DT99: 123 | DU99: 124 | DV99: 125 | DW99: 126 | DX99: 127 | DY99: 128 | DZ99: 129 | EA99: 130 | EB99: 131 | EC99: 132 | ED99: 133 | EE99: 134 | EF99: 135 | EG99: 136 | EH99: 137 | EI99: 138 | EJ99: 139 | EK99: 140 | EL99: 141 | EM99: 142 | EN99: 143 | EO99: 144
A100: 1 | B100: 0.04277779815 | C100: 0.05555939253 | D100: 0.05882289383 | E100: 0.06063293784 | F100: 0.05861670512 | G100: 0.06238757623 | H100: 0.06534287141 | I100: 0.06964019061 | J100: 0.07619963273 | K100: 0.07962124919 | L100: 0.07896741043 | M100: 0.0793950905 | N100: 0.07767817543 | O100: 0.06782949682 | P100: 0.05487599546 | Q100: 0.04933321632 | R100: 0.05489261184 | S100: 0.05416191322 | T100: 0.04808450651 | U100: 0.05195730472 | V100: 0.05557535496 | W100: 0.05331121521 | X100: 0.0554146988 | Y100: 0.06291272878 | Z100: 0.06188100391 | AA100: 0.0536111941 | AB100: 0.05280425012 | AC100: 0.05616061459 | AD100: 0.05850239521 | AE100: 0.05421710611 | AF100: 0.04324679457 | AG100: 0.03471396057 | AH100: 0.03012169444 | AI100: 0.0295149179 | AJ100: 0.03067101399 | AK100: 0.02494067362 | AL100: 0.02270871156 | AM100: 0.0269960855 | AN100: 0.02575057581 | AO100: 0.02220447055 | AP100: 0.01966467964 | AQ100: 0.01896748919 | AR100: 0.02667692894 | AS100: 0.03569324376 | AT100: 0.03875301549 | AU100: 0.04482458068 | AV100: 0.04695917018 | AW100: 0.04926729372 | AX100: 0.05457550964 | AY100: 0.04953537546 | AZ100: 0.03762536334 | BA100: 0.02865879208 | BB100: 0.03196927338 | BC100: 0.04039931223 | BD100: 0.03621578775 | BE100: 0.02954566949 | BF100: 0.02421906288 | BG100: 0.01881425884 | BH100: 0.01940134869 | BI100: 0.02687635129 | BJ100: 0.03749137896 | BK100: 0.04213083265 | BL100: 0.04196582545 | BM100: 0.03713216532 | BN100: 0.03076318068 | BO100: 0.03277560482 | BP100: 0.03986943499 | BQ100: 0.03811033393 | BR100: 0.03518144756 | BS100: 0.03921143725 | BT100: 0.04332775864 | BU100: 0.0460580074 | BV100: 0.053439368 | BW100: 0.05937043179 | BX100: 0.05813766235 | BY100: 0.0555563788 | BZ100: 0.05233881481 | CA100: 0.05577845498 | CB100: 0.06715403786 | CC100: 0.07542942414 | CD100: 0.07169338585 | CE100: 0.06561806448 | CF100: 0.06201631374 | CG100: 0.05538844116 | CH100: 0.05077936716 | CI100: 0.04552574077 | CJ100: 0.04050681705 | CK100: 0.03773234533 | CL100: 0.03637948519 | CM100: 0.04005153139 | CN100: 0.04237254028 | CO100: 0.04782936382 | CP100: 0.05539368532 | CQ100: 0.05859546182 | CR100: 0.05969317562 | CS100: 0.05944579089 | CT100: 0.05385572446 | CU100: 0.04773332453 | CV100: 0.04522580846 | CW100: 0.0467347739 | CX100: 0.03893081045 | CY100: 0.02912702416 | CZ100: 0.02764213044 | DA100: 0.02822662559 | DB100: 0.03178394608 | DC100: 0.04060468672 | DD100: 0.04732076477 | DE100: 0.04192733892 | DF100: 0.0364640954 | DG100: 0.03947207415 | DH100: 0.0470060481 | DI100: 0.05349509747 | DJ100: 0.05014293867 | DK100: 0.04563369406 | DL100: 0.05112085279 | DM100: 0.05470039244 | DN100: 0.05571089466 | DO100: 0.06299089108 | DP100: 0.07456486417 | DQ100: 0.08308029298 | DR100: 0.08081328745 | DS100: 0.06964108916 | DT100: 0.06631968347 | DU100: 0.07487668766 | DV100: 0.08102726302 | DW100: 0.0760525774 | DX100: 0.0669668167 | DY100: 0.06371291731 | DZ100: 0.05874706534 | EA100: 0.0513362806 | EB100: 0.05164649104 | EC100: 0.05666248235 | ED100: 0.05602726072 | EE100: 0.04982988052 | EF100: 0.04961442786 | EG100: 0.05038450892 | EH100: 0.0496432335 | EI100: 0.05717337281 | EJ100: 0.06269058969 | EK100: 0.06159415275 | EL100: 0.06131747694 | EM100: 0.06836191229 | EN100: 0.07944966307 | EO100: 0.06121471884
A101: 2 | B101: 0.05 | C101: 0.05 | D101: 0.05 | E101: 0.05 | F101: 0.05 | G101: 0.05 | H101: 0.05 | I101: 0.05 | J101: 0.05 | K101: 0.05 | L101: 0.05 | M101: 0.05 | N101: 0.05 | O101: 0.05 | P101: 0.05 | Q101: 0.05 | R101: 0.05 | S101: 0.05 | T101: 0.05 | U101: 0.05 | V101: 0.05 | W101: 0.05 | X101: 0.05 | Y101: 0.05 | Z101: 0.05 | AA101: 0.05 | AB101: 0.05 | AC101: 0.05 | AD101: 0.05 | AE101: 0.05 | AF101: 0.05 | AG101: 0.05 | AH101: 0.05 | AI101: 0.05 | AJ101: 0.05 | AK101: 0.05 | AL101: 0.05 | AM101: 0.05 | AN101: 0.05 | AO101: 0.05 | AP101: 0.05 | AQ101: 0.05 | AR101: 0.05 | AS101: 0.05 | AT101: 0.05 | AU101: 0.05 | AV101: 0.05 | AW101: 0.05 | AX101: 0.05 | AY101: 0.05 | AZ101: 0.05 | BA101: 0.05 | BB101: 0.05 | BC101: 0.05 | BD101: 0.05 | BE101: 0.05 | BF101: 0.05 | BG101: 0.05 | BH101: 0.05 | BI101: 0.05 | BJ101: 0.05 | BK101: 0.05 | BL101: 0.05 | BM101: 0.05 | BN101: 0.05 | BO101: 0.05 | BP101: 0.05 | BQ101: 0.05 | BR101: 0.05 | BS101: 0.05 | BT101: 0.05 | BU101: 0.05 | BV101: 0.05 | BW101: 0.05 | BX101: 0.05 | BY101: 0.05 | BZ101: 0.05 | CA101: 0.05 | CB101: 0.05 | CC101: 0.05 | CD101: 0.05 | CE101: 0.05 | CF101: 0.05 | CG101: 0.05 | CH101: 0.05 | CI101: 0.05 | CJ101: 0.05 | CK101: 0.05 | CL101: 0.05 | CM101: 0.05 | CN101: 0.05 | CO101: 0.05 | CP101: 0.05 | CQ101: 0.05 | CR101: 0.05 | CS101: 0.05 | CT101: 0.05 | CU101: 0.05 | CV101: 0.05 | CW101: 0.05 | CX101: 0.05 | CY101: 0.05 | CZ101: 0.05 | DA101: 0.05 | DB101: 0.05 | DC101: 0.05 | DD101: 0.05 | DE101: 0.05 | DF101: 0.05 | DG101: 0.05 | DH101: 0.05 | DI101: 0.05 | DJ101: 0.05 | DK101: 0.05 | DL101: 0.05 | DM101: 0.05 | DN101: 0.05 | DO101: 0.05 | DP101: 0.05 | DQ101: 0.05 | DR101: 0.05 | DS101: 0.05 | DT101: 0.05 | DU101: 0.05 | DV101: 0.05 | DW101: 0.05 | DX101: 0.05 | DY101: 0.05 | DZ101: 0.05 | EA101: 0.05 | EB101: 0.05 | EC101: 0.05 | ED101: 0.05 | EE101: 0.05 | EF101: 0.05 | EG101: 0.05 | EH101: 0.05 | EI101: 0.05 | EJ101: 0.05 | EK101: 0.05 | EL101: 0.05 | EM101: 0.05 | EN101: 0.05 | EO101: 0.05
A102: 3 | B102: 0.7072222018 | C102: 0.6944406075 | D102: 0.6911771062 | E102: 0.6893670622 | F102: 0.6913832949 | G102: 0.6876124238 | H102: 0.6846571286 | I102: 0.6803598094 | J102: 0.6738003673 | K102: 0.6703787508 | L102: 0.6710325896 | M102: 0.6706049095 | N102: 0.6723218246 | O102: 0.6821705032 | P102: 0.6951240045 | Q102: 0.7006667837 | R102: 0.6951073882 | S102: 0.6958380868 | T102: 0.7019154935 | U102: 0.6980426953 | V102: 0.694424645 | W102: 0.6966887848 | X102: 0.6945853012 | Y102: 0.6870872712 | Z102: 0.6881189961 | AA102: 0.6963888059 | AB102: 0.6971957499 | AC102: 0.6938393854 | AD102: 0.6914976048 | AE102: 0.6957828939 | AF102: 0.7067532054 | AG102: 0.7152860394 | AH102: 0.7198783056 | AI102: 0.7204850821 | AJ102: 0.719328986 | AK102: 0.7250593264 | AL102: 0.7272912884 | AM102: 0.7230039145 | AN102: 0.7242494242 | AO102: 0.7277955294 | AP102: 0.7303353204 | AQ102: 0.7310325108 | AR102: 0.7233230711 | AS102: 0.7143067562 | AT102: 0.7112469845 | AU102: 0.7051754193 | AV102: 0.7030408298 | AW102: 0.7007327063 | AX102: 0.6954244904 | AY102: 0.7004646245 | AZ102: 0.7123746367 | BA102: 0.7213412079 | BB102: 0.7180307266 | BC102: 0.7096006878 | BD102: 0.7137842122 | BE102: 0.7204543305 | BF102: 0.7257809371 | BG102: 0.7311857412 | BH102: 0.7305986513 | BI102: 0.7231236487 | BJ102: 0.712508621 | BK102: 0.7078691674 | BL102: 0.7080341746 | BM102: 0.7128678347 | BN102: 0.7192368193 | BO102: 0.7172243952 | BP102: 0.710130565 | BQ102: 0.7118896661 | BR102: 0.7148185524 | BS102: 0.7107885627 | BT102: 0.7066722414 | BU102: 0.7039419926 | BV102: 0.696560632 | BW102: 0.6906295682 | BX102: 0.6918623377 | BY102: 0.6944436212 | BZ102: 0.6976611852 | CA102: 0.694221545 | CB102: 0.6828459621 | CC102: 0.6745705759 | CD102: 0.6783066142 | CE102: 0.6843819355 | CF102: 0.6879836863 | CG102: 0.6946115588 | CH102: 0.6992206328 | CI102: 0.7044742592 | CJ102: 0.709493183 | CK102: 0.7122676547 | CL102: 0.7136205148 | CM102: 0.7099484686 | CN102: 0.7076274597 | CO102: 0.7021706362 | CP102: 0.6946063147 | CQ102: 0.6914045382 | CR102: 0.6903068244 | CS102: 0.6905542091 | CT102: 0.6961442755 | CU102: 0.7022666755 | CV102: 0.7047741915 | CW102: 0.7032652261 | CX102: 0.7110691896 | CY102: 0.7208729758 | CZ102: 0.7223578696 | DA102: 0.7217733744 | DB102: 0.7182160539 | DC102: 0.7093953133 | DD102: 0.7026792352 | DE102: 0.7080726611 | DF102: 0.7135359046 | DG102: 0.7105279258 | DH102: 0.7029939519 | DI102: 0.6965049025 | DJ102: 0.6998570613 | DK102: 0.7043663059 | DL102: 0.6988791472 | DM102: 0.6952996076 | DN102: 0.6942891053 | DO102: 0.6870091089 | DP102: 0.6754351358 | DQ102: 0.666919707 | DR102: 0.6691867126 | DS102: 0.6803589108 | DT102: 0.6836803165 | DU102: 0.6751233123 | DV102: 0.668972737 | DW102: 0.6739474226 | DX102: 0.6830331833 | DY102: 0.6862870827 | DZ102: 0.6912529347 | EA102: 0.6986637194 | EB102: 0.698353509 | EC102: 0.6933375176 | ED102: 0.6939727393 | EE102: 0.7001701195 | EF102: 0.7003855721 | EG102: 0.6996154911 | EH102: 0.7003567665 | EI102: 0.6928266272 | EJ102: 0.6873094103 | EK102: 0.6884058472 | EL102: 0.6886825231 | EM102: 0.6816380877 | EN102: 0.6705503369 | EO102: 0.6887852812
A103: 4 | B103: 0.2 | C103: 0.2 | D103: 0.2 | E103: 0.2 | F103: 0.2 | G103: 0.2 | H103: 0.2 | I103: 0.2 | J103: 0.2 | K103: 0.2 | L103: 0.2 | M103: 0.2 | N103: 0.2 | O103: 0.2 | P103: 0.2 | Q103: 0.2 | R103: 0.2 | S103: 0.2 | T103: 0.2 | U103: 0.2 | V103: 0.2 | W103: 0.2 | X103: 0.2 | Y103: 0.2 | Z103: 0.2 | AA103: 0.2 | AB103: 0.2 | AC103: 0.2 | AD103: 0.2 | AE103: 0.2 | AF103: 0.2 | AG103: 0.2 | AH103: 0.2 | AI103: 0.2 | AJ103: 0.2 | AK103: 0.2 | AL103: 0.2 | AM103: 0.2 | AN103: 0.2 | AO103: 0.2 | AP103: 0.2 | AQ103: 0.2 | AR103: 0.2 | AS103: 0.2 | AT103: 0.2 | AU103: 0.2 | AV103: 0.2 | AW103: 0.2 | AX103: 0.2 | AY103: 0.2 | AZ103: 0.2 | BA103: 0.2 | BB103: 0.2 | BC103: 0.2 | BD103: 0.2 | BE103: 0.2 | BF103: 0.2 | BG103: 0.2 | BH103: 0.2 | BI103: 0.2 | BJ103: 0.2 | BK103: 0.2 | BL103: 0.2 | BM103: 0.2 | BN103: 0.2 | BO103: 0.2 | BP103: 0.2 | BQ103: 0.2 | BR103: 0.2 | BS103: 0.2 | BT103: 0.2 | BU103: 0.2 | BV103: 0.2 | BW103: 0.2 | BX103: 0.2 | BY103: 0.2 | BZ103: 0.2 | CA103: 0.2 | CB103: 0.2 | CC103: 0.2 | CD103: 0.2 | CE103: 0.2 | CF103: 0.2 | CG103: 0.2 | CH103: 0.2 | CI103: 0.2 | CJ103: 0.2 | CK103: 0.2 | CL103: 0.2 | CM103: 0.2 | CN103: 0.2 | CO103: 0.2 | CP103: 0.2 | CQ103: 0.2 | CR103: 0.2 | CS103: 0.2 | CT103: 0.2 | CU103: 0.2 | CV103: 0.2 | CW103: 0.2 | CX103: 0.2 | CY103: 0.2 | CZ103: 0.2 | DA103: 0.2 | DB103: 0.2 | DC103: 0.2 | DD103: 0.2 | DE103: 0.2 | DF103: 0.2 | DG103: 0.2 | DH103: 0.2 | DI103: 0.2 | DJ103: 0.2 | DK103: 0.2 | DL103: 0.2 | DM103: 0.2 | DN103: 0.2 | DO103: 0.2 | DP103: 0.2 | DQ103: 0.2 | DR103: 0.2 | DS103: 0.2 | DT103: 0.2 | DU103: 0.2 | DV103: 0.2 | DW103: 0.2 | DX103: 0.2 | DY103: 0.2 | DZ103: 0.2 | EA103: 0.2 | EB103: 0.2 | EC103: 0.2 | ED103: 0.2 | EE103: 0.2 | EF103: 0.2 | EG103: 0.2 | EH103: 0.2 | EI103: 0.2 | EJ103: 0.2 | EK103: 0.2 | EL103: 0.2 | EM103: 0.2 | EN103: 0.2 | EO103: 0.2
A104: 5
A105: 6
A106: 7
A107: 8
A108: 9
A109: 10
A110: 11
A111: 12
A112: 13
A113: 14
A114: 15
A115: 16
A116: 17
A117: 18
A118: 19
A119: 20
A120: 21
A121: 22
A122: 23
A123: 24
A124: 25
A125: 26
A126: 27
A127: 28
A128: 29
A129: 30
A130: 31
A131: 32
A132: 33
A133: 34
A134: 35
A135: 36
A136: 37
A137: 38
A138: 39
A139: 40
A140: 41
A141: 42
A142: 43
A143: 44
A144: 45
A145: 46
A146: 47
A147: 48
A148: 49
A149: 50
A150: 51
A151: 52
A152: 53
A153: 54
A154: 55
A155: 56
A156: 57
A157: 58
A158: 59
A159: 60
A160: 61
A161: 62
A162: 63
A163: 64

Sheet CSU
A1: CSU_3.0.xlsm | F1: Data input from cell B100 | I1: Instructions in cell V3 | P1: Author: Bo Svensmark, svensmark@plen.ku.dk, Analytical Chemistry, ECP, PLEN, University of Copenhagen, 2022
B3: Run at: | C3: =IF(L27<>"",L27,"Please update CSU") -> 2022-05-29T12:19:31 | E3: Runtime: | F3: =IF(M27<>"",M27,"Not run") -> 5 | G3: s | V3: Manual: | W3: NOTE: The input data must be average concentrations unaffected by FSE
A4: Title:
A5: Comm: | F5: This sheet contains data from the example, please overwrite or delete old data (and this text), see instructions in cell V3 | W5: Do only enter values in the WHITE cells
W7: 1) Enter the input data f(x) in Table 1 starting i cell B100
X8: Indices 1,2,3… is only for infrmation
B9: Table 2a | F9: Table 2b | I9: Analyte: | J9: 1 | K9: 2 | L9: 3 | M9: 4 | N9: 5 | O9: 6 | P9: Macro input | S9: Intermediate results | X9: Organization of dats, see layout below
B10: Sampling ratio | D10: 8 | F10: Class (k) | G10: Name | H10: m(k) | I10: Name: | J10: sand | K10: sesame | L10: barley | M10: steel | N10: Analyte 5
B11: kmx, no of classes | D11: 4 | F11: 1 | G11: Sand | H11: 0.0001 | I11: Conc, g/g: | J11: 1 | K11: 0 | L11: 0 | M11: 0 | N11: 0.7 | P11: Runs | Q11: =COUNT(D16:D21) -> 1 | S11: M(L) | T11: =IF(D23<>"",D23,"") -> 1000 | W11: 2) Enter parameters in Table 2
B12: hmx, horizontal length | D12: 64 | F12: 2 | G12: Sesame | H12: 0.003 | J12: 0 | K12: 1 | L12: 0 | M12: 0 | N12: 0.3 | S12: M(S) | T12: =IF(D24<>"",D24,"") -> 125 | X12: If ni is not a divisor in hmx, input will be truncated and a warning is given,
B13: vmx, vertical depth | D13: 64 | F13: 3 | G13: Barley | H13: 0.045 | J13: 0 | K13: 0 | L13: 1 | M13: 0 | N13: 0.05 | S13: M(L)/MS() | T13: =IF(T12="","",T11/T12) -> 8 | X13: hmx may be < than the length of input data
B14: Run analyte 1 to ? | D14: 4 | E14: =IF(OR(D14>6, D14<1),"Error","") ->  | F14: 4 | G14: Steel | H14: 0.881 | J14: 0 | K14: 0 | L14: 0 | M14: 1 | N14: 0 | S14: Rounds | T14: =LN(T13)/LN(D10) -> 1 | X14: Unused entries for ni in Table 1 must be blank
B15: MC runs: | D15: 4000 | F15: 5 | S15: (1/MS-1/ML) | T15: =(1/T12-1/T11) -> 0.007 | X15: For point selection enter the number of increments with a minus sign (-ni)
B16: ni, no of increments | D16: 8 | E16: =IF(D16="","",IF(D16*D$10>D$12,"Too big!",IF(MOD(D$12,D16*$D$10)<>0,"Warning",""))) ->  | F16: 6 | X16: For point selection the number of Rounds must be 1. Adjust ratio or ML/MS
F17: 7
F18: 8 | W18: 3) Press the button Update CSU
F19: 9 | X19: The progress can be seen in the lower left corner of the screen
F20: 10 | X20: If it takes too long time press ESC and then End
B22: Table 2c | F22: =IF(MOD(T13,D10)=0,"","Error in Sampling ratio vs M(L) or M(S)") ->  | W22: 4) Analyse the results
B23: M(Lot), g | D23: 1000 | L23: s2(CSU) = s2(FSU) + s2(SU) | O23: In this spreadsheet s(SU) = s(GSE) | X23: You can change the masses M(L) end M(S) and CSU will change accordingly
B24: M(Sample), g | D24: 125
W25: 5) Save the workbook under a new name: Save As…
B26: Table 3 | F26: =IF(O27="","",IF(SUM(D10:R21)=O27,"","Input parameter has changed - please Update CSU")) ->  | L26: Macro output
B27: Analyte 1 | C27: =J10 -> sand | D27: aL: | E27: =IF(S29="","",S29) -> 0.05494384766 | G27: RSD(aL) %: | H27: =IF(T29="","",T29) -> 103.8811279 | L27: 2022-05-29T12:19:31 | M27: 5 | N27: 64 | O27: 4213.9791 | P27: 0 | W27: 6) To continue: Change input and try again - or create a new sheet
D28: s(CSU) % | G28: s(SU) %
B29: N | C29: Ni | D29: Syst % | E29: Strat % | F29: Rand % | G29: Syst % | H29: Strat % | I29: Rand % | J29: s(FSU) % | K29: s(FSE) % | R29: 0.1261577976 | S29: 0.05494384766 | T29: 103.8811279 | W29: 7) To create a new sheet press the New Sheet button
B30: =IF(L30="","",L30) -> 64 | C30: 1 | D30: =IF(G30<>"",SQRT($J30^2+G30^2),"") -> 88.53923689 | E30: =IF(H30<>"",SQRT($J30^2+H30^2),"") -> 88.53923689 | F30: 88.53923689 | G30: =IF(O30<>"",SQRT($T$14)*O30,"") -> 88.48230387 | H30: =IF(P30<>"",SQRT($T$14)*P30,"") -> 88.48230387 | I30: 88.48230387 | J30: =IF(O30="","",100*SQRT($T$15*R30)) -> 3.17464497 | K30: =IF(R29="","",100*SQRT($T$15*R29)) -> 2.971707561 | L30: 64 | M30: 8 | N30: 1 | O30: 88.48230387 | P30: 88.48230387 | Q30: 88.48230387 | R30: 0.1439767241 | S30: 0.05494384766 | T30: 103.8811279 | X30: The new sheet will contain a copy of data in Table 1 & 2
B31: =IF(L31="","",L31) -> 64 | C31: 8 | D31: =IF(G31<>"",SQRT($J31^2+G31^2),"") -> 14.05414708 | E31: 19.20603925 | F31: 34.74716443 | G31: =IF(O31<>"",SQRT($T$14)*O31,"") -> 13.69089769 | H31: 18.94184713 | I31: 34.60183616 | J31: 3.17464497 | L31: 64 | M31: 1 | N31: 8 | O31: 13.69089769 | P31: 18.94184713 | Q31: 34.60183616 | R31: 0.1439767241 | S31: 0.05494384766 | T31: 103.8811279
W32: 8) Troubleshooting
X33: If you get a runtime error in the macros: | AF33: Error in concentrations | AI33: =P27 -> 0 | AM33: Max DFT: | AN33: =MAX(AH57:FD57) -> 1.829704162 | AP33: Analyte # | AR33: DFT: Discrete Fourier Transform of horizontal means
X34: Press Debug in the pop up window | AF34: (average error in one box) | AI34: 1 | AP34: 1 | AR34: =IF(AI34=AP34,"","Please update DFT") -> 
K35: =IF(P35="","",100*SQRT($T$14*S35)) ->  | X35: Look at the code and try to understand the problem | AF35: Table 4
K36: =IF(P36="","",100*SQRT($T$14*S36)) ->  | X36: Press the reset button (blue square in the tools) and try to fix the | AF36: Index | AG36: 1 | AH36: 2 | AI36: 3 | AJ36: 4 | AK36: 5 | AL36: 6 | AM36: 7 | AN36: 8 | AO36: 9 | AP36: 10 | AQ36: 11 | AR36: 12 | AS36: 13 | AT36: 14 | AU36: 15 | AV36: 16 | AW36: 17 | AX36: 18 | AY36: 19 | AZ36: 20 | BA36: 21 | BB36: 22 | BC36: 23 | BD36: 24 | BE36: 25 | BF36: 26 | BG36: 27 | BH36: 28 | BI36: 29 | BJ36: 30 | BK36: 31 | BL36: 32 | BM36: 33 | BN36: 34 | BO36: 35 | BP36: 36 | BQ36: 37 | BR36: 38 | BS36: 39 | BT36: 40 | BU36: 41 | BV36: 42 | BW36: 43 | BX36: 44 | BY36: 45 | BZ36: 46 | CA36: 47 | CB36: 48 | CC36: 49 | CD36: 50 | CE36: 51 | CF36: 52 | CG36: 53 | CH36: 54 | CI36: 55 | CJ36: 56 | CK36: 57 | CL36: 58 | CM36: 59 | CN36: 60 | CO36: 61 | CP36: 62 | CQ36: 63 | CR36: 64 | CS36: 65 | CT36: 66 | CU36: 67 | CV36: 68 | CW36: 69 | CX36: 70 | CY36: 71 | CZ36: 72 | DA36: 73 | DB36: 74 | DC36: 75 | DD36: 76 | DE36: 77 | DF36: 78 | DG36: 79 | DH36: 80 | DI36: 81 | DJ36: 82 | DK36: 83 | DL36: 84 | DM36: 85 | DN36: 86 | DO36: 87 | DP36: 88 | DQ36: 89 | DR36: 90 | DS36: 91 | DT36: 92 | DU36: 93 | DV36: 94 | DW36: 95 | DX36: 96 | DY36: 97 | DZ36: 98 | EA36: 99 | EB36: 100 | EC36: 101 | ED36: 102 | EE36: 103 | EF36: 104 | EG36: 105 | EH36: 106 | EI36: 107 | EJ36: 108 | EK36: 109 | EL36: 110 | EM36: 111 | EN36: 112 | EO36: 113 | EP36: 114 | EQ36: 115 | ER36: 116 | ES36: 117 | ET36: 118 | EU36: 119 | EV36: 120 | EW36: 121 | EX36: 122 | EY36: 123 | EZ36: 124 | FA36: 125 | FB36: 126 | FC36: 127 | FD36: 128 | FE36: 129 | FF36: 130 | FG36: 131 | FH36: 132 | FI36: 133 | FJ36: 134 | FK36: 135 | FL36: 136 | FM36: 137 | FN36: 138 | FO36: 139 | FP36: 140 | FQ36: 141 | FR36: 142 | FS36: 143 | FT36: 144 | FU36: 145 | FV36: 146 | FW36: 147 | FX36: 148 | FY36: 149 | FZ36: 150 | GA36: 151 | GB36: 152 | GC36: 153 | GD36: 154 | GE36: 155 | GF36: 156 | GG36: 157 | GH36: 158 | GI36: 159 | GJ36: 160 | GK36: 161 | GL36: 162 | GM36: 163 | GN36: 164 | GO36: 165 | GP36: 166 | GQ36: 167 | GR36: 168 | GS36: 169 | GT36: 170 | GU36: 171 | GV36: 172 | GW36: 173 | GX36: 174 | GY36: 175 | GZ36: 176 | HA36: 177 | HB36: 178 | HC36: 179 | HD36: 180 | HE36: 181 | HF36: 182 | HG36: 183 | HH36: 184 | HI36: 185 | HJ36: 186 | HK36: 187 | HL36: 188 | HM36: 189 | HN36: 190 | HO36: 191 | HP36: 192 | HQ36: 193 | HR36: 194 | HS36: 195 | HT36: 196 | HU36: 197 | HV36: 198 | HW36: 199 | HX36: 200 | HY36: 201 | HZ36: 202 | IA36: 203 | IB36: 204 | IC36: 205 | ID36: 206 | IE36: 207 | IF36: 208 | IG36: 209 | IH36: 210 | II36: 211 | IJ36: 212 | IK36: 213 | IL36: 214 | IM36: 215 | IN36: 216 | IO36: 217 | IP36: 218 | IQ36: 219 | IR36: 220 | IS36: 221 | IT36: 222 | IU36: 223 | IV36: 224 | IW36: 225 | IX36: 226 | IY36: 227 | IZ36: 228 | JA36: 229 | JB36: 230 | JC36: 231 | JD36: 232 | JE36: 233 | JF36: 234 | JG36: 235 | JH36: 236 | JI36: 237 | JJ36: 238 | JK36: 239 | JL36: 240 | JM36: 241 | JN36: 242 | JO36: 243 | JP36: 244 | JQ36: 245 | JR36: 246 | JS36: 247 | JT36: 248 | JU36: 249 | JV36: 250 | JW36: 251 | JX36: 252 | JY36: 253 | JZ36: 254 | KA36: 255 | KB36: 256
X37: error or go to the spreadsheet and fix the error | AF37: Depth | AG37: -1 | AH37: -2 | AI37: -3 | AJ37: -4 | AK37: -5 | AL37: -6 | AM37: -7 | AN37: -8 | AO37: -9 | AP37: -10 | AQ37: -11 | AR37: -12 | AS37: -13 | AT37: -14 | AU37: -15 | AV37: -16 | AW37: -17 | AX37: -18 | AY37: -19 | AZ37: -20 | BA37: -21 | BB37: -22 | BC37: -23 | BD37: -24 | BE37: -25 | BF37: -26 | BG37: -27 | BH37: -28 | BI37: -29 | BJ37: -30 | BK37: -31 | BL37: -32 | BM37: -33 | BN37: -34 | BO37: -35 | BP37: -36 | BQ37: -37 | BR37: -38 | BS37: -39 | BT37: -40 | BU37: -41 | BV37: -42 | BW37: -43 | BX37: -44 | BY37: -45 | BZ37: -46 | CA37: -47 | CB37: -48 | CC37: -49 | CD37: -50 | CE37: -51 | CF37: -52 | CG37: -53 | CH37: -54 | CI37: -55 | CJ37: -56 | CK37: -57 | CL37: -58 | CM37: -59 | CN37: -60 | CO37: -61 | CP37: -62 | CQ37: -63 | CR37: -64 | CS37: -65 | CT37: -66 | CU37: -67 | CV37: -68 | CW37: -69 | CX37: -70 | CY37: -71 | CZ37: -72 | DA37: -73 | DB37: -74 | DC37: -75 | DD37: -76 | DE37: -77 | DF37: -78 | DG37: -79 | DH37: -80 | DI37: -81 | DJ37: -82 | DK37: -83 | DL37: -84 | DM37: -85 | DN37: -86 | DO37: -87 | DP37: -88 | DQ37: -89 | DR37: -90 | DS37: -91 | DT37: -92 | DU37: -93 | DV37: -94 | DW37: -95 | DX37: -96 | DY37: -97 | DZ37: -98 | EA37: -99 | EB37: -100 | EC37: -101 | ED37: -102 | EE37: -103 | EF37: -104 | EG37: -105 | EH37: -106 | EI37: -107 | EJ37: -108 | EK37: -109 | EL37: -110 | EM37: -111 | EN37: -112 | EO37: -113 | EP37: -114 | EQ37: -115 | ER37: -116 | ES37: -117 | ET37: -118 | EU37: -119 | EV37: -120 | EW37: -121 | EX37: -122 | EY37: -123 | EZ37: -124 | FA37: -125 | FB37: -126 | FC37: -127 | FD37: -128 | FE37: -129 | FF37: -130 | FG37: -131 | FH37: -132 | FI37: -133 | FJ37: -134 | FK37: -135 | FL37: -136 | FM37: -137 | FN37: -138 | FO37: -139 | FP37: -140 | FQ37: -141 | FR37: -142 | FS37: -143 | FT37: -144 | FU37: -145 | FV37: -146 | FW37: -147 | FX37: -148 | FY37: -149 | FZ37: -150 | GA37: -151 | GB37: -152 | GC37: -153 | GD37: -154 | GE37: -155 | GF37: -156 | GG37: -157 | GH37: -158 | GI37: -159 | GJ37: -160 | GK37: -161 | GL37: -162 | GM37: -163 | GN37: -164 | GO37: -165 | GP37: -166 | GQ37: -167 | GR37: -168 | GS37: -169 | GT37: -170 | GU37: -171 | GV37: -172 | GW37: -173 | GX37: -174 | GY37: -175 | GZ37: -176 | HA37: -177 | HB37: -178 | HC37: -179 | HD37: -180 | HE37: -181 | HF37: -182 | HG37: -183 | HH37: -184 | HI37: -185 | HJ37: -186 | HK37: -187 | HL37: -188 | HM37: -189 | HN37: -190 | HO37: -191 | HP37: -192 | HQ37: -193 | HR37: -194 | HS37: -195 | HT37: -196 | HU37: -197 | HV37: -198 | HW37: -199 | HX37: -200 | HY37: -201 | HZ37: -202 | IA37: -203 | IB37: -204 | IC37: -205 | ID37: -206 | IE37: -207 | IF37: -208 | IG37: -209 | IH37: -210 | II37: -211 | IJ37: -212 | IK37: -213 | IL37: -214 | IM37: -215 | IN37: -216 | IO37: -217 | IP37: -218 | IQ37: -219 | IR37: -220 | IS37: -221 | IT37: -222 | IU37: -223 | IV37: -224 | IW37: -225 | IX37: -226 | IY37: -227 | IZ37: -228 | JA37: -229 | JB37: -230 | JC37: -231 | JD37: -232 | JE37: -233 | JF37: -234 | JG37: -235 | JH37: -236 | JI37: -237 | JJ37: -238 | JK37: -239 | JL37: -240 | JM37: -241 | JN37: -242 | JO37: -243 | JP37: -244 | JQ37: -245 | JR37: -246 | JS37: -247 | JT37: -248 | JU37: -249 | JV37: -250 | JW37: -251 | JX37: -252 | JY37: -253 | JZ37: -254 | KA37: -255 | KB37: -256
B38: Analyte 2 | C38: sesame | D38: aL: | E38: =IF(S40="","",S40) -> 0.1643310547 | G38: RSD(aL) %: | H38: =IF(T40="","",T40) -> 80.84654773 | AF38: Horz 1 | AG38: 0 | AH38: 0 | AI38: 0 | AJ38: 0.00109375 | AK38: 0.001875 | AL38: 0.003125 | AM38: 0.00453125 | AN38: 0.00546875 | AO38: 0.00640625 | AP38: 0.0078125 | AQ38: 0.00921875 | AR38: 0.00953125 | AS38: 0.01 | AT38: 0.01 | AU38: 0.01 | AV38: 0.01 | AW38: 0.01109375 | AX38: 0.01296875 | AY38: 0.0146875 | AZ38: 0.01578125 | BA38: 0.01625 | BB38: 0.01671875 | BC38: 0.0175 | BD38: 0.01828125 | BE38: 0.02 | BF38: 0.02 | BG38: 0.02 | BH38: 0.02234375 | BI38: 0.0246875 | BJ38: 0.029375 | BK38: 0.0321875 | BL38: 0.03453125 | BM38: 0.036875 | BN38: 0.0396875 | BO38: 0.04484375 | BP38: 0.0453125 | BQ38: 0.04671875 | BR38: 0.04765625 | BS38: 0.05 | BT38: 0.05 | BU38: 0.05 | BV38: 0.05 | BW38: 0.05 | BX38: 0.053125 | BY38: 0.0609375 | BZ38: 0.06875 | CA38: 0.075 | CB38: 0.08203125 | CC38: 0.0890625 | CD38: 0.09375 | CE38: 0.1 | CF38: 0.1 | CG38: 0.1 | CH38: 0.1 | CI38: 0.1171875 | CJ38: 0.128125 | CK38: 0.146875 | CL38: 0.1546875 | CM38: 0.1640625 | CN38: 0.1734375 | CO38: 0.1828125 | CP38: 0.2 | CQ38: 0.2 | CR38: 0.2
D39: s(CSU) % | G39: s(SU) % | AF39: Horz 2 | AG39: 0.4 | AH39: 0.4 | AI39: 0.4 | AJ39: 0.3890625 | AK39: 0.38125 | AL39: 0.36875 | AM39: 0.3546875 | AN39: 0.3453125 | AO39: 0.3359375 | AP39: 0.321875 | AQ39: 0.3078125 | AR39: 0.3046875 | AS39: 0.3 | AT39: 0.3 | AU39: 0.3 | AV39: 0.3 | AW39: 0.2890625 | AX39: 0.2703125 | AY39: 0.253125 | AZ39: 0.2421875 | BA39: 0.2375 | BB39: 0.2328125 | BC39: 0.225 | BD39: 0.2171875 | BE39: 0.2 | BF39: 0.2 | BG39: 0.2 | BH39: 0.1921875 | BI39: 0.184375 | BJ39: 0.16875 | BK39: 0.159375 | BL39: 0.1515625 | BM39: 0.14375 | BN39: 0.134375 | BO39: 0.1171875 | BP39: 0.115625 | BQ39: 0.1109375 | BR39: 0.1078125 | BS39: 0.1 | BT39: 0.1 | BU39: 0.1 | BV39: 0.1 | BW39: 0.1 | BX39: 0.09375 | BY39: 0.078125 | BZ39: 0.0625 | CA39: 0.05 | CB39: 0.0359375 | CC39: 0.021875 | CD39: 0.0125 | CE39: 0 | CF39: 0 | CG39: 0 | CH39: 0 | CI39: 0 | CJ39: 0 | CK39: 0 | CL39: 0 | CM39: 0 | CN39: 0 | CO39: 0 | CP39: 0 | CQ39: 0 | CR39: 0
B40: N | C40: Ni | D40: Syst % | E40: Strat % | F40: Rand % | G40: Syst % | H40: Strat % | I40: Rand % | J40: s(FSU) % | K40: s(FSE) % | R40: 0.1367935888 | S40: 0.1643310547 | T40: 80.84654773 | V40: Table 2: | W40: Ratio: | X40: Sampling ratio M(L)/M(S) | AF40: Horz 3 | AG40: 0.6 | AH40: 0.6 | AI40: 0.6 | AJ40: 0.60984375 | AK40: 0.616875 | AL40: 0.628125 | AM40: 0.64078125 | AN40: 0.64921875 | AO40: 0.65765625 | AP40: 0.6703125 | AQ40: 0.68296875 | AR40: 0.68578125 | AS40: 0.69 | AT40: 0.69 | AU40: 0.69 | AV40: 0.69 | AW40: 0.69765625 | AX40: 0.71078125 | AY40: 0.7228125 | AZ40: 0.73046875 | BA40: 0.73375 | BB40: 0.73703125 | BC40: 0.7425 | BD40: 0.74796875 | BE40: 0.76 | BF40: 0.76 | BG40: 0.76 | BH40: 0.74359375 | BI40: 0.7271875 | BJ40: 0.694375 | BK40: 0.6746875 | BL40: 0.65828125 | BM40: 0.641875 | BN40: 0.6221875 | BO40: 0.58609375 | BP40: 0.5828125 | BQ40: 0.57296875 | BR40: 0.56640625 | BS40: 0.55 | BT40: 0.55 | BU40: 0.55 | BV40: 0.55 | BW40: 0.55 | BX40: 0.559375 | BY40: 0.5828125 | BZ40: 0.60625 | CA40: 0.625 | CB40: 0.64609375 | CC40: 0.6671875 | CD40: 0.68125 | CE40: 0.7 | CF40: 0.7 | CG40: 0.7 | CH40: 0.7 | CI40: 0.7171875 | CJ40: 0.728125 | CK40: 0.746875 | CL40: 0.7546875 | CM40: 0.7640625 | CN40: 0.7734375 | CO40: 0.7828125 | CP40: 0.8 | CQ40: 0.8 | CR40: 0.8
B41: =IF(L41="","",L41) -> 64 | C41: 1 | D41: =IF(G41<>"",SQRT($J41^2+G41^2),"") -> 72.23089275 | E41: =IF(H41<>"",SQRT($J41^2+H41^2),"") -> 72.23089275 | F41: 72.23089275 | G41: =IF(O41<>"",SQRT($T$14)*O41,"") -> 72.19264724 | H41: =IF(P41<>"",SQRT($T$14)*P41,"") -> 72.19264724 | I41: 72.19264724 | J41: =IF(O41="","",100*SQRT($T$15*R41)) -> 2.350223612 | K41: =IF(R40="","",100*SQRT($T$15*R40)) -> 3.094438756 | L41: 64 | M41: 8 | N41: 1 | O41: 72.19264724 | P41: 72.19264724 | Q41: 72.19264724 | R41: 0.07890787179 | S41: 0.1643310547 | T41: 80.84654773 | W41: kmx: | X41: No of classes (1-10) | AF41: Horz 4 | AG41: 0 | AH41: 0 | AI41: 0 | AJ41: 0 | AK41: 0 | AL41: 0 | AM41: 0 | AN41: 0 | AO41: 0 | AP41: 0 | AQ41: 0 | AR41: 0 | AS41: 0 | AT41: 0 | AU41: 0 | AV41: 0 | AW41: 0.0021875 | AX41: 0.0059375 | AY41: 0.009375 | AZ41: 0.0115625 | BA41: 0.0125 | BB41: 0.0134375 | BC41: 0.015 | BD41: 0.0165625 | BE41: 0.02 | BF41: 0.02 | BG41: 0.02 | BH41: 0.041875 | BI41: 0.06375 | BJ41: 0.1075 | BK41: 0.13375 | BL41: 0.155625 | BM41: 0.1775 | BN41: 0.20375 | BO41: 0.251875 | BP41: 0.25625 | BQ41: 0.269375 | BR41: 0.278125 | BS41: 0.3 | BT41: 0.3 | BU41: 0.3 | BV41: 0.3 | BW41: 0.3 | BX41: 0.29375 | BY41: 0.278125 | BZ41: 0.2625 | CA41: 0.25 | CB41: 0.2359375 | CC41: 0.221875 | CD41: 0.2125 | CE41: 0.2 | CF41: 0.2 | CG41: 0.2 | CH41: 0.2 | CI41: 0.165625 | CJ41: 0.14375 | CK41: 0.10625 | CL41: 0.090625 | CM41: 0.071875 | CN41: 0.053125 | CO41: 0.034375 | CP41: 0 | CQ41: 0 | CR41: 0
B42: =IF(L42="","",L42) -> 64 | C42: 8 | D42: =IF(G42<>"",SQRT($J42^2+G42^2),"") -> 9.384448474 | E42: 13.12871073 | F42: 26.38237896 | G42: =IF(O42<>"",SQRT($T$14)*O42,"") -> 9.085390588 | H42: 12.91663634 | I42: 26.27748786 | J42: 2.350223612 | L42: 64 | M42: 1 | N42: 8 | O42: 9.085390588 | P42: 12.91663634 | Q42: 26.27748786 | R42: 0.07890787179 | S42: 0.1643310547 | T42: 80.84654773 | W42: hmx: | X42: Horizontal length (1-256) | AF42: Horz 5
W43: vmx: | X43: Vertical depth (1-16) | AF43: Horz 6
W44: Run cases: | X44: Number of cases to run now | AF44: Vert 1 | AG44: 0.051875 | AH44: 0.0540625 | AI44: 0.054375 | AJ44: 0.05578125 | AK44: 0.05765625 | AL44: 0.05703125 | AM44: 0.0584375 | AN44: 0.0584375 | AO44: 0.0584375 | AP44: 0.060625 | AQ44: 0.06015625 | AR44: 0.06015625 | AS44: 0.0603125 | AT44: 0.05984375 | AU44: 0.0596875 | AV44: 0.06 | AW44: 0.05984375 | AX44: 0.05953125 | AY44: 0.0603125 | AZ44: 0.06015625 | BA44: 0.05875 | BB44: 0.05875 | BC44: 0.0571875 | BD44: 0.05734375 | BE44: 0.0565625 | BF44: 0.05515625 | BG44: 0.05578125 | BH44: 0.054375 | BI44: 0.0540625 | BJ44: 0.05265625 | BK44: 0.05328125 | BL44: 0.0525 | BM44: 0.0515625 | BN44: 0.0509375 | BO44: 0.0515625 | BP44: 0.05 | BQ44: 0.04984375 | BR44: 0.04984375 | BS44: 0.05015625 | BT44: 0.04984375 | BU44: 0.04984375 | BV44: 0.05 | BW44: 0.05 | BX44: 0.04984375 | BY44: 0.049375 | BZ44: 0.049375 | CA44: 0.05046875 | CB44: 0.05125 | CC44: 0.050625 | CD44: 0.0515625 | CE44: 0.05171875 | CF44: 0.0528125 | CG44: 0.05296875 | CH44: 0.05453125 | CI44: 0.05453125 | CJ44: 0.05625 | CK44: 0.055625 | CL44: 0.0559375 | CM44: 0.0559375 | CN44: 0.058125 | CO44: 0.058125 | CP44: 0.0565625 | CQ44: 0.0571875 | CR44: 0.056875
W45: ni: | X45: No of increments in a sample (>1). Grab sampling (ni = 1) is automatically included | AF45: Vert 2 | AG45: 0.171875 | AH45: 0.16875 | AI45: 0.165625 | AJ45: 0.1640625 | AK45: 0.1640625 | AL45: 0.1640625 | AM45: 0.165625 | AN45: 0.165625 | AO45: 0.165625 | AP45: 0.165625 | AQ45: 0.1671875 | AR45: 0.1671875 | AS45: 0.16875 | AT45: 0.1703125 | AU45: 0.171875 | AV45: 0.171875 | AW45: 0.1734375 | AX45: 0.1734375 | AY45: 0.171875 | AZ45: 0.1734375 | BA45: 0.171875 | BB45: 0.171875 | BC45: 0.171875 | BD45: 0.1703125 | BE45: 0.171875 | BF45: 0.1703125 | BG45: 0.1671875 | BH45: 0.165625 | BI45: 0.165625 | BJ45: 0.1640625 | BK45: 0.1609375 | BL45: 0.1625 | BM45: 0.159375 | BN45: 0.159375 | BO45: 0.15625 | BP45: 0.15625 | BQ45: 0.1546875 | BR45: 0.1546875 | BS45: 0.1515625 | BT45: 0.1515625 | BU45: 0.1515625 | BV45: 0.15 | BW45: 0.15 | BX45: 0.1515625 | BY45: 0.153125 | BZ45: 0.153125 | CA45: 0.1546875 | CB45: 0.153125 | CC45: 0.15625 | CD45: 0.159375 | CE45: 0.1609375 | CF45: 0.1625 | CG45: 0.1640625 | CH45: 0.1640625 | CI45: 0.1671875 | CJ45: 0.16875 | CK45: 0.171875 | CL45: 0.171875 | CM45: 0.171875 | CN45: 0.171875 | CO45: 0.171875 | CP45: 0.171875 | CQ45: 0.16875 | CR45: 0.16875
K46: =IF(P46="","",100*SQRT($T$14*S46)) ->  | W46: m(k): | X46: Mass of one fragment of class k | AF46: Vert 3 | AG46: 0.686875 | AH46: 0.6765625 | AI46: 0.669375 | AJ46: 0.66671875 | AK46: 0.66390625 | AL46: 0.66296875 | AM46: 0.6634375 | AN46: 0.6634375 | AO46: 0.6634375 | AP46: 0.6659375 | AQ46: 0.66921875 | AR46: 0.66921875 | AS46: 0.6734375 | AT46: 0.67671875 | AU46: 0.6753125 | AV46: 0.6809375 | AW46: 0.67953125 | AX46: 0.68390625 | AY46: 0.68625 | AZ46: 0.68484375 | BA46: 0.684375 | BB46: 0.684375 | BC46: 0.6828125 | BD46: 0.68390625 | BE46: 0.6815625 | BF46: 0.68109375 | BG46: 0.67921875 | BH46: 0.67875 | BI46: 0.673125 | BJ46: 0.67296875 | BK46: 0.67078125 | BL46: 0.6684375 | BM46: 0.665 | BN46: 0.66375 | BO46: 0.661875 | BP46: 0.6603125 | BQ46: 0.65609375 | BR46: 0.65609375 | BS46: 0.65859375 | BT46: 0.65296875 | BU46: 0.65296875 | BV46: 0.654375 | BW46: 0.654375 | BX46: 0.65328125 | BY46: 0.6565625 | BZ46: 0.6565625 | CA46: 0.66140625 | CB46: 0.66375 | CC46: 0.665625 | CD46: 0.669375 | CE46: 0.67359375 | CF46: 0.6784375 | CG46: 0.68265625 | CH46: 0.68421875 | CI46: 0.68734375 | CJ46: 0.693125 | CK46: 0.695 | CL46: 0.700625 | CM46: 0.7003125 | CN46: 0.7028125 | CO46: 0.7028125 | CP46: 0.7009375 | CQ46: 0.69875 | CR46: 0.693125
K47: =IF(P47="","",100*SQRT($T$14*S47)) ->  | W47: Name: | X47: Name of analyte in this case | AF47: Vert 4 | AG47: 0.089375 | AH47: 0.100625 | AI47: 0.110625 | AJ47: 0.1134375 | AK47: 0.114375 | AL47: 0.1159375 | AM47: 0.1125 | AN47: 0.1125 | AO47: 0.1125 | AP47: 0.1078125 | AQ47: 0.1034375 | AR47: 0.1034375 | AS47: 0.0975 | AT47: 0.093125 | AU47: 0.093125 | AV47: 0.0871875 | AW47: 0.0871875 | AX47: 0.083125 | AY47: 0.0815625 | AZ47: 0.0815625 | BA47: 0.085 | BB47: 0.085 | BC47: 0.088125 | BD47: 0.0884375 | BE47: 0.09 | BF47: 0.0934375 | BG47: 0.0978125 | BH47: 0.10125 | BI47: 0.1071875 | BJ47: 0.1103125 | BK47: 0.115 | BL47: 0.1165625 | BM47: 0.1240625 | BN47: 0.1259375 | BO47: 0.1303125 | BP47: 0.1334375 | BQ47: 0.139375 | BR47: 0.139375 | BS47: 0.1396875 | BT47: 0.145625 | BU47: 0.145625 | BV47: 0.145625 | BW47: 0.145625 | BX47: 0.1453125 | BY47: 0.1409375 | BZ47: 0.1409375 | CA47: 0.1334375 | CB47: 0.131875 | CC47: 0.1275 | CD47: 0.1196875 | CE47: 0.11375 | CF47: 0.10625 | CG47: 0.1003125 | CH47: 0.0971875 | CI47: 0.0909375 | CJ47: 0.081875 | CK47: 0.0775 | CL47: 0.0715625 | CM47: 0.071875 | CN47: 0.0671875 | CO47: 0.0671875 | CP47: 0.070625 | CQ47: 0.0753125 | CR47: 0.08125
W48: ak(i): | X48: Analyte concentration in class k in case , g/g | AF48: Vert 5
B49: Analyte 3 | C49: barley | D49: aL: | E49: =IF(S51="","",S51) -> 0.6743774414 | G49: RSD(aL) %: | H49: =IF(T51="","",T51) -> 10.72215941 | AF49: Vert 6
D50: s(CSU) % | G50: s(SU) % | V50: Table 3: | W50: s(FSE) %: | X50: s in % due to FSE, i.e. as if all boxes were mixed completely | AF50: Vario 1 | AG50: 1.458178323e-05 | AH50: 5.106831212e-05 | AI50: 0.0001090288006 | AJ50: 0.0001817877197 | AK50: 0.0002689161398 | AL50: 0.0003698433712 | AM50: 0.0004812020285 | AN50: 0.0006026430402 | AO50: 0.0007158979936 | AP50: 0.0008283808955 | AQ50: 0.0009282413123 | AR50: 0.001046482966 | AS50: 0.00118226438 | AT50: 0.001335216797 | AU50: 0.001491873107 | AV50: 0.001653971863 | AW50: 0.001815448907 | AX50: 0.00197278867 | AY50: 0.002124761556 | AZ50: 0.002263393333 | BA50: 0.002388464639 | BB50: 0.002514465623 | BC50: 0.002653386707 | BD50: 0.002806246948 | BE50: 0.002973429362 | BF50: 0.003158438913 | BG50: 0.003353233544 | BH50: 0.003564861043 | BI50: 0.003789345354 | BJ50: 0.004028741096 | BK50: 0.004262446733 | BL50: 0.004500882339
B51: N | C51: Ni | D51: Syst % | E51: Strat % | F51: Rand % | G51: Syst % | H51: Strat % | I51: Rand % | J51: s(FSU) % | K51: s(FSE) % | R51: 0.1012659683 | S51: 0.6743774414 | T51: 10.72215941 | W51: FSU % | X51: s in % due to FSU as function of actual distribution and sampling | AF51: Vario 2 | AG51: 3.859747024e-05 | AH51: 0.00014164094 | AI51: 0.0003026943519 | AJ51: 0.0005148722331 | AK51: 0.0007756844213 | AL51: 0.001083879142 | AM51: 0.001434261924 | AN51: 0.001827327183 | AO51: 0.002257057884 | AP51: 0.002719726562 | AQ51: 0.003222034382 | AR51: 0.003786010742 | AS51: 0.004415450751 | AT51: 0.005121191406 | AU51: 0.005909050143 | AV51: 0.006778004964 | AW51: 0.007700662816 | AX51: 0.008646691364 | AY51: 0.009607991536 | AZ51: 0.01059093129 | BA51: 0.01161331532 | BB51: 0.01269505092 | BC51: 0.01383393078 | BD51: 0.01503240967 | BE51: 0.0162511894 | BF51: 0.01757831774 | BG51: 0.0190069745 | BH51: 0.02051049127 | BI51: 0.02208771624 | BJ51: 0.02369327321 | BK51: 0.02530081084 | BL51: 0.02694339752
B52: =IF(L52="","",L52) -> 64 | C52: 1 | D52: =IF(G52<>"",SQRT($J52^2+G52^2),"") -> 9.488009182 | E52: =IF(H52<>"",SQRT($J52^2+H52^2),"") -> 9.488009182 | F52: 9.488009182 | G52: =IF(O52<>"",SQRT($T$14)*O52,"") -> 9.14189304 | H52: =IF(P52<>"",SQRT($T$14)*P52,"") -> 9.14189304 | I52: 9.14189304 | J52: =IF(O52="","",100*SQRT($T$15*R52)) -> 2.539312875 | K52: =IF(R51="","",100*SQRT($T$15*R51)) -> 2.662445826 | L52: 64 | M52: 8 | N52: 1 | O52: 9.14189304 | P52: 9.14189304 | Q52: 9.14189304 | R52: 0.09211585539 | S52: 0.6743774414 | T52: 10.72215941 | W52: SU % | X52: s in % due to GSE as function of actual distribution and sampling | AF52: Vario 3 | AG52: 8.410373264e-05 | AH52: 0.000303894043 | AI52: 0.0006530317463 | AJ52: 0.001106959432 | AK52: 0.001665540378 | AL52: 0.002310209919 | AM52: 0.003017859958 | AN52: 0.003778921291 | AO52: 0.004559077148 | AP52: 0.005351275861 | AQ52: 0.006113106436 | AR52: 0.006884750131 | AS52: 0.007648732862 | AT52: 0.008410496094 | AU52: 0.009114331055 | AV52: 0.009752944438 | AW52: 0.01026157902 | AX52: 0.01061182676 | AY52: 0.01079018365 | AZ52: 0.01077130127 | BA52: 0.01053500693 | BB52: 0.0101465643 | BC52: 0.009644514279 | BD52: 0.009025343628 | BE52: 0.008255508188 | BF52: 0.00737181268 | BG52: 0.006484961267 | BH52: 0.005589193726 | BI52: 0.004715642787 | BJ52: 0.003874042107 | BK52: 0.003221576113 | BL52: 0.002645508194
B53: =IF(L53="","",L53) -> 64 | C53: 8 | D53: =IF(G53<>"",SQRT($J53^2+G53^2),"") -> 2.698245724 | E53: 3.21038923 | F53: 4.318627238 | G53: =IF(O53<>"",SQRT($T$14)*O53,"") -> 0.9123705979 | H53: 1.964303726 | I53: 3.493197867 | J53: 2.539312875 | L53: 64 | M53: 1 | N53: 8 | O53: 0.9123705979 | P53: 1.964303726 | Q53: 3.493197867 | R53: 0.09211585539 | S53: 0.6743774414 | T53: 10.72215941 | W53: CSU % | X53: Total sampling uncertainty s in % as function of actual distribution and sampling | AF53: Vario 4 | AG53: 0.000120577567 | AH53: 0.000423234312 | AI53: 0.0009064661245 | AJ53: 0.00153265625 | AK53: 0.002310167836 | AL53: 0.003228729459 | AM53: 0.004248905222 | AN53: 0.005362154715 | AO53: 0.006478114347 | AP53: 0.007623842593 | AQ53: 0.008729532724 | AR53: 0.009908383413 | AS53: 0.01114289982 | AT53: 0.0124278125 | AU53: 0.01369790737 | AV53: 0.01495425212 | AW53: 0.01614484084 | AX53: 0.01726356254 | AY53: 0.01829091254 | AZ53: 0.01920690252 | BA53: 0.01996669695 | BB53: 0.02062428269 | BC53: 0.02120248071 | BD53: 0.02169404297 | BE53: 0.02209957682 | BF53: 0.02238629215 | BG53: 0.02271869985 | BH53: 0.02293781467 | BI53: 0.02310913225 | BJ53: 0.02310076402 | BK53: 0.02323436908 | BL53: 0.02334582214
W54: Syst %: | X54: Relative standard deviation in % for systematic sampling | AF54: Vario 5
W55: Strat%: | X55: Relative standard deviation in % for stratified random sampling | AF55: Vario 6
W56: Rand%: | X56: Relative standard deviation in % for random sampling | AF56: ni | AG56: 0 | AH56: 1 | AI56: 2 | AJ56: 3 | AK56: 4 | AL56: 5 | AM56: 6 | AN56: 7 | AO56: 8 | AP56: 9 | AQ56: 10 | AR56: 11 | AS56: 12 | AT56: 13 | AU56: 14 | AV56: 15 | AW56: 16 | AX56: 17 | AY56: 18 | AZ56: 19 | BA56: 20 | BB56: 21 | BC56: 22 | BD56: 23 | BE56: 24 | BF56: 25 | BG56: 26 | BH56: 27 | BI56: 28 | BJ56: 29 | BK56: 30 | BL56: 31 | BM56: 32 | BN56: 33 | BO56: 34 | BP56: 35 | BQ56: 36 | BR56: 37 | BS56: 38 | BT56: 39 | BU56: 40 | BV56: 41 | BW56: 42 | BX56: 43 | BY56: 44 | BZ56: 45 | CA56: 46 | CB56: 47 | CC56: 48 | CD56: 49 | CE56: 50 | CF56: 51 | CG56: 52 | CH56: 53 | CI56: 54 | CJ56: 55 | CK56: 56 | CL56: 57 | CM56: 58 | CN56: 59 | CO56: 60 | CP56: 61 | CQ56: 62 | CR56: 63 | CS56: 64 | CT56: 65 | CU56: 66 | CV56: 67 | CW56: 68 | CX56: 69 | CY56: 70 | CZ56: 71 | DA56: 72 | DB56: 73 | DC56: 74 | DD56: 75 | DE56: 76 | DF56: 77 | DG56: 78 | DH56: 79 | DI56: 80 | DJ56: 81 | DK56: 82 | DL56: 83 | DM56: 84 | DN56: 85 | DO56: 86 | DP56: 87 | DQ56: 88 | DR56: 89 | DS56: 90 | DT56: 91 | DU56: 92 | DV56: 93 | DW56: 94 | DX56: 95 | DY56: 96 | DZ56: 97 | EA56: 98 | EB56: 99 | EC56: 100 | ED56: 101 | EE56: 102 | EF56: 103 | EG56: 104 | EH56: 105 | EI56: 106 | EJ56: 107 | EK56: 108 | EL56: 109 | EM56: 110 | EN56: 111 | EO56: 112 | EP56: 113 | EQ56: 114 | ER56: 115 | ES56: 116 | ET56: 117 | EU56: 118 | EV56: 119 | EW56: 120 | EX56: 121 | EY56: 122 | EZ56: 123 | FA56: 124 | FB56: 125 | FC56: 126 | FD56: 127
K57: =IF(P57="","",100*SQRT($T$14*S57)) ->  | AF57: DFT F(z) | AG57: 3.32 | AH57: 1.829704162 | AI57: 0.8734795259 | AJ57: 0.6505557932 | AK57: 0.6885266693 | AL57: 0.6802857809 | AM57: 0.4631698005 | AN57: 0.3519056507 | AO57: 0.4829449924 | AP57: 0.2798111659 | AQ57: 0.184937819 | AR57: 0.1937277382 | AS57: 0.09778606721 | AT57: 0.03940178726 | AU57: 0.1299878633 | AV57: 0.1574278625 | AW57: 0.1104536102 | AX57: 0.2268835369 | AY57: 0.1946431969 | AZ57: 0.1537231716 | BA57: 0.1728849284 | BB57: 0.1855097005 | BC57: 0.1456433203 | BD57: 0.07478026773 | BE57: 0.1231427397 | BF57: 0.04513603589 | BG57: 0.05054016319 | BH57: 0.08751300196 | BI57: 0.09423222477 | BJ57: 0.09954984364 | BK57: 0.1579751665 | BL57: 0.1668948847 | BM57: 0.1 | BN57: 0.05692037893 | BO57: 0.04097849278 | BP57: 0.06493488671 | BQ57: 0.03122601972 | BR57: 0.04726871679 | BS57: 0.05075717672 | BT57: 0.06637267601 | BU57: 0.101925267 | BV57: 0.04327363498 | BW57: 0.02102684028 | BX57: 0.02249520724 | BY57: 0.05161557373 | BZ57: 0.01463766503 | CA57: 0.01436064413 | CB57: 0.03002591809 | CC57: 0.02160681873 | CD57: 0.02163757546 | CE57: 0.0107378186 | CF57: 0.01300129953 | CG57: 0.0329221385 | CH57: 0.01265698565 | CI57: 0.001407614769 | CJ57: 0.02637259383 | CK57: 0.02518824352 | CL57: 0.02028416296 | CM57: 0.01637486647 | CN57: 0.01107207021 | CO57: 0.01700044937 | CP57: 0.01099420912 | CQ57: 0.008360518818 | CR57: 0.007284701374 | CS57: 0.01326176261 | CT57: 0.005289837795 | CU57: 0.01010914444 | CV57: 0.006150758813 | CW57: 0.006050714634 | CX57: 0.008184809297 | CY57: 0.006137280735 | CZ57: 0.004095088392 | DA57: 0.006459258038 | DB57: =IF(DB59="","",IMABS(DB59)) -> 
K58: =IF(P58="","",100*SQRT($T$14*S58)) -> 
V59: Classes: | X59: 1-10 classes with or without analyte
B60: Analyte 4 | C60: steel | D60: aL: | E60: =IF(S62="","",S62) -> 0.1063476563 | G60: RSD(aL) %: | H60: =IF(T62="","",T62) -> 107.3991544 | X60: class: only SU is calculated
D61: s(CSU) % | G61: s(SU) % | V61: Horizontal: | X61: No limit of length, but if > 256 graphs needs to be modified
B62: N | C62: Ni | D62: Syst % | E62: Strat % | F62: Rand % | G62: Syst % | H62: Strat % | I62: Rand % | J62: s(FSU) % | K62: s(FSE) % | R62: 6.646688354 | S62: 0.1063476563 | T62: 107.3991544 | X62: If = 1 only FSU and FSE is calculated
B63: =IF(L63="","",L63) -> 64 | C63: 1 | D63: =IF(G63<>"",SQRT($J63^2+G63^2),"") -> 104.5657694 | E63: =IF(H63<>"",SQRT($J63^2+H63^2),"") -> 104.5657694 | F63: 104.5657694 | G63: =IF(O63<>"",SQRT($T$14)*O63,"") -> 103.43256 | H63: =IF(P63<>"",SQRT($T$14)*P63,"") -> 103.43256 | I63: 103.43256 | J63: =IF(O63="","",100*SQRT($T$15*R63)) -> 15.35270868 | K63: =IF(R62="","",100*SQRT($T$15*R62)) -> 21.57007614 | L63: 64 | M63: 8 | N63: 1 | O63: 103.43256 | P63: 103.43256 | Q63: 103.43256 | R63: 3.367223768 | S63: 0.1063476563 | T63: 107.3991544 | V63: Vertical: | X63: No limit of length, but if > 16 graphs needs to be modified
B64: =IF(L64="","",L64) -> 64 | C64: 8 | D64: =IF(G64<>"",SQRT($J64^2+G64^2),"") -> 15.43255771 | E64: 18.42560894 | F64: 38.99626972 | G64: =IF(O64<>"",SQRT($T$14)*O64,"") -> 1.567856453 | H64: 10.18810096 | I64: 35.84694391 | J64: 15.35270868 | L64: 64 | M64: 1 | N64: 8 | O64: 1.567856453 | P64: 10.18810096 | Q64: 35.84694391 | R64: 3.367223768 | S64: 0.1063476563 | T64: 107.3991544 | X64: If =1 FSU and FSE will be identical
D66: =IF(G66<>"",SQRT($J66^2+G66^2),"") -> 
K68: =IF(P68="","",100*SQRT($T$14*S68)) -> 
K69: =IF(P69="","",100*SQRT($T$14*S69)) ->  | V69: Organization of data:
V70: Horizontal in columns, vertical in rows, classes in kmx rows within each vertical depth
B71: Analyte 5 | C71: Analyte 5 | D71: aL: | E71: =IF(S73="","",S73) ->  | G71: RSD(aL) %: | H71: =IF(T73="","",T73) -> 
D72: s(CSU) % | G72: s(SU) % | X72: Horizontal
B73: N | C73: Ni | D73: Syst % | E73: Strat % | F73: Rand % | G73: Syst % | H73: Strat % | I73: Rand % | J73: s(FSU) % | K73: s(FSE) % | V73: Vertical | W73: Class | X73: 1 | Y73: 2 | Z73: … | AA73: hmx
B74: =IF(L74="","",L74) ->  | D74: =IF(G74<>"",SQRT($J74^2+G74^2),"") ->  | E74: =IF(H74<>"",SQRT($J74^2+H74^2),"") ->  | G74: =IF(O74<>"",SQRT($T$13)*O74,"") ->  | J74: =IF(O74="","",100*SQRT($T$15*R74)) ->  | K74: =IF(R73="","",100*SQRT($T$15*R73)) ->  | V74: 1 | W74: 1 | X74: B100 | Y74: C100 | Z74: … | AA74: …
B75: =IF(L75="","",L75) ->  | D75: =IF(G75<>"",SQRT($J75^2+G75^2),"") ->  | V75: 1 | W75: 2 | X75: B101 | Y75: C101 | Z75: … | AA75: …
V76: 1 | W76: … | X76: … | Y76: … | Z76: … | AA76: …
V77: 1 | W77: kmx | X77: … | Y77: … | Z77: … | AA77: …
V78: 2 | W78: 1 | X78: … | Y78: … | Z78: … | AA78: …
K79: =IF(P79="","",100*SQRT($T$14*S79)) ->  | V79: 2 | W79: 2 | X79: … | Y79: … | Z79: … | AA79: …
K80: =IF(P80="","",100*SQRT($T$14*S80)) ->  | V80: 2 | W80: … | X80: … | Y80: … | Z80: … | AA80: …
V81: 2 | W81: kmx | X81: … | Y81: … | Z81: … | AA81: …
B82: Analyte 6 | C82: 0 | D82: aL: | E82: =IF(S84="","",S84) ->  | G82: RSD(aL) %: | H82: =IF(T84="","",T84) ->  | V82: … | W82: 1 | X82: … | Y82: … | Z82: … | AA82: …
D83: s(CSU) % | G83: s(SU) % | V83: … | W83: 2 | X83: … | Y83: … | Z83: … | AA83: …
B84: N | C84: Ni | D84: Syst % | E84: Strat % | F84: Rand % | G84: Syst % | H84: Strat % | I84: Rand % | J84: s(FSU) % | K84: s(FSE) % | V84: … | W84: … | X84: … | Y84: … | Z84: … | AA84: …
B85: =IF(L85="","",L85) ->  | D85: =IF(G85<>"",SQRT($J85^2+G85^2),"") ->  | E85: =IF(H85<>"",SQRT($J85^2+H85^2),"") ->  | G85: =IF(O85<>"",SQRT($T$13)*O85,"") ->  | J85: =IF(O85="","",100*SQRT($T$15*R85)) ->  | K85: =IF(R84="","",100*SQRT($T$15*R84)) ->  | V85: … | W85: kmx | X85: … | Y85: … | Z85: … | AA85: …
B86: =IF(L86="","",L86) ->  | D86: =IF(G86<>"",SQRT($J86^2+G86^2),"") ->  | V86: vmx | W86: 1 | X86: … | Y86: … | Z86: … | AA86: …
V87: vmx | W87: 2 | X87: … | Y87: … | Z87: … | AA87: …
V88: vmx | W88: … | X88: … | Y88: … | Z88: … | AA88: …
V89: vmx | W89: kmx | X89: … | Y89: … | Z89: … | AA89: …
K90: =IF(P90="","",100*SQRT($T$14*S90)) -> 
K91: =IF(P91="","",100*SQRT($T$14*S91)) -> 
X92: Input are proportion of each class, x(k) = 0 to 1
X93: The sum of x(k) in each box must be 1
F94: NOTE: The input data must be average concentrations unaffected by FSE | X94: Error in concentrations are shown in cell AI33
X95: NOTE: The input data must be average concentrations unaffected by FSE
A96: Table 1 | F96: s2(CSU) = s2(FSU) + s2(SU) | I96: In this spreadsheet s(SU) = s(GSE)
A98: INPUT DATA IN THE WHITE CELLS starting in B100: | F98: (Row and Column no. 1, 2, 3… is only for information)
B99: 1 | C99: 2 | D99: 3 | E99: 4 | F99: 5 | G99: 6 | H99: 7 | I99: 8 | J99: 9 | K99: 10 | L99: 11 | M99: 12 | N99: 13 | O99: 14 | P99: 15 | Q99: 16 | R99: 17 | S99: 18 | T99: 19 | U99: 20 | V99: 21 | W99: 22 | X99: 23 | Y99: 24 | Z99: 25 | AA99: 26 | AB99: 27 | AC99: 28 | AD99: 29 | AE99: 30 | AF99: 31 | AG99: 32 | AH99: 33 | AI99: 34 | AJ99: 35 | AK99: 36 | AL99: 37 | AM99: 38 | AN99: 39 | AO99: 40 | AP99: 41 | AQ99: 42 | AR99: 43 | AS99: 44 | AT99: 45 | AU99: 46 | AV99: 47 | AW99: 48 | AX99: 49 | AY99: 50 | AZ99: 51 | BA99: 52 | BB99: 53 | BC99: 54 | BD99: 55 | BE99: 56 | BF99: 57 | BG99: 58 | BH99: 59 | BI99: 60 | BJ99: 61 | BK99: 62 | BL99: 63 | BM99: 64 | BN99: 65 | BO99: 66 | BP99: 67 | BQ99: 68 | BR99: 69 | BS99: 70 | BT99: 71 | BU99: 72 | BV99: 73 | BW99: 74 | BX99: 75 | BY99: 76 | BZ99: 77 | CA99: 78 | CB99: 79 | CC99: 80 | CD99: 81 | CE99: 82 | CF99: 83 | CG99: 84 | CH99: 85 | CI99: 86 | CJ99: 87 | CK99: 88 | CL99: 89 | CM99: 90 | CN99: 91 | CO99: 92 | CP99: 93 | CQ99: 94 | CR99: 95 | CS99: 96 | CT99: 97 | CU99: 98 | CV99: 99 | CW99: 100 | CX99: 101 | CY99: 102 | CZ99: 103 | DA99: 104 | DB99: 105 | DC99: 106 | DD99: 107 | DE99: 108 | DF99: 109 | DG99: 110 | DH99: 111 | DI99: 112 | DJ99: 113 | DK99: 114 | DL99: 115 | DM99: 116 | DN99: 117 | DO99: 118 | DP99: 119 | DQ99: 120 | DR99: 121 | DS99: 122 | DT99: 123 | DU99: 124 | DV99: 125 | DW99: 126 | DX99: 127 | DY99: 128 | DZ99: 129 | EA99: 130 | EB99: 131 | EC99: 132 | ED99: 133 | EE99: 134 | EF99: 135 | EG99: 136 | EH99: 137 | EI99: 138 | EJ99: 139 | EK99: 140 | EL99: 141 | EM99: 142 | EN99: 143 | EO99: 144
A100: 1 | B100: 0 | C100: 0 | D100: 0 | E100: 0 | F100: 0 | G100: 0 | H100: 0 | I100: 0 | J100: 0 | K100: 0 | L100: 0.01 | M100: 0.01 | N100: 0.01 | O100: 0.01 | P100: 0.01 | Q100: 0.01 | R100: 0.01 | S100: 0.01 | T100: 0.01 | U100: 0.01 | V100: 0.02 | W100: 0.02 | X100: 0.02 | Y100: 0.02 | Z100: 0.02 | AA100: 0.02 | AB100: 0.02 | AC100: 0.02 | AD100: 0.02 | AE100: 0.02 | AF100: 0.02 | AG100: 0.02 | AH100: 0.02 | AI100: 0.02 | AJ100: 0.02 | AK100: 0.02 | AL100: 0.05 | AM100: 0.05 | AN100: 0.05 | AO100: 0.05 | AP100: 0.05 | AQ100: 0.05 | AR100: 0.05 | AS100: 0.05 | AT100: 0.1 | AU100: 0.1 | AV100: 0.1 | AW100: 0.1 | AX100: 0.1 | AY100: 0.1 | AZ100: 0.1 | BA100: 0.1 | BB100: 0.1 | BC100: 0.1 | BD100: 0.1 | BE100: 0.1 | BF100: 0.1 | BG100: 0.1 | BH100: 0.1 | BI100: 0.2 | BJ100: 0.2 | BK100: 0.2 | BL100: 0.2 | BM100: 0.2
A101: 2 | B101: 0.4 | C101: 0.4 | D101: 0.4 | E101: 0.4 | F101: 0.4 | G101: 0.4 | H101: 0.4 | I101: 0.4 | J101: 0.4 | K101: 0.4 | L101: 0.3 | M101: 0.3 | N101: 0.3 | O101: 0.3 | P101: 0.3 | Q101: 0.3 | R101: 0.3 | S101: 0.3 | T101: 0.3 | U101: 0.3 | V101: 0.2 | W101: 0.2 | X101: 0.2 | Y101: 0.2 | Z101: 0.2 | AA101: 0.2 | AB101: 0.2 | AC101: 0.2 | AD101: 0.2 | AE101: 0.2 | AF101: 0.2 | AG101: 0.2 | AH101: 0.2 | AI101: 0.2 | AJ101: 0.2 | AK101: 0.2 | AL101: 0.1 | AM101: 0.1 | AN101: 0.1 | AO101: 0.1 | AP101: 0.1 | AQ101: 0.1 | AR101: 0.1 | AS101: 0.1 | AT101: 0 | AU101: 0 | AV101: 0 | AW101: 0 | AX101: 0 | AY101: 0 | AZ101: 0 | BA101: 0 | BB101: 0 | BC101: 0 | BD101: 0 | BE101: 0 | BF101: 0 | BG101: 0 | BH101: 0 | BI101: 0 | BJ101: 0 | BK101: 0 | BL101: 0 | BM101: 0
A102: 3 | B102: 0.6 | C102: 0.6 | D102: 0.6 | E102: 0.6 | F102: 0.6 | G102: 0.6 | H102: 0.6 | I102: 0.6 | J102: 0.6 | K102: 0.6 | L102: 0.69 | M102: 0.69 | N102: 0.69 | O102: 0.69 | P102: 0.69 | Q102: 0.69 | R102: 0.69 | S102: 0.69 | T102: 0.69 | U102: 0.69 | V102: 0.76 | W102: 0.76 | X102: 0.76 | Y102: 0.76 | Z102: 0.76 | AA102: 0.76 | AB102: 0.76 | AC102: 0.76 | AD102: 0.76 | AE102: 0.76 | AF102: 0.76 | AG102: 0.76 | AH102: 0.76 | AI102: 0.76 | AJ102: 0.76 | AK102: 0.76 | AL102: 0.55 | AM102: 0.55 | AN102: 0.55 | AO102: 0.55 | AP102: 0.55 | AQ102: 0.55 | AR102: 0.55 | AS102: 0.55 | AT102: 0.7 | AU102: 0.7 | AV102: 0.7 | AW102: 0.7 | AX102: 0.7 | AY102: 0.7 | AZ102: 0.7 | BA102: 0.7 | BB102: 0.7 | BC102: 0.7 | BD102: 0.7 | BE102: 0.7 | BF102: 0.7 | BG102: 0.7 | BH102: 0.7 | BI102: 0.8 | BJ102: 0.8 | BK102: 0.8 | BL102: 0.8 | BM102: 0.8
A103: 4 | B103: 0 | C103: 0 | D103: 0 | E103: 0 | F103: 0 | G103: 0 | H103: 0 | I103: 0 | J103: 0 | K103: 0 | L103: 0 | M103: 0 | N103: 0 | O103: 0 | P103: 0 | Q103: 0 | R103: 0 | S103: 0 | T103: 0 | U103: 0 | V103: 0.02 | W103: 0.02 | X103: 0.02 | Y103: 0.02 | Z103: 0.02 | AA103: 0.02 | AB103: 0.02 | AC103: 0.02 | AD103: 0.02 | AE103: 0.02 | AF103: 0.02 | AG103: 0.02 | AH103: 0.02 | AI103: 0.02 | AJ103: 0.02 | AK103: 0.02 | AL103: 0.3 | AM103: 0.3 | AN103: 0.3 | AO103: 0.3 | AP103: 0.3 | AQ103: 0.3 | AR103: 0.3 | AS103: 0.3 | AT103: 0.2 | AU103: 0.2 | AV103: 0.2 | AW103: 0.2 | AX103: 0.2 | AY103: 0.2 | AZ103: 0.2 | BA103: 0.2 | BB103: 0.2 | BC103: 0.2 | BD103: 0.2 | BE103: 0.2 | BF103: 0.2 | BG103: 0.2 | BH103: 0.2 | BI103: 0 | BJ103: 0 | BK103: 0 | BL103: 0 | BM103: 0
A104: 5 | B104: 0 | C104: 0 | D104: 0 | E104: 0 | F104: 0 | G104: 0 | H104: 0 | I104: 0 | J104: 0 | K104: 0.01 | L104: 0.01 | M104: 0.01 | N104: 0.01 | O104: 0.01 | P104: 0.01 | Q104: 0.01 | R104: 0.01 | S104: 0.01 | T104: 0.01 | U104: 0.01 | V104: 0.01 | W104: 0.02 | X104: 0.02 | Y104: 0.02 | Z104: 0.02 | AA104: 0.02 | AB104: 0.02 | AC104: 0.02 | AD104: 0.02 | AE104: 0.02 | AF104: 0.02 | AG104: 0.02 | AH104: 0.02 | AI104: 0.05 | AJ104: 0.05 | AK104: 0.05 | AL104: 0.05 | AM104: 0.05 | AN104: 0.05 | AO104: 0.05 | AP104: 0.05 | AQ104: 0.05 | AR104: 0.05 | AS104: 0.05 | AT104: 0.05 | AU104: 0.1 | AV104: 0.1 | AW104: 0.1 | AX104: 0.1 | AY104: 0.1 | AZ104: 0.1 | BA104: 0.1 | BB104: 0.1 | BC104: 0.1 | BD104: 0.1 | BE104: 0.1 | BF104: 0.1 | BG104: 0.1 | BH104: 0.2 | BI104: 0.2 | BJ104: 0.2 | BK104: 0.2 | BL104: 0.2 | BM104: 0.2
A105: 6 | B105: 0.4 | C105: 0.4 | D105: 0.4 | E105: 0.4 | F105: 0.4 | G105: 0.4 | H105: 0.4 | I105: 0.4 | J105: 0.4 | K105: 0.3 | L105: 0.3 | M105: 0.3 | N105: 0.3 | O105: 0.3 | P105: 0.3 | Q105: 0.3 | R105: 0.3 | S105: 0.3 | T105: 0.3 | U105: 0.3 | V105: 0.3 | W105: 0.2 | X105: 0.2 | Y105: 0.2 | Z105: 0.2 | AA105: 0.2 | AB105: 0.2 | AC105: 0.2 | AD105: 0.2 | AE105: 0.2 | AF105: 0.2 | AG105: 0.2 | AH105: 0.2 | AI105: 0.1 | AJ105: 0.1 | AK105: 0.1 | AL105: 0.1 | AM105: 0.1 | AN105: 0.1 | AO105: 0.1 | AP105: 0.1 | AQ105: 0.1 | AR105: 0.1 | AS105: 0.1 | AT105: 0.1 | AU105: 0 | AV105: 0 | AW105: 0 | AX105: 0 | AY105: 0 | AZ105: 0 | BA105: 0 | BB105: 0 | BC105: 0 | BD105: 0 | BE105: 0 | BF105: 0 | BG105: 0 | BH105: 0 | BI105: 0 | BJ105: 0 | BK105: 0 | BL105: 0 | BM105: 0
A106: 7 | B106: 0.6 | C106: 0.6 | D106: 0.6 | E106: 0.6 | F106: 0.6 | G106: 0.6 | H106: 0.6 | I106: 0.6 | J106: 0.6 | K106: 0.69 | L106: 0.69 | M106: 0.69 | N106: 0.69 | O106: 0.69 | P106: 0.69 | Q106: 0.69 | R106: 0.69 | S106: 0.69 | T106: 0.69 | U106: 0.69 | V106: 0.69 | W106: 0.76 | X106: 0.76 | Y106: 0.76 | Z106: 0.76 | AA106: 0.76 | AB106: 0.76 | AC106: 0.76 | AD106: 0.76 | AE106: 0.76 | AF106: 0.76 | AG106: 0.76 | AH106: 0.76 | AI106: 0.55 | AJ106: 0.55 | AK106: 0.55 | AL106: 0.55 | AM106: 0.55 | AN106: 0.55 | AO106: 0.55 | AP106: 0.55 | AQ106: 0.55 | AR106: 0.55 | AS106: 0.55 | AT106: 0.55 | AU106: 0.7 | AV106: 0.7 | AW106: 0.7 | AX106: 0.7 | AY106: 0.7 | AZ106: 0.7 | BA106: 0.7 | BB106: 0.7 | BC106: 0.7 | BD106: 0.7 | BE106: 0.7 | BF106: 0.7 | BG106: 0.7 | BH106: 0.8 | BI106: 0.8 | BJ106: 0.8 | BK106: 0.8 | BL106: 0.8 | BM106: 0.8
A107: 8 | B107: 0 | C107: 0 | D107: 0 | E107: 0 | F107: 0 | G107: 0 | H107: 0 | I107: 0 | J107: 0 | K107: 0 | L107: 0 | M107: 0 | N107: 0 | O107: 0 | P107: 0 | Q107: 0 | R107: 0 | S107: 0 | T107: 0 | U107: 0 | V107: 0 | W107: 0.02 | X107: 0.02 | Y107: 0.02 | Z107: 0.02 | AA107: 0.02 | AB107: 0.02 | AC107: 0.02 | AD107: 0.02 | AE107: 0.02 | AF107: 0.02 | AG107: 0.02 | AH107: 0.02 | AI107: 0.3 | AJ107: 0.3 | AK107: 0.3 | AL107: 0.3 | AM107: 0.3 | AN107: 0.3 | AO107: 0.3 | AP107: 0.3 | AQ107: 0.3 | AR107: 0.3 | AS107: 0.3 | AT107: 0.3 | AU107: 0.2 | AV107: 0.2 | AW107: 0.2 | AX107: 0.2 | AY107: 0.2 | AZ107: 0.2 | BA107: 0.2 | BB107: 0.2 | BC107: 0.2 | BD107: 0.2 | BE107: 0.2 | BF107: 0.2 | BG107: 0.2 | BH107: 0 | BI107: 0 | BJ107: 0 | BK107: 0 | BL107: 0 | BM107: 0
A108: 9 | B108: 0 | C108: 0 | D108: 0 | E108: 0 | F108: 0 | G108: 0 | H108: 0 | I108: 0.01 | J108: 0.01 | K108: 0.01 | L108: 0.01 | M108: 0.01 | N108: 0.01 | O108: 0.01 | P108: 0.01 | Q108: 0.01 | R108: 0.01 | S108: 0.01 | T108: 0.01 | U108: 0.01 | V108: 0.01 | W108: 0.01 | X108: 0.02 | Y108: 0.02 | Z108: 0.02 | AA108: 0.02 | AB108: 0.02 | AC108: 0.02 | AD108: 0.02 | AE108: 0.02 | AF108: 0.02 | AG108: 0.05 | AH108: 0.05 | AI108: 0.05 | AJ108: 0.05 | AK108: 0.05 | AL108: 0.05 | AM108: 0.05 | AN108: 0.05 | AO108: 0.05 | AP108: 0.05 | AQ108: 0.05 | AR108: 0.05 | AS108: 0.05 | AT108: 0.05 | AU108: 0.05 | AV108: 0.1 | AW108: 0.1 | AX108: 0.1 | AY108: 0.1 | AZ108: 0.1 | BA108: 0.1 | BB108: 0.1 | BC108: 0.1 | BD108: 0.1 | BE108: 0.1 | BF108: 0.1 | BG108: 0.1 | BH108: 0.2 | BI108: 0.2 | BJ108: 0.2 | BK108: 0.2 | BL108: 0.2 | BM108: 0.2
A109: 10 | B109: 0.4 | C109: 0.4 | D109: 0.4 | E109: 0.4 | F109: 0.4 | G109: 0.4 | H109: 0.4 | I109: 0.3 | J109: 0.3 | K109: 0.3 | L109: 0.3 | M109: 0.3 | N109: 0.3 | O109: 0.3 | P109: 0.3 | Q109: 0.3 | R109: 0.3 | S109: 0.3 | T109: 0.3 | U109: 0.3 | V109: 0.3 | W109: 0.3 | X109: 0.2 | Y109: 0.2 | Z109: 0.2 | AA109: 0.2 | AB109: 0.2 | AC109: 0.2 | AD109: 0.2 | AE109: 0.2 | AF109: 0.2 | AG109: 0.1 | AH109: 0.1 | AI109: 0.1 | AJ109: 0.1 | AK109: 0.1 | AL109: 0.1 | AM109: 0.1 | AN109: 0.1 | AO109: 0.1 | AP109: 0.1 | AQ109: 0.1 | AR109: 0.1 | AS109: 0.1 | AT109: 0.1 | AU109: 0.1 | AV109: 0 | AW109: 0 | AX109: 0 | AY109: 0 | AZ109: 0 | BA109: 0 | BB109: 0 | BC109: 0 | BD109: 0 | BE109: 0 | BF109: 0 | BG109: 0 | BH109: 0 | BI109: 0 | BJ109: 0 | BK109: 0 | BL109: 0 | BM109: 0
A110: 11 | B110: 0.6 | C110: 0.6 | D110: 0.6 | E110: 0.6 | F110: 0.6 | G110: 0.6 | H110: 0.6 | I110: 0.69 | J110: 0.69 | K110: 0.69 | L110: 0.69 | M110: 0.69 | N110: 0.69 | O110: 0.69 | P110: 0.69 | Q110: 0.69 | R110: 0.69 | S110: 0.69 | T110: 0.69 | U110: 0.69 | V110: 0.69 | W110: 0.69 | X110: 0.76 | Y110: 0.76 | Z110: 0.76 | AA110: 0.76 | AB110: 0.76 | AC110: 0.76 | AD110: 0.76 | AE110: 0.76 | AF110: 0.76 | AG110: 0.55 | AH110: 0.55 | AI110: 0.55 | AJ110: 0.55 | AK110: 0.55 | AL110: 0.55 | AM110: 0.55 | AN110: 0.55 | AO110: 0.55 | AP110: 0.55 | AQ110: 0.55 | AR110: 0.55 | AS110: 0.55 | AT110: 0.55 | AU110: 0.55 | AV110: 0.7 | AW110: 0.7 | AX110: 0.7 | AY110: 0.7 | AZ110: 0.7 | BA110: 0.7 | BB110: 0.7 | BC110: 0.7 | BD110: 0.7 | BE110: 0.7 | BF110: 0.7 | BG110: 0.7 | BH110: 0.8 | BI110: 0.8 | BJ110: 0.8 | BK110: 0.8 | BL110: 0.8 | BM110: 0.8
A111: 12 | B111: 0 | C111: 0 | D111: 0 | E111: 0 | F111: 0 | G111: 0 | H111: 0 | I111: 0 | J111: 0 | K111: 0 | L111: 0 | M111: 0 | N111: 0 | O111: 0 | P111: 0 | Q111: 0 | R111: 0 | S111: 0 | T111: 0 | U111: 0 | V111: 0 | W111: 0 | X111: 0.02 | Y111: 0.02 | Z111: 0.02 | AA111: 0.02 | AB111: 0.02 | AC111: 0.02 | AD111: 0.02 | AE111: 0.02 | AF111: 0.02 | AG111: 0.3 | AH111: 0.3 | AI111: 0.3 | AJ111: 0.3 | AK111: 0.3 | AL111: 0.3 | AM111: 0.3 | AN111: 0.3 | AO111: 0.3 | AP111: 0.3 | AQ111: 0.3 | AR111: 0.3 | AS111: 0.3 | AT111: 0.3 | AU111: 0.3 | AV111: 0.2 | AW111: 0.2 | AX111: 0.2 | AY111: 0.2 | AZ111: 0.2 | BA111: 0.2 | BB111: 0.2 | BC111: 0.2 | BD111: 0.2 | BE111: 0.2 | BF111: 0.2 | BG111: 0.2 | BH111: 0 | BI111: 0 | BJ111: 0 | BK111: 0 | BL111: 0 | BM111: 0
A112: 13 | B112: 0 | C112: 0 | D112: 0 | E112: 0 | F112: 0 | G112: 0 | H112: 0.01 | I112: 0.01 | J112: 0.01 | K112: 0.01 | L112: 0.01 | M112: 0.01 | N112: 0.01 | O112: 0.01 | P112: 0.01 | Q112: 0.01 | R112: 0.01 | S112: 0.01 | T112: 0.01 | U112: 0.01 | V112: 0.01 | W112: 0.01 | X112: 0.02 | Y112: 0.02 | Z112: 0.02 | AA112: 0.02 | AB112: 0.02 | AC112: 0.02 | AD112: 0.02 | AE112: 0.02 | AF112: 0.05 | AG112: 0.05 | AH112: 0.05 | AI112: 0.05 | AJ112: 0.05 | AK112: 0.05 | AL112: 0.05 | AM112: 0.05 | AN112: 0.05 | AO112: 0.05 | AP112: 0.05 | AQ112: 0.05 | AR112: 0.05 | AS112: 0.05 | AT112: 0.05 | AU112: 0.05 | AV112: 0.05 | AW112: 0.1 | AX112: 0.1 | AY112: 0.1 | AZ112: 0.1 | BA112: 0.1 | BB112: 0.1 | BC112: 0.1 | BD112: 0.1 | BE112: 0.1 | BF112: 0.1 | BG112: 0.2 | BH112: 0.2 | BI112: 0.2 | BJ112: 0.2 | BK112: 0.2 | BL112: 0.2 | BM112: 0.2
A113: 14 | B113: 0.4 | C113: 0.4 | D113: 0.4 | E113: 0.4 | F113: 0.4 | G113: 0.4 | H113: 0.3 | I113: 0.3 | J113: 0.3 | K113: 0.3 | L113: 0.3 | M113: 0.3 | N113: 0.3 | O113: 0.3 | P113: 0.3 | Q113: 0.3 | R113: 0.3 | S113: 0.3 | T113: 0.3 | U113: 0.3 | V113: 0.3 | W113: 0.3 | X113: 0.2 | Y113: 0.2 | Z113: 0.2 | AA113: 0.2 | AB113: 0.2 | AC113: 0.2 | AD113: 0.2 | AE113: 0.2 | AF113: 0.1 | AG113: 0.1 | AH113: 0.1 | AI113: 0.1 | AJ113: 0.1 | AK113: 0.1 | AL113: 0.1 | AM113: 0.1 | AN113: 0.1 | AO113: 0.1 | AP113: 0.1 | AQ113: 0.1 | AR113: 0.1 | AS113: 0.1 | AT113: 0.1 | AU113: 0.1 | AV113: 0.1 | AW113: 0 | AX113: 0 | AY113: 0 | AZ113: 0 | BA113: 0 | BB113: 0 | BC113: 0 | BD113: 0 | BE113: 0 | BF113: 0 | BG113: 0 | BH113: 0 | BI113: 0 | BJ113: 0 | BK113: 0 | BL113: 0 | BM113: 0
A114: 15 | B114: 0.6 | C114: 0.6 | D114: 0.6 | E114: 0.6 | F114: 0.6 | G114: 0.6 | H114: 0.69 | I114: 0.69 | J114: 0.69 | K114: 0.69 | L114: 0.69 | M114: 0.69 | N114: 0.69 | O114: 0.69 | P114: 0.69 | Q114: 0.69 | R114: 0.69 | S114: 0.69 | T114: 0.69 | U114: 0.69 | V114: 0.69 | W114: 0.69 | X114: 0.76 | Y114: 0.76 | Z114: 0.76 | AA114: 0.76 | AB114: 0.76 | AC114: 0.76 | AD114: 0.76 | AE114: 0.76 | AF114: 0.55 | AG114: 0.55 | AH114: 0.55 | AI114: 0.55 | AJ114: 0.55 | AK114: 0.55 | AL114: 0.55 | AM114: 0.55 | AN114: 0.55 | AO114: 0.55 | AP114: 0.55 | AQ114: 0.55 | AR114: 0.55 | AS114: 0.55 | AT114: 0.55 | AU114: 0.55 | AV114: 0.55 | AW114: 0.7 | AX114: 0.7 | AY114: 0.7 | AZ114: 0.7 | BA114: 0.7 | BB114: 0.7 | BC114: 0.7 | BD114: 0.7 | BE114: 0.7 | BF114: 0.7 | BG114: 0.8 | BH114: 0.8 | BI114: 0.8 | BJ114: 0.8 | BK114: 0.8 | BL114: 0.8 | BM114: 0.8
A115: 16 | B115: 0 | C115: 0 | D115: 0 | E115: 0 | F115: 0 | G115: 0 | H115: 0 | I115: 0 | J115: 0 | K115: 0 | L115: 0 | M115: 0 | N115: 0 | O115: 0 | P115: 0 | Q115: 0 | R115: 0 | S115: 0 | T115: 0 | U115: 0 | V115: 0 | W115: 0 | X115: 0.02 | Y115: 0.02 | Z115: 0.02 | AA115: 0.02 | AB115: 0.02 | AC115: 0.02 | AD115: 0.02 | AE115: 0.02 | AF115: 0.3 | AG115: 0.3 | AH115: 0.3 | AI115: 0.3 | AJ115: 0.3 | AK115: 0.3 | AL115: 0.3 | AM115: 0.3 | AN115: 0.3 | AO115: 0.3 | AP115: 0.3 | AQ115: 0.3 | AR115: 0.3 | AS115: 0.3 | AT115: 0.3 | AU115: 0.3 | AV115: 0.3 | AW115: 0.2 | AX115: 0.2 | AY115: 0.2 | AZ115: 0.2 | BA115: 0.2 | BB115: 0.2 | BC115: 0.2 | BD115: 0.2 | BE115: 0.2 | BF115: 0.2 | BG115: 0 | BH115: 0 | BI115: 0 | BJ115: 0 | BK115: 0 | BL115: 0 | BM115: 0
A116: 17 | B116: 0 | C116: 0 | D116: 0 | E116: 0 | F116: 0 | G116: 0 | H116: 0.01 | I116: 0.01 | J116: 0.01 | K116: 0.01 | L116: 0.01 | M116: 0.01 | N116: 0.01 | O116: 0.01 | P116: 0.01 | Q116: 0.01 | R116: 0.01 | S116: 0.01 | T116: 0.01 | U116: 0.01 | V116: 0.01 | W116: 0.01 | X116: 0.01 | Y116: 0.02 | Z116: 0.02 | AA116: 0.02 | AB116: 0.02 | AC116: 0.02 | AD116: 0.02 | AE116: 0.05 | AF116: 0.05 | AG116: 0.05 | AH116: 0.05 | AI116: 0.05 | AJ116: 0.05 | AK116: 0.05 | AL116: 0.05 | AM116: 0.05 | AN116: 0.05 | AO116: 0.05 | AP116: 0.05 | AQ116: 0.05 | AR116: 0.05 | AS116: 0.05 | AT116: 0.05 | AU116: 0.05 | AV116: 0.05 | AW116: 0.1 | AX116: 0.1 | AY116: 0.1 | AZ116: 0.1 | BA116: 0.1 | BB116: 0.1 | BC116: 0.1 | BD116: 0.1 | BE116: 0.1 | BF116: 0.2 | BG116: 0.2 | BH116: 0.2 | BI116: 0.2 | BJ116: 0.2 | BK116: 0.2 | BL116: 0.2 | BM116: 0.2
A117: 18 | B117: 0.4 | C117: 0.4 | D117: 0.4 | E117: 0.4 | F117: 0.4 | G117: 0.4 | H117: 0.3 | I117: 0.3 | J117: 0.3 | K117: 0.3 | L117: 0.3 | M117: 0.3 | N117: 0.3 | O117: 0.3 | P117: 0.3 | Q117: 0.3 | R117: 0.3 | S117: 0.3 | T117: 0.3 | U117: 0.3 | V117: 0.3 | W117: 0.3 | X117: 0.3 | Y117: 0.2 | Z117: 0.2 | AA117: 0.2 | AB117: 0.2 | AC117: 0.2 | AD117: 0.2 | AE117: 0.1 | AF117: 0.1 | AG117: 0.1 | AH117: 0.1 | AI117: 0.1 | AJ117: 0.1 | AK117: 0.1 | AL117: 0.1 | AM117: 0.1 | AN117: 0.1 | AO117: 0.1 | AP117: 0.1 | AQ117: 0.1 | AR117: 0.1 | AS117: 0.1 | AT117: 0.1 | AU117: 0.1 | AV117: 0.1 | AW117: 0 | AX117: 0 | AY117: 0 | AZ117: 0 | BA117: 0 | BB117: 0 | BC117: 0 | BD117: 0 | BE117: 0 | BF117: 0 | BG117: 0 | BH117: 0 | BI117: 0 | BJ117: 0 | BK117: 0 | BL117: 0 | BM117: 0
A118: 19 | B118: 0.6 | C118: 0.6 | D118: 0.6 | E118: 0.6 | F118: 0.6 | G118: 0.6 | H118: 0.69 | I118: 0.69 | J118: 0.69 | K118: 0.69 | L118: 0.69 | M118: 0.69 | N118: 0.69 | O118: 0.69 | P118: 0.69 | Q118: 0.69 | R118: 0.69 | S118: 0.69 | T118: 0.69 | U118: 0.69 | V118: 0.69 | W118: 0.69 | X118: 0.69 | Y118: 0.76 | Z118: 0.76 | AA118: 0.76 | AB118: 0.76 | AC118: 0.76 | AD118: 0.76 | AE118: 0.55 | AF118: 0.55 | AG118: 0.55 | AH118: 0.55 | AI118: 0.55 | AJ118: 0.55 | AK118: 0.55 | AL118: 0.55 | AM118: 0.55 | AN118: 0.55 | AO118: 0.55 | AP118: 0.55 | AQ118: 0.55 | AR118: 0.55 | AS118: 0.55 | AT118: 0.55 | AU118: 0.55 | AV118: 0.55 | AW118: 0.7 | AX118: 0.7 | AY118: 0.7 | AZ118: 0.7 | BA118: 0.7 | BB118: 0.7 | BC118: 0.7 | BD118: 0.7 | BE118: 0.7 | BF118: 0.8 | BG118: 0.8 | BH118: 0.8 | BI118: 0.8 | BJ118: 0.8 | BK118: 0.8 | BL118: 0.8 | BM118: 0.8
A119: 20 | B119: 0 | C119: 0 | D119: 0 | E119: 0 | F119: 0 | G119: 0 | H119: 0 | I119: 0 | J119: 0 | K119: 0 | L119: 0 | M119: 0 | N119: 0 | O119: 0 | P119: 0 | Q119: 0 | R119: 0 | S119: 0 | T119: 0 | U119: 0 | V119: 0 | W119: 0 | X119: 0 | Y119: 0.02 | Z119: 0.02 | AA119: 0.02 | AB119: 0.02 | AC119: 0.02 | AD119: 0.02 | AE119: 0.3 | AF119: 0.3 | AG119: 0.3 | AH119: 0.3 | AI119: 0.3 | AJ119: 0.3 | AK119: 0.3 | AL119: 0.3 | AM119: 0.3 | AN119: 0.3 | AO119: 0.3 | AP119: 0.3 | AQ119: 0.3 | AR119: 0.3 | AS119: 0.3 | AT119: 0.3 | AU119: 0.3 | AV119: 0.3 | AW119: 0.2 | AX119: 0.2 | AY119: 0.2 | AZ119: 0.2 | BA119: 0.2 | BB119: 0.2 | BC119: 0.2 | BD119: 0.2 | BE119: 0.2 | BF119: 0 | BG119: 0 | BH119: 0 | BI119: 0 | BJ119: 0 | BK119: 0 | BL119: 0 | BM119: 0
A120: 21 | B120: 0 | C120: 0 | D120: 0 | E120: 0 | F120: 0 | G120: 0.01 | H120: 0.01 | I120: 0.01 | J120: 0.01 | K120: 0.01 | L120: 0.01 | M120: 0.01 | N120: 0.01 | O120: 0.01 | P120: 0.01 | Q120: 0.01 | R120: 0.01 | S120: 0.01 | T120: 0.01 | U120: 0.01 | V120: 0.01 | W120: 0.01 | X120: 0.01 | Y120: 0.02 | Z120: 0.02 | AA120: 0.02 | AB120: 0.02 | AC120: 0.02 | AD120: 0.02 | AE120: 0.05 | AF120: 0.05 | AG120: 0.05 | AH120: 0.05 | AI120: 0.05 | AJ120: 0.05 | AK120: 0.05 | AL120: 0.05 | AM120: 0.05 | AN120: 0.05 | AO120: 0.05 | AP120: 0.05 | AQ120: 0.05 | AR120: 0.05 | AS120: 0.05 | AT120: 0.05 | AU120: 0.05 | AV120: 0.05 | AW120: 0.05 | AX120: 0.1 | AY120: 0.1 | AZ120: 0.1 | BA120: 0.1 | BB120: 0.1 | BC120: 0.1 | BD120: 0.1 | BE120: 0.1 | BF120: 0.2 | BG120: 0.2 | BH120: 0.2 | BI120: 0.2 | BJ120: 0.2 | BK120: 0.2 | BL120: 0.2 | BM120: 0.2
A121: 22 | B121: 0.4 | C121: 0.4 | D121: 0.4 | E121: 0.4 | F121: 0.4 | G121: 0.3 | H121: 0.3 | I121: 0.3 | J121: 0.3 | K121: 0.3 | L121: 0.3 | M121: 0.3 | N121: 0.3 | O121: 0.3 | P121: 0.3 | Q121: 0.3 | R121: 0.3 | S121: 0.3 | T121: 0.3 | U121: 0.3 | V121: 0.3 | W121: 0.3 | X121: 0.3 | Y121: 0.2 | Z121: 0.2 | AA121: 0.2 | AB121: 0.2 | AC121: 0.2 | AD121: 0.2 | AE121: 0.1 | AF121: 0.1 | AG121: 0.1 | AH121: 0.1 | AI121: 0.1 | AJ121: 0.1 | AK121: 0.1 | AL121: 0.1 | AM121: 0.1 | AN121: 0.1 | AO121: 0.1 | AP121: 0.1 | AQ121: 0.1 | AR121: 0.1 | AS121: 0.1 | AT121: 0.1 | AU121: 0.1 | AV121: 0.1 | AW121: 0.1 | AX121: 0 | AY121: 0 | AZ121: 0 | BA121: 0 | BB121: 0 | BC121: 0 | BD121: 0 | BE121: 0 | BF121: 0 | BG121: 0 | BH121: 0 | BI121: 0 | BJ121: 0 | BK121: 0 | BL121: 0 | BM121: 0
A122: 23 | B122: 0.6 | C122: 0.6 | D122: 0.6 | E122: 0.6 | F122: 0.6 | G122: 0.69 | H122: 0.69 | I122: 0.69 | J122: 0.69 | K122: 0.69 | L122: 0.69 | M122: 0.69 | N122: 0.69 | O122: 0.69 | P122: 0.69 | Q122: 0.69 | R122: 0.69 | S122: 0.69 | T122: 0.69 | U122: 0.69 | V122: 0.69 | W122: 0.69 | X122: 0.69 | Y122: 0.76 | Z122: 0.76 | AA122: 0.76 | AB122: 0.76 | AC122: 0.76 | AD122: 0.76 | AE122: 0.55 | AF122: 0.55 | AG122: 0.55 | AH122: 0.55 | AI122: 0.55 | AJ122: 0.55 | AK122: 0.55 | AL122: 0.55 | AM122: 0.55 | AN122: 0.55 | AO122: 0.55 | AP122: 0.55 | AQ122: 0.55 | AR122: 0.55 | AS122: 0.55 | AT122: 0.55 | AU122: 0.55 | AV122: 0.55 | AW122: 0.55 | AX122: 0.7 | AY122: 0.7 | AZ122: 0.7 | BA122: 0.7 | BB122: 0.7 | BC122: 0.7 | BD122: 0.7 | BE122: 0.7 | BF122: 0.8 | BG122: 0.8 | BH122: 0.8 | BI122: 0.8 | BJ122: 0.8 | BK122: 0.8 | BL122: 0.8 | BM122: 0.8
A123: 24 | B123: 0 | C123: 0 | D123: 0 | E123: 0 | F123: 0 | G123: 0 | H123: 0 | I123: 0 | J123: 0 | K123: 0 | L123: 0 | M123: 0 | N123: 0 | O123: 0 | P123: 0 | Q123: 0 | R123: 0 | S123: 0 | T123: 0 | U123: 0 | V123: 0 | W123: 0 | X123: 0 | Y123: 0.02 | Z123: 0.02 | AA123: 0.02 | AB123: 0.02 | AC123: 0.02 | AD123: 0.02 | AE123: 0.3 | AF123: 0.3 | AG123: 0.3 | AH123: 0.3 | AI123: 0.3 | AJ123: 0.3 | AK123: 0.3 | AL123: 0.3 | AM123: 0.3 | AN123: 0.3 | AO123: 0.3 | AP123: 0.3 | AQ123: 0.3 | AR123: 0.3 | AS123: 0.3 | AT123: 0.3 | AU123: 0.3 | AV123: 0.3 | AW123: 0.3 | AX123: 0.2 | AY123: 0.2 | AZ123: 0.2 | BA123: 0.2 | BB123: 0.2 | BC123: 0.2 | BD123: 0.2 | BE123: 0.2 | BF123: 0 | BG123: 0 | BH123: 0 | BI123: 0 | BJ123: 0 | BK123: 0 | BL123: 0 | BM123: 0
A124: 25 | B124: 0 | C124: 0 | D124: 0 | E124: 0 | F124: 0 | G124: 0.01 | H124: 0.01 | I124: 0.01 | J124: 0.01 | K124: 0.01 | L124: 0.01 | M124: 0.01 | N124: 0.01 | O124: 0.01 | P124: 0.01 | Q124: 0.01 | R124: 0.01 | S124: 0.01 | T124: 0.01 | U124: 0.01 | V124: 0.01 | W124: 0.01 | X124: 0.01 | Y124: 0.01 | Z124: 0.02 | AA124: 0.02 | AB124: 0.02 | AC124: 0.02 | AD124: 0.02 | AE124: 0.05 | AF124: 0.05 | AG124: 0.05 | AH124: 0.05 | AI124: 0.05 | AJ124: 0.05 | AK124: 0.05 | AL124: 0.05 | AM124: 0.05 | AN124: 0.05 | AO124: 0.05 | AP124: 0.05 | AQ124: 0.05 | AR124: 0.05 | AS124: 0.05 | AT124: 0.05 | AU124: 0.05 | AV124: 0.05 | AW124: 0.05 | AX124: 0.1 | AY124: 0.1 | AZ124: 0.1 | BA124: 0.1 | BB124: 0.1 | BC124: 0.1 | BD124: 0.1 | BE124: 0.2 | BF124: 0.2 | BG124: 0.2 | BH124: 0.2 | BI124: 0.2 | BJ124: 0.2 | BK124: 0.2 | BL124: 0.2 | BM124: 0.2
A125: 26 | B125: 0.4 | C125: 0.4 | D125: 0.4 | E125: 0.4 | F125: 0.4 | G125: 0.3 | H125: 0.3 | I125: 0.3 | J125: 0.3 | K125: 0.3 | L125: 0.3 | M125: 0.3 | N125: 0.3 | O125: 0.3 | P125: 0.3 | Q125: 0.3 | R125: 0.3 | S125: 0.3 | T125: 0.3 | U125: 0.3 | V125: 0.3 | W125: 0.3 | X125: 0.3 | Y125: 0.3 | Z125: 0.2 | AA125: 0.2 | AB125: 0.2 | AC125: 0.2 | AD125: 0.2 | AE125: 0.1 | AF125: 0.1 | AG125: 0.1 | AH125: 0.1 | AI125: 0.1 | AJ125: 0.1 | AK125: 0.1 | AL125: 0.1 | AM125: 0.1 | AN125: 0.1 | AO125: 0.1 | AP125: 0.1 | AQ125: 0.1 | AR125: 0.1 | AS125: 0.1 | AT125: 0.1 | AU125: 0.1 | AV125: 0.1 | AW125: 0.1 | AX125: 0 | AY125: 0 | AZ125: 0 | BA125: 0 | BB125: 0 | BC125: 0 | BD125: 0 | BE125: 0 | BF125: 0 | BG125: 0 | BH125: 0 | BI125: 0 | BJ125: 0 | BK125: 0 | BL125: 0 | BM125: 0
A126: 27 | B126: 0.6 | C126: 0.6 | D126: 0.6 | E126: 0.6 | F126: 0.6 | G126: 0.69 | H126: 0.69 | I126: 0.69 | J126: 0.69 | K126: 0.69 | L126: 0.69 | M126: 0.69 | N126: 0.69 | O126: 0.69 | P126: 0.69 | Q126: 0.69 | R126: 0.69 | S126: 0.69 | T126: 0.69 | U126: 0.69 | V126: 0.69 | W126: 0.69 | X126: 0.69 | Y126: 0.69 | Z126: 0.76 | AA126: 0.76 | AB126: 0.76 | AC126: 0.76 | AD126: 0.76 | AE126: 0.55 | AF126: 0.55 | AG126: 0.55 | AH126: 0.55 | AI126: 0.55 | AJ126: 0.55 | AK126: 0.55 | AL126: 0.55 | AM126: 0.55 | AN126: 0.55 | AO126: 0.55 | AP126: 0.55 | AQ126: 0.55 | AR126: 0.55 | AS126: 0.55 | AT126: 0.55 | AU126: 0.55 | AV126: 0.55 | AW126: 0.55 | AX126: 0.7 | AY126: 0.7 | AZ126: 0.7 | BA126: 0.7 | BB126: 0.7 | BC126: 0.7 | BD126: 0.7 | BE126: 0.8 | BF126: 0.8 | BG126: 0.8 | BH126: 0.8 | BI126: 0.8 | BJ126: 0.8 | BK126: 0.8 | BL126: 0.8 | BM126: 0.8
A127: 28 | B127: 0 | C127: 0 | D127: 0 | E127: 0 | F127: 0 | G127: 0 | H127: 0 | I127: 0 | J127: 0 | K127: 0 | L127: 0 | M127: 0 | N127: 0 | O127: 0 | P127: 0 | Q127: 0 | R127: 0 | S127: 0 | T127: 0 | U127: 0 | V127: 0 | W127: 0 | X127: 0 | Y127: 0 | Z127: 0.02 | AA127: 0.02 | AB127: 0.02 | AC127: 0.02 | AD127: 0.02 | AE127: 0.3 | AF127: 0.3 | AG127: 0.3 | AH127: 0.3 | AI127: 0.3 | AJ127: 0.3 | AK127: 0.3 | AL127: 0.3 | AM127: 0.3 | AN127: 0.3 | AO127: 0.3 | AP127: 0.3 | AQ127: 0.3 | AR127: 0.3 | AS127: 0.3 | AT127: 0.3 | AU127: 0.3 | AV127: 0.3 | AW127: 0.3 | AX127: 0.2 | AY127: 0.2 | AZ127: 0.2 | BA127: 0.2 | BB127: 0.2 | BC127: 0.2 | BD127: 0.2 | BE127: 0 | BF127: 0 | BG127: 0 | BH127: 0 | BI127: 0 | BJ127: 0 | BK127: 0 | BL127: 0 | BM127: 0
A128: 29 | B128: 0 | C128: 0 | D128: 0 | E128: 0 | F128: 0 | G128: 0.01 | H128: 0.01 | I128: 0.01 | J128: 0.01 | K128: 0.01 | L128: 0.01 | M128: 0.01 | N128: 0.01 | O128: 0.01 | P128: 0.01 | Q128: 0.01 | R128: 0.01 | S128: 0.01 | T128: 0.01 | U128: 0.01 | V128: 0.01 | W128: 0.01 | X128: 0.01 | Y128: 0.01 | Z128: 0.02 | AA128: 0.02 | AB128: 0.02 | AC128: 0.02 | AD128: 0.02 | AE128: 0.05 | AF128: 0.05 | AG128: 0.05 | AH128: 0.05 | AI128: 0.05 | AJ128: 0.05 | AK128: 0.05 | AL128: 0.05 | AM128: 0.05 | AN128: 0.05 | AO128: 0.05 | AP128: 0.05 | AQ128: 0.05 | AR128: 0.05 | AS128: 0.05 | AT128: 0.05 | AU128: 0.05 | AV128: 0.05 | AW128: 0.05 | AX128: 0.1 | AY128: 0.1 | AZ128: 0.1 | BA128: 0.1 | BB128: 0.1 | BC128: 0.1 | BD128: 0.1 | BE128: 0.2 | BF128: 0.2 | BG128: 0.2 | BH128: 0.2 | BI128: 0.2 | BJ128: 0.2 | BK128: 0.2 | BL128: 0.2 | BM128: 0.2
A129: 30 | B129: 0.4 | C129: 0.4 | D129: 0.4 | E129: 0.4 | F129: 0.4 | G129: 0.3 | H129: 0.3 | I129: 0.3 | J129: 0.3 | K129: 0.3 | L129: 0.3 | M129: 0.3 | N129: 0.3 | O129: 0.3 | P129: 0.3 | Q129: 0.3 | R129: 0.3 | S129: 0.3 | T129: 0.3 | U129: 0.3 | V129: 0.3 | W129: 0.3 | X129: 0.3 | Y129: 0.3 | Z129: 0.2 | AA129: 0.2 | AB129: 0.2 | AC129: 0.2 | AD129: 0.2 | AE129: 0.1 | AF129: 0.1 | AG129: 0.1 | AH129: 0.1 | AI129: 0.1 | AJ129: 0.1 | AK129: 0.1 | AL129: 0.1 | AM129: 0.1 | AN129: 0.1 | AO129: 0.1 | AP129: 0.1 | AQ129: 0.1 | AR129: 0.1 | AS129: 0.1 | AT129: 0.1 | AU129: 0.1 | AV129: 0.1 | AW129: 0.1 | AX129: 0 | AY129: 0 | AZ129: 0 | BA129: 0 | BB129: 0 | BC129: 0 | BD129: 0 | BE129: 0 | BF129: 0 | BG129: 0 | BH129: 0 | BI129: 0 | BJ129: 0 | BK129: 0 | BL129: 0 | BM129: 0
A130: 31 | B130: 0.6 | C130: 0.6 | D130: 0.6 | E130: 0.6 | F130: 0.6 | G130: 0.69 | H130: 0.69 | I130: 0.69 | J130: 0.69 | K130: 0.69 | L130: 0.69 | M130: 0.69 | N130: 0.69 | O130: 0.69 | P130: 0.69 | Q130: 0.69 | R130: 0.69 | S130: 0.69 | T130: 0.69 | U130: 0.69 | V130: 0.69 | W130: 0.69 | X130: 0.69 | Y130: 0.69 | Z130: 0.76 | AA130: 0.76 | AB130: 0.76 | AC130: 0.76 | AD130: 0.76 | AE130: 0.55 | AF130: 0.55 | AG130: 0.55 | AH130: 0.55 | AI130: 0.55 | AJ130: 0.55 | AK130: 0.55 | AL130: 0.55 | AM130: 0.55 | AN130: 0.55 | AO130: 0.55 | AP130: 0.55 | AQ130: 0.55 | AR130: 0.55 | AS130: 0.55 | AT130: 0.55 | AU130: 0.55 | AV130: 0.55 | AW130: 0.55 | AX130: 0.7 | AY130: 0.7 | AZ130: 0.7 | BA130: 0.7 | BB130: 0.7 | BC130: 0.7 | BD130: 0.7 | BE130: 0.8 | BF130: 0.8 | BG130: 0.8 | BH130: 0.8 | BI130: 0.8 | BJ130: 0.8 | BK130: 0.8 | BL130: 0.8 | BM130: 0.8
A131: 32 | B131: 0 | C131: 0 | D131: 0 | E131: 0 | F131: 0 | G131: 0 | H131: 0 | I131: 0 | J131: 0 | K131: 0 | L131: 0 | M131: 0 | N131: 0 | O131: 0 | P131: 0 | Q131: 0 | R131: 0 | S131: 0 | T131: 0 | U131: 0 | V131: 0 | W131: 0 | X131: 0 | Y131: 0 | Z131: 0.02 | AA131: 0.02 | AB131: 0.02 | AC131: 0.02 | AD131: 0.02 | AE131: 0.3 | AF131: 0.3 | AG131: 0.3 | AH131: 0.3 | AI131: 0.3 | AJ131: 0.3 | AK131: 0.3 | AL131: 0.3 | AM131: 0.3 | AN131: 0.3 | AO131: 0.3 | AP131: 0.3 | AQ131: 0.3 | AR131: 0.3 | AS131: 0.3 | AT131: 0.3 | AU131: 0.3 | AV131: 0.3 | AW131: 0.3 | AX131: 0.2 | AY131: 0.2 | AZ131: 0.2 | BA131: 0.2 | BB131: 0.2 | BC131: 0.2 | BD131: 0.2 | BE131: 0 | BF131: 0 | BG131: 0 | BH131: 0 | BI131: 0 | BJ131: 0 | BK131: 0 | BL131: 0 | BM131: 0
A132: 33 | B132: 0 | C132: 0 | D132: 0 | E132: 0 | F132: 0 | G132: 0.01 | H132: 0.01 | I132: 0.01 | J132: 0.01 | K132: 0.01 | L132: 0.01 | M132: 0.01 | N132: 0.01 | O132: 0.01 | P132: 0.01 | Q132: 0.01 | R132: 0.01 | S132: 0.01 | T132: 0.01 | U132: 0.01 | V132: 0.01 | W132: 0.01 | X132: 0.01 | Y132: 0.01 | Z132: 0.02 | AA132: 0.02 | AB132: 0.02 | AC132: 0.02 | AD132: 0.02 | AE132: 0.05 | AF132: 0.05 | AG132: 0.05 | AH132: 0.05 | AI132: 0.05 | AJ132: 0.05 | AK132: 0.05 | AL132: 0.05 | AM132: 0.05 | AN132: 0.05 | AO132: 0.05 | AP132: 0.05 | AQ132: 0.05 | AR132: 0.05 | AS132: 0.05 | AT132: 0.05 | AU132: 0.05 | AV132: 0.05 | AW132: 0.05 | AX132: 0.1 | AY132: 0.1 | AZ132: 0.1 | BA132: 0.1 | BB132: 0.1 | BC132: 0.1 | BD132: 0.1 | BE132: 0.2 | BF132: 0.2 | BG132: 0.2 | BH132: 0.2 | BI132: 0.2 | BJ132: 0.2 | BK132: 0.2 | BL132: 0.2 | BM132: 0.2
A133: 34 | B133: 0.4 | C133: 0.4 | D133: 0.4 | E133: 0.4 | F133: 0.4 | G133: 0.3 | H133: 0.3 | I133: 0.3 | J133: 0.3 | K133: 0.3 | L133: 0.3 | M133: 0.3 | N133: 0.3 | O133: 0.3 | P133: 0.3 | Q133: 0.3 | R133: 0.3 | S133: 0.3 | T133: 0.3 | U133: 0.3 | V133: 0.3 | W133: 0.3 | X133: 0.3 | Y133: 0.3 | Z133: 0.2 | AA133: 0.2 | AB133: 0.2 | AC133: 0.2 | AD133: 0.2 | AE133: 0.1 | AF133: 0.1 | AG133: 0.1 | AH133: 0.1 | AI133: 0.1 | AJ133: 0.1 | AK133: 0.1 | AL133: 0.1 | AM133: 0.1 | AN133: 0.1 | AO133: 0.1 | AP133: 0.1 | AQ133: 0.1 | AR133: 0.1 | AS133: 0.1 | AT133: 0.1 | AU133: 0.1 | AV133: 0.1 | AW133: 0.1 | AX133: 0 | AY133: 0 | AZ133: 0 | BA133: 0 | BB133: 0 | BC133: 0 | BD133: 0 | BE133: 0 | BF133: 0 | BG133: 0 | BH133: 0 | BI133: 0 | BJ133: 0 | BK133: 0 | BL133: 0 | BM133: 0
A134: 35 | B134: 0.6 | C134: 0.6 | D134: 0.6 | E134: 0.6 | F134: 0.6 | G134: 0.69 | H134: 0.69 | I134: 0.69 | J134: 0.69 | K134: 0.69 | L134: 0.69 | M134: 0.69 | N134: 0.69 | O134: 0.69 | P134: 0.69 | Q134: 0.69 | R134: 0.69 | S134: 0.69 | T134: 0.69 | U134: 0.69 | V134: 0.69 | W134: 0.69 | X134: 0.69 | Y134: 0.69 | Z134: 0.76 | AA134: 0.76 | AB134: 0.76 | AC134: 0.76 | AD134: 0.76 | AE134: 0.55 | AF134: 0.55 | AG134: 0.55 | AH134: 0.55 | AI134: 0.55 | AJ134: 0.55 | AK134: 0.55 | AL134: 0.55 | AM134: 0.55 | AN134: 0.55 | AO134: 0.55 | AP134: 0.55 | AQ134: 0.55 | AR134: 0.55 | AS134: 0.55 | AT134: 0.55 | AU134: 0.55 | AV134: 0.55 | AW134: 0.55 | AX134: 0.7 | AY134: 0.7 | AZ134: 0.7 | BA134: 0.7 | BB134: 0.7 | BC134: 0.7 | BD134: 0.7 | BE134: 0.8 | BF134: 0.8 | BG134: 0.8 | BH134: 0.8 | BI134: 0.8 | BJ134: 0.8 | BK134: 0.8 | BL134: 0.8 | BM134: 0.8
A135: 36 | B135: 0 | C135: 0 | D135: 0 | E135: 0 | F135: 0 | G135: 0 | H135: 0 | I135: 0 | J135: 0 | K135: 0 | L135: 0 | M135: 0 | N135: 0 | O135: 0 | P135: 0 | Q135: 0 | R135: 0 | S135: 0 | T135: 0 | U135: 0 | V135: 0 | W135: 0 | X135: 0 | Y135: 0 | Z135: 0.02 | AA135: 0.02 | AB135: 0.02 | AC135: 0.02 | AD135: 0.02 | AE135: 0.3 | AF135: 0.3 | AG135: 0.3 | AH135: 0.3 | AI135: 0.3 | AJ135: 0.3 | AK135: 0.3 | AL135: 0.3 | AM135: 0.3 | AN135: 0.3 | AO135: 0.3 | AP135: 0.3 | AQ135: 0.3 | AR135: 0.3 | AS135: 0.3 | AT135: 0.3 | AU135: 0.3 | AV135: 0.3 | AW135: 0.3 | AX135: 0.2 | AY135: 0.2 | AZ135: 0.2 | BA135: 0.2 | BB135: 0.2 | BC135: 0.2 | BD135: 0.2 | BE135: 0 | BF135: 0 | BG135: 0 | BH135: 0 | BI135: 0 | BJ135: 0 | BK135: 0 | BL135: 0 | BM135: 0
A136: 37 | B136: 0 | C136: 0 | D136: 0 | E136: 0 | F136: 0 | G136: 0 | H136: 0.01 | I136: 0.01 | J136: 0.01 | K136: 0.01 | L136: 0.01 | M136: 0.01 | N136: 0.01 | O136: 0.01 | P136: 0.01 | Q136: 0.01 | R136: 0.01 | S136: 0.01 | T136: 0.01 | U136: 0.01 | V136: 0.01 | W136: 0.01 | X136: 0.01 | Y136: 0.01 | Z136: 0.02 | AA136: 0.02 | AB136: 0.02 | AC136: 0.02 | AD136: 0.02 | AE136: 0.05 | AF136: 0.05 | AG136: 0.05 | AH136: 0.05 | AI136: 0.05 | AJ136: 0.05 | AK136: 0.05 | AL136: 0.05 | AM136: 0.05 | AN136: 0.05 | AO136: 0.05 | AP136: 0.05 | AQ136: 0.05 | AR136: 0.05 | AS136: 0.05 | AT136: 0.05 | AU136: 0.05 | AV136: 0.05 | AW136: 0.1 | AX136: 0.1 | AY136: 0.1 | AZ136: 0.1 | BA136: 0.1 | BB136: 0.1 | BC136: 0.1 | BD136: 0.2 | BE136: 0.2 | BF136: 0.2 | BG136: 0.2 | BH136: 0.2 | BI136: 0.2 | BJ136: 0.2 | BK136: 0.2 | BL136: 0.2 | BM136: 0.2
A137: 38 | B137: 0.4 | C137: 0.4 | D137: 0.4 | E137: 0.4 | F137: 0.4 | G137: 0.4 | H137: 0.3 | I137: 0.3 | J137: 0.3 | K137: 0.3 | L137: 0.3 | M137: 0.3 | N137: 0.3 | O137: 0.3 | P137: 0.3 | Q137: 0.3 | R137: 0.3 | S137: 0.3 | T137: 0.3 | U137: 0.3 | V137: 0.3 | W137: 0.3 | X137: 0.3 | Y137: 0.3 | Z137: 0.2 | AA137: 0.2 | AB137: 0.2 | AC137: 0.2 | AD137: 0.2 | AE137: 0.1 | AF137: 0.1 | AG137: 0.1 | AH137: 0.1 | AI137: 0.1 | AJ137: 0.1 | AK137: 0.1 | AL137: 0.1 | AM137: 0.1 | AN137: 0.1 | AO137: 0.1 | AP137: 0.1 | AQ137: 0.1 | AR137: 0.1 | AS137: 0.1 | AT137: 0.1 | AU137: 0.1 | AV137: 0.1 | AW137: 0 | AX137: 0 | AY137: 0 | AZ137: 0 | BA137: 0 | BB137: 0 | BC137: 0 | BD137: 0 | BE137: 0 | BF137: 0 | BG137: 0 | BH137: 0 | BI137: 0 | BJ137: 0 | BK137: 0 | BL137: 0 | BM137: 0
A138: 39 | B138: 0.6 | C138: 0.6 | D138: 0.6 | E138: 0.6 | F138: 0.6 | G138: 0.6 | H138: 0.69 | I138: 0.69 | J138: 0.69 | K138: 0.69 | L138: 0.69 | M138: 0.69 | N138: 0.69 | O138: 0.69 | P138: 0.69 | Q138: 0.69 | R138: 0.69 | S138: 0.69 | T138: 0.69 | U138: 0.69 | V138: 0.69 | W138: 0.69 | X138: 0.69 | Y138: 0.69 | Z138: 0.76 | AA138: 0.76 | AB138: 0.76 | AC138: 0.76 | AD138: 0.76 | AE138: 0.55 | AF138: 0.55 | AG138: 0.55 | AH138: 0.55 | AI138: 0.55 | AJ138: 0.55 | AK138: 0.55 | AL138: 0.55 | AM138: 0.55 | AN138: 0.55 | AO138: 0.55 | AP138: 0.55 | AQ138: 0.55 | AR138: 0.55 | AS138: 0.55 | AT138: 0.55 | AU138: 0.55 | AV138: 0.55 | AW138: 0.7 | AX138: 0.7 | AY138: 0.7 | AZ138: 0.7 | BA138: 0.7 | BB138: 0.7 | BC138: 0.7 | BD138: 0.8 | BE138: 0.8 | BF138: 0.8 | BG138: 0.8 | BH138: 0.8 | BI138: 0.8 | BJ138: 0.8 | BK138: 0.8 | BL138: 0.8 | BM138: 0.8
A139: 40 | B139: 0 | C139: 0 | D139: 0 | E139: 0 | F139: 0 | G139: 0 | H139: 0 | I139: 0 | J139: 0 | K139: 0 | L139: 0 | M139: 0 | N139: 0 | O139: 0 | P139: 0 | Q139: 0 | R139: 0 | S139: 0 | T139: 0 | U139: 0 | V139: 0 | W139: 0 | X139: 0 | Y139: 0 | Z139: 0.02 | AA139: 0.02 | AB139: 0.02 | AC139: 0.02 | AD139: 0.02 | AE139: 0.3 | AF139: 0.3 | AG139: 0.3 | AH139: 0.3 | AI139: 0.3 | AJ139: 0.3 | AK139: 0.3 | AL139: 0.3 | AM139: 0.3 | AN139: 0.3 | AO139: 0.3 | AP139: 0.3 | AQ139: 0.3 | AR139: 0.3 | AS139: 0.3 | AT139: 0.3 | AU139: 0.3 | AV139: 0.3 | AW139: 0.2 | AX139: 0.2 | AY139: 0.2 | AZ139: 0.2 | BA139: 0.2 | BB139: 0.2 | BC139: 0.2 | BD139: 0 | BE139: 0 | BF139: 0 | BG139: 0 | BH139: 0 | BI139: 0 | BJ139: 0 | BK139: 0 | BL139: 0 | BM139: 0
A140: 41 | B140: 0 | C140: 0 | D140: 0 | E140: 0 | F140: 0 | G140: 0 | H140: 0.01 | I140: 0.01 | J140: 0.01 | K140: 0.01 | L140: 0.01 | M140: 0.01 | N140: 0.01 | O140: 0.01 | P140: 0.01 | Q140: 0.01 | R140: 0.01 | S140: 0.01 | T140: 0.01 | U140: 0.01 | V140: 0.01 | W140: 0.01 | X140: 0.01 | Y140: 0.01 | Z140: 0.02 | AA140: 0.02 | AB140: 0.02 | AC140: 0.02 | AD140: 0.02 | AE140: 0.02 | AF140: 0.05 | AG140: 0.05 | AH140: 0.05 | AI140: 0.05 | AJ140: 0.05 | AK140: 0.05 | AL140: 0.05 | AM140: 0.05 | AN140: 0.05 | AO140: 0.05 | AP140: 0.05 | AQ140: 0.05 | AR140: 0.05 | AS140: 0.05 | AT140: 0.05 | AU140: 0.05 | AV140: 0.05 | AW140: 0.1 | AX140: 0.1 | AY140: 0.1 | AZ140: 0.1 | BA140: 0.1 | BB140: 0.1 | BC140: 0.1 | BD140: 0.2 | BE140: 0.2 | BF140: 0.2 | BG140: 0.2 | BH140: 0.2 | BI140: 0.2 | BJ140: 0.2 | BK140: 0.2 | BL140: 0.2 | BM140: 0.2
A141: 42 | B141: 0.4 | C141: 0.4 | D141: 0.4 | E141: 0.4 | F141: 0.4 | G141: 0.4 | H141: 0.3 | I141: 0.3 | J141: 0.3 | K141: 0.3 | L141: 0.3 | M141: 0.3 | N141: 0.3 | O141: 0.3 | P141: 0.3 | Q141: 0.3 | R141: 0.3 | S141: 0.3 | T141: 0.3 | U141: 0.3 | V141: 0.3 | W141: 0.3 | X141: 0.3 | Y141: 0.3 | Z141: 0.2 | AA141: 0.2 | AB141: 0.2 | AC141: 0.2 | AD141: 0.2 | AE141: 0.2 | AF141: 0.1 | AG141: 0.1 | AH141: 0.1 | AI141: 0.1 | AJ141: 0.1 | AK141: 0.1 | AL141: 0.1 | AM141: 0.1 | AN141: 0.1 | AO141: 0.1 | AP141: 0.1 | AQ141: 0.1 | AR141: 0.1 | AS141: 0.1 | AT141: 0.1 | AU141: 0.1 | AV141: 0.1 | AW141: 0 | AX141: 0 | AY141: 0 | AZ141: 0 | BA141: 0 | BB141: 0 | BC141: 0 | BD141: 0 | BE141: 0 | BF141: 0 | BG141: 0 | BH141: 0 | BI141: 0 | BJ141: 0 | BK141: 0 | BL141: 0 | BM141: 0
A142: 43 | B142: 0.6 | C142: 0.6 | D142: 0.6 | E142: 0.6 | F142: 0.6 | G142: 0.6 | H142: 0.69 | I142: 0.69 | J142: 0.69 | K142: 0.69 | L142: 0.69 | M142: 0.69 | N142: 0.69 | O142: 0.69 | P142: 0.69 | Q142: 0.69 | R142: 0.69 | S142: 0.69 | T142: 0.69 | U142: 0.69 | V142: 0.69 | W142: 0.69 | X142: 0.69 | Y142: 0.69 | Z142: 0.76 | AA142: 0.76 | AB142: 0.76 | AC142: 0.76 | AD142: 0.76 | AE142: 0.76 | AF142: 0.55 | AG142: 0.55 | AH142: 0.55 | AI142: 0.55 | AJ142: 0.55 | AK142: 0.55 | AL142: 0.55 | AM142: 0.55 | AN142: 0.55 | AO142: 0.55 | AP142: 0.55 | AQ142: 0.55 | AR142: 0.55 | AS142: 0.55 | AT142: 0.55 | AU142: 0.55 | AV142: 0.55 | AW142: 0.7 | AX142: 0.7 | AY142: 0.7 | AZ142: 0.7 | BA142: 0.7 | BB142: 0.7 | BC142: 0.7 | BD142: 0.8 | BE142: 0.8 | BF142: 0.8 | BG142: 0.8 | BH142: 0.8 | BI142: 0.8 | BJ142: 0.8 | BK142: 0.8 | BL142: 0.8 | BM142: 0.8
A143: 44 | B143: 0 | C143: 0 | D143: 0 | E143: 0 | F143: 0 | G143: 0 | H143: 0 | I143: 0 | J143: 0 | K143: 0 | L143: 0 | M143: 0 | N143: 0 | O143: 0 | P143: 0 | Q143: 0 | R143: 0 | S143: 0 | T143: 0 | U143: 0 | V143: 0 | W143: 0 | X143: 0 | Y143: 0 | Z143: 0.02 | AA143: 0.02 | AB143: 0.02 | AC143: 0.02 | AD143: 0.02 | AE143: 0.02 | AF143: 0.3 | AG143: 0.3 | AH143: 0.3 | AI143: 0.3 | AJ143: 0.3 | AK143: 0.3 | AL143: 0.3 | AM143: 0.3 | AN143: 0.3 | AO143: 0.3 | AP143: 0.3 | AQ143: 0.3 | AR143: 0.3 | AS143: 0.3 | AT143: 0.3 | AU143: 0.3 | AV143: 0.3 | AW143: 0.2 | AX143: 0.2 | AY143: 0.2 | AZ143: 0.2 | BA143: 0.2 | BB143: 0.2 | BC143: 0.2 | BD143: 0 | BE143: 0 | BF143: 0 | BG143: 0 | BH143: 0 | BI143: 0 | BJ143: 0 | BK143: 0 | BL143: 0 | BM143: 0
A144: 45 | B144: 0 | C144: 0 | D144: 0 | E144: 0 | F144: 0 | G144: 0 | H144: 0.01 | I144: 0.01 | J144: 0.01 | K144: 0.01 | L144: 0.01 | M144: 0.01 | N144: 0.01 | O144: 0.01 | P144: 0.01 | Q144: 0.01 | R144: 0.01 | S144: 0.01 | T144: 0.01 | U144: 0.01 | V144: 0.01 | W144: 0.01 | X144: 0.01 | Y144: 0.01 | Z144: 0.02 | AA144: 0.02 | AB144: 0.02 | AC144: 0.02 | AD144: 0.02 | AE144: 0.02 | AF144: 0.05 | AG144: 0.05 | AH144: 0.05 | AI144: 0.05 | AJ144: 0.05 | AK144: 0.05 | AL144: 0.05 | AM144: 0.05 | AN144: 0.05 | AO144: 0.05 | AP144: 0.05 | AQ144: 0.05 | AR144: 0.05 | AS144: 0.05 | AT144: 0.05 | AU144: 0.05 | AV144: 0.05 | AW144: 0.1 | AX144: 0.1 | AY144: 0.1 | AZ144: 0.1 | BA144: 0.1 | BB144: 0.1 | BC144: 0.1 | BD144: 0.2 | BE144: 0.2 | BF144: 0.2 | BG144: 0.2 | BH144: 0.2 | BI144: 0.2 | BJ144: 0.2 | BK144: 0.2 | BL144: 0.2 | BM144: 0.2
A145: 46 | B145: 0.4 | C145: 0.4 | D145: 0.4 | E145: 0.4 | F145: 0.4 | G145: 0.4 | H145: 0.3 | I145: 0.3 | J145: 0.3 | K145: 0.3 | L145: 0.3 | M145: 0.3 | N145: 0.3 | O145: 0.3 | P145: 0.3 | Q145: 0.3 | R145: 0.3 | S145: 0.3 | T145: 0.3 | U145: 0.3 | V145: 0.3 | W145: 0.3 | X145: 0.3 | Y145: 0.3 | Z145: 0.2 | AA145: 0.2 | AB145: 0.2 | AC145: 0.2 | AD145: 0.2 | AE145: 0.2 | AF145: 0.1 | AG145: 0.1 | AH145: 0.1 | AI145: 0.1 | AJ145: 0.1 | AK145: 0.1 | AL145: 0.1 | AM145: 0.1 | AN145: 0.1 | AO145: 0.1 | AP145: 0.1 | AQ145: 0.1 | AR145: 0.1 | AS145: 0.1 | AT145: 0.1 | AU145: 0.1 | AV145: 0.1 | AW145: 0 | AX145: 0 | AY145: 0 | AZ145: 0 | BA145: 0 | BB145: 0 | BC145: 0 | BD145: 0 | BE145: 0 | BF145: 0 | BG145: 0 | BH145: 0 | BI145: 0 | BJ145: 0 | BK145: 0 | BL145: 0 | BM145: 0
A146: 47 | B146: 0.6 | C146: 0.6 | D146: 0.6 | E146: 0.6 | F146: 0.6 | G146: 0.6 | H146: 0.69 | I146: 0.69 | J146: 0.69 | K146: 0.69 | L146: 0.69 | M146: 0.69 | N146: 0.69 | O146: 0.69 | P146: 0.69 | Q146: 0.69 | R146: 0.69 | S146: 0.69 | T146: 0.69 | U146: 0.69 | V146: 0.69 | W146: 0.69 | X146: 0.69 | Y146: 0.69 | Z146: 0.76 | AA146: 0.76 | AB146: 0.76 | AC146: 0.76 | AD146: 0.76 | AE146: 0.76 | AF146: 0.55 | AG146: 0.55 | AH146: 0.55 | AI146: 0.55 | AJ146: 0.55 | AK146: 0.55 | AL146: 0.55 | AM146: 0.55 | AN146: 0.55 | AO146: 0.55 | AP146: 0.55 | AQ146: 0.55 | AR146: 0.55 | AS146: 0.55 | AT146: 0.55 | AU146: 0.55 | AV146: 0.55 | AW146: 0.7 | AX146: 0.7 | AY146: 0.7 | AZ146: 0.7 | BA146: 0.7 | BB146: 0.7 | BC146: 0.7 | BD146: 0.8 | BE146: 0.8 | BF146: 0.8 | BG146: 0.8 | BH146: 0.8 | BI146: 0.8 | BJ146: 0.8 | BK146: 0.8 | BL146: 0.8 | BM146: 0.8
A147: 48 | B147: 0 | C147: 0 | D147: 0 | E147: 0 | F147: 0 | G147: 0 | H147: 0 | I147: 0 | J147: 0 | K147: 0 | L147: 0 | M147: 0 | N147: 0 | O147: 0 | P147: 0 | Q147: 0 | R147: 0 | S147: 0 | T147: 0 | U147: 0 | V147: 0 | W147: 0 | X147: 0 | Y147: 0 | Z147: 0.02 | AA147: 0.02 | AB147: 0.02 | AC147: 0.02 | AD147: 0.02 | AE147: 0.02 | AF147: 0.3 | AG147: 0.3 | AH147: 0.3 | AI147: 0.3 | AJ147: 0.3 | AK147: 0.3 | AL147: 0.3 | AM147: 0.3 | AN147: 0.3 | AO147: 0.3 | AP147: 0.3 | AQ147: 0.3 | AR147: 0.3 | AS147: 0.3 | AT147: 0.3 | AU147: 0.3 | AV147: 0.3 | AW147: 0.2 | AX147: 0.2 | AY147: 0.2 | AZ147: 0.2 | BA147: 0.2 | BB147: 0.2 | BC147: 0.2 | BD147: 0 | BE147: 0 | BF147: 0 | BG147: 0 | BH147: 0 | BI147: 0 | BJ147: 0 | BK147: 0 | BL147: 0 | BM147: 0
A148: 49 | B148: 0 | C148: 0 | D148: 0 | E148: 0 | F148: 0 | G148: 0 | H148: 0 | I148: 0.01 | J148: 0.01 | K148: 0.01 | L148: 0.01 | M148: 0.01 | N148: 0.01 | O148: 0.01 | P148: 0.01 | Q148: 0.01 | R148: 0.01 | S148: 0.01 | T148: 0.01 | U148: 0.01 | V148: 0.01 | W148: 0.01 | X148: 0.01 | Y148: 0.01 | Z148: 0.02 | AA148: 0.02 | AB148: 0.02 | AC148: 0.02 | AD148: 0.02 | AE148: 0.02 | AF148: 0.02 | AG148: 0.05 | AH148: 0.05 | AI148: 0.05 | AJ148: 0.05 | AK148: 0.05 | AL148: 0.05 | AM148: 0.05 | AN148: 0.05 | AO148: 0.05 | AP148: 0.05 | AQ148: 0.05 | AR148: 0.05 | AS148: 0.05 | AT148: 0.05 | AU148: 0.05 | AV148: 0.1 | AW148: 0.1 | AX148: 0.1 | AY148: 0.1 | AZ148: 0.1 | BA148: 0.1 | BB148: 0.1 | BC148: 0.1 | BD148: 0.2 | BE148: 0.2 | BF148: 0.2 | BG148: 0.2 | BH148: 0.2 | BI148: 0.2 | BJ148: 0.2 | BK148: 0.2 | BL148: 0.2 | BM148: 0.2
A149: 50 | B149: 0.4 | C149: 0.4 | D149: 0.4 | E149: 0.4 | F149: 0.4 | G149: 0.4 | H149: 0.4 | I149: 0.3 | J149: 0.3 | K149: 0.3 | L149: 0.3 | M149: 0.3 | N149: 0.3 | O149: 0.3 | P149: 0.3 | Q149: 0.3 | R149: 0.3 | S149: 0.3 | T149: 0.3 | U149: 0.3 | V149: 0.3 | W149: 0.3 | X149: 0.3 | Y149: 0.3 | Z149: 0.2 | AA149: 0.2 | AB149: 0.2 | AC149: 0.2 | AD149: 0.2 | AE149: 0.2 | AF149: 0.2 | AG149: 0.1 | AH149: 0.1 | AI149: 0.1 | AJ149: 0.1 | AK149: 0.1 | AL149: 0.1 | AM149: 0.1 | AN149: 0.1 | AO149: 0.1 | AP149: 0.1 | AQ149: 0.1 | AR149: 0.1 | AS149: 0.1 | AT149: 0.1 | AU149: 0.1 | AV149: 0 | AW149: 0 | AX149: 0 | AY149: 0 | AZ149: 0 | BA149: 0 | BB149: 0 | BC149: 0 | BD149: 0 | BE149: 0 | BF149: 0 | BG149: 0 | BH149: 0 | BI149: 0 | BJ149: 0 | BK149: 0 | BL149: 0 | BM149: 0
A150: 51 | B150: 0.6 | C150: 0.6 | D150: 0.6 | E150: 0.6 | F150: 0.6 | G150: 0.6 | H150: 0.6 | I150: 0.69 | J150: 0.69 | K150: 0.69 | L150: 0.69 | M150: 0.69 | N150: 0.69 | O150: 0.69 | P150: 0.69 | Q150: 0.69 | R150: 0.69 | S150: 0.69 | T150: 0.69 | U150: 0.69 | V150: 0.69 | W150: 0.69 | X150: 0.69 | Y150: 0.69 | Z150: 0.76 | AA150: 0.76 | AB150: 0.76 | AC150: 0.76 | AD150: 0.76 | AE150: 0.76 | AF150: 0.76 | AG150: 0.55 | AH150: 0.55 | AI150: 0.55 | AJ150: 0.55 | AK150: 0.55 | AL150: 0.55 | AM150: 0.55 | AN150: 0.55 | AO150: 0.55 | AP150: 0.55 | AQ150: 0.55 | AR150: 0.55 | AS150: 0.55 | AT150: 0.55 | AU150: 0.55 | AV150: 0.7 | AW150: 0.7 | AX150: 0.7 | AY150: 0.7 | AZ150: 0.7 | BA150: 0.7 | BB150: 0.7 | BC150: 0.7 | BD150: 0.8 | BE150: 0.8 | BF150: 0.8 | BG150: 0.8 | BH150: 0.8 | BI150: 0.8 | BJ150: 0.8 | BK150: 0.8 | BL150: 0.8 | BM150: 0.8
A151: 52 | B151: 0 | C151: 0 | D151: 0 | E151: 0 | F151: 0 | G151: 0 | H151: 0 | I151: 0 | J151: 0 | K151: 0 | L151: 0 | M151: 0 | N151: 0 | O151: 0 | P151: 0 | Q151: 0 | R151: 0 | S151: 0 | T151: 0 | U151: 0 | V151: 0 | W151: 0 | X151: 0 | Y151: 0 | Z151: 0.02 | AA151: 0.02 | AB151: 0.02 | AC151: 0.02 | AD151: 0.02 | AE151: 0.02 | AF151: 0.02 | AG151: 0.3 | AH151: 0.3 | AI151: 0.3 | AJ151: 0.3 | AK151: 0.3 | AL151: 0.3 | AM151: 0.3 | AN151: 0.3 | AO151: 0.3 | AP151: 0.3 | AQ151: 0.3 | AR151: 0.3 | AS151: 0.3 | AT151: 0.3 | AU151: 0.3 | AV151: 0.2 | AW151: 0.2 | AX151: 0.2 | AY151: 0.2 | AZ151: 0.2 | BA151: 0.2 | BB151: 0.2 | BC151: 0.2 | BD151: 0 | BE151: 0 | BF151: 0 | BG151: 0 | BH151: 0 | BI151: 0 | BJ151: 0 | BK151: 0 | BL151: 0 | BM151: 0
A152: 53 | B152: 0 | C152: 0 | D152: 0 | E152: 0 | F152: 0 | G152: 0 | H152: 0 | I152: 0.01 | J152: 0.01 | K152: 0.01 | L152: 0.01 | M152: 0.01 | N152: 0.01 | O152: 0.01 | P152: 0.01 | Q152: 0.01 | R152: 0.01 | S152: 0.01 | T152: 0.01 | U152: 0.01 | V152: 0.01 | W152: 0.01 | X152: 0.01 | Y152: 0.01 | Z152: 0.02 | AA152: 0.02 | AB152: 0.02 | AC152: 0.02 | AD152: 0.02 | AE152: 0.02 | AF152: 0.02 | AG152: 0.02 | AH152: 0.05 | AI152: 0.05 | AJ152: 0.05 | AK152: 0.05 | AL152: 0.05 | AM152: 0.05 | AN152: 0.05 | AO152: 0.05 | AP152: 0.05 | AQ152: 0.05 | AR152: 0.05 | AS152: 0.05 | AT152: 0.05 | AU152: 0.05 | AV152: 0.1 | AW152: 0.1 | AX152: 0.1 | AY152: 0.1 | AZ152: 0.1 | BA152: 0.1 | BB152: 0.1 | BC152: 0.1 | BD152: 0.2 | BE152: 0.2 | BF152: 0.2 | BG152: 0.2 | BH152: 0.2 | BI152: 0.2 | BJ152: 0.2 | BK152: 0.2 | BL152: 0.2 | BM152: 0.2
A153: 54 | B153: 0.4 | C153: 0.4 | D153: 0.4 | E153: 0.4 | F153: 0.4 | G153: 0.4 | H153: 0.4 | I153: 0.3 | J153: 0.3 | K153: 0.3 | L153: 0.3 | M153: 0.3 | N153: 0.3 | O153: 0.3 | P153: 0.3 | Q153: 0.3 | R153: 0.3 | S153: 0.3 | T153: 0.3 | U153: 0.3 | V153: 0.3 | W153: 0.3 | X153: 0.3 | Y153: 0.3 | Z153: 0.2 | AA153: 0.2 | AB153: 0.2 | AC153: 0.2 | AD153: 0.2 | AE153: 0.2 | AF153: 0.2 | AG153: 0.2 | AH153: 0.1 | AI153: 0.1 | AJ153: 0.1 | AK153: 0.1 | AL153: 0.1 | AM153: 0.1 | AN153: 0.1 | AO153: 0.1 | AP153: 0.1 | AQ153: 0.1 | AR153: 0.1 | AS153: 0.1 | AT153: 0.1 | AU153: 0.1 | AV153: 0 | AW153: 0 | AX153: 0 | AY153: 0 | AZ153: 0 | BA153: 0 | BB153: 0 | BC153: 0 | BD153: 0 | BE153: 0 | BF153: 0 | BG153: 0 | BH153: 0 | BI153: 0 | BJ153: 0 | BK153: 0 | BL153: 0 | BM153: 0
A154: 55 | B154: 0.6 | C154: 0.6 | D154: 0.6 | E154: 0.6 | F154: 0.6 | G154: 0.6 | H154: 0.6 | I154: 0.69 | J154: 0.69 | K154: 0.69 | L154: 0.69 | M154: 0.69 | N154: 0.69 | O154: 0.69 | P154: 0.69 | Q154: 0.69 | R154: 0.69 | S154: 0.69 | T154: 0.69 | U154: 0.69 | V154: 0.69 | W154: 0.69 | X154: 0.69 | Y154: 0.69 | Z154: 0.76 | AA154: 0.76 | AB154: 0.76 | AC154: 0.76 | AD154: 0.76 | AE154: 0.76 | AF154: 0.76 | AG154: 0.76 | AH154: 0.55 | AI154: 0.55 | AJ154: 0.55 | AK154: 0.55 | AL154: 0.55 | AM154: 0.55 | AN154: 0.55 | AO154: 0.55 | AP154: 0.55 | AQ154: 0.55 | AR154: 0.55 | AS154: 0.55 | AT154: 0.55 | AU154: 0.55 | AV154: 0.7 | AW154: 0.7 | AX154: 0.7 | AY154: 0.7 | AZ154: 0.7 | BA154: 0.7 | BB154: 0.7 | BC154: 0.7 | BD154: 0.8 | BE154: 0.8 | BF154: 0.8 | BG154: 0.8 | BH154: 0.8 | BI154: 0.8 | BJ154: 0.8 | BK154: 0.8 | BL154: 0.8 | BM154: 0.8
A155: 56 | B155: 0 | C155: 0 | D155: 0 | E155: 0 | F155: 0 | G155: 0 | H155: 0 | I155: 0 | J155: 0 | K155: 0 | L155: 0 | M155: 0 | N155: 0 | O155: 0 | P155: 0 | Q155: 0 | R155: 0 | S155: 0 | T155: 0 | U155: 0 | V155: 0 | W155: 0 | X155: 0 | Y155: 0 | Z155: 0.02 | AA155: 0.02 | AB155: 0.02 | AC155: 0.02 | AD155: 0.02 | AE155: 0.02 | AF155: 0.02 | AG155: 0.02 | AH155: 0.3 | AI155: 0.3 | AJ155: 0.3 | AK155: 0.3 | AL155: 0.3 | AM155: 0.3 | AN155: 0.3 | AO155: 0.3 | AP155: 0.3 | AQ155: 0.3 | AR155: 0.3 | AS155: 0.3 | AT155: 0.3 | AU155: 0.3 | AV155: 0.2 | AW155: 0.2 | AX155: 0.2 | AY155: 0.2 | AZ155: 0.2 | BA155: 0.2 | BB155: 0.2 | BC155: 0.2 | BD155: 0 | BE155: 0 | BF155: 0 | BG155: 0 | BH155: 0 | BI155: 0 | BJ155: 0 | BK155: 0 | BL155: 0 | BM155: 0
A156: 57 | B156: 0 | C156: 0 | D156: 0 | E156: 0 | F156: 0 | G156: 0 | H156: 0 | I156: 0 | J156: 0.01 | K156: 0.01 | L156: 0.01 | M156: 0.01 | N156: 0.01 | O156: 0.01 | P156: 0.01 | Q156: 0.01 | R156: 0.01 | S156: 0.01 | T156: 0.01 | U156: 0.01 | V156: 0.01 | W156: 0.01 | X156: 0.01 | Y156: 0.01 | Z156: 0.02 | AA156: 0.02 | AB156: 0.02 | AC156: 0.02 | AD156: 0.02 | AE156: 0.02 | AF156: 0.02 | AG156: 0.02 | AH156: 0.05 | AI156: 0.05 | AJ156: 0.05 | AK156: 0.05 | AL156: 0.05 | AM156: 0.05 | AN156: 0.05 | AO156: 0.05 | AP156: 0.05 | AQ156: 0.05 | AR156: 0.05 | AS156: 0.05 | AT156: 0.05 | AU156: 0.05 | AV156: 0.1 | AW156: 0.1 | AX156: 0.1 | AY156: 0.1 | AZ156: 0.1 | BA156: 0.1 | BB156: 0.1 | BC156: 0.1 | BD156: 0.2 | BE156: 0.2 | BF156: 0.2 | BG156: 0.2 | BH156: 0.2 | BI156: 0.2 | BJ156: 0.2 | BK156: 0.2 | BL156: 0.2 | BM156: 0.2
A157: 58 | B157: 0.4 | C157: 0.4 | D157: 0.4 | E157: 0.4 | F157: 0.4 | G157: 0.4 | H157: 0.4 | I157: 0.4 | J157: 0.3 | K157: 0.3 | L157: 0.3 | M157: 0.3 | N157: 0.3 | O157: 0.3 | P157: 0.3 | Q157: 0.3 | R157: 0.3 | S157: 0.3 | T157: 0.3 | U157: 0.3 | V157: 0.3 | W157: 0.3 | X157: 0.3 | Y157: 0.3 | Z157: 0.2 | AA157: 0.2 | AB157: 0.2 | AC157: 0.2 | AD157: 0.2 | AE157: 0.2 | AF157: 0.2 | AG157: 0.2 | AH157: 0.1 | AI157: 0.1 | AJ157: 0.1 | AK157: 0.1 | AL157: 0.1 | AM157: 0.1 | AN157: 0.1 | AO157: 0.1 | AP157: 0.1 | AQ157: 0.1 | AR157: 0.1 | AS157: 0.1 | AT157: 0.1 | AU157: 0.1 | AV157: 0 | AW157: 0 | AX157: 0 | AY157: 0 | AZ157: 0 | BA157: 0 | BB157: 0 | BC157: 0 | BD157: 0 | BE157: 0 | BF157: 0 | BG157: 0 | BH157: 0 | BI157: 0 | BJ157: 0 | BK157: 0 | BL157: 0 | BM157: 0
A158: 59 | B158: 0.6 | C158: 0.6 | D158: 0.6 | E158: 0.6 | F158: 0.6 | G158: 0.6 | H158: 0.6 | I158: 0.6 | J158: 0.69 | K158: 0.69 | L158: 0.69 | M158: 0.69 | N158: 0.69 | O158: 0.69 | P158: 0.69 | Q158: 0.69 | R158: 0.69 | S158: 0.69 | T158: 0.69 | U158: 0.69 | V158: 0.69 | W158: 0.69 | X158: 0.69 | Y158: 0.69 | Z158: 0.76 | AA158: 0.76 | AB158: 0.76 | AC158: 0.76 | AD158: 0.76 | AE158: 0.76 | AF158: 0.76 | AG158: 0.76 | AH158: 0.55 | AI158: 0.55 | AJ158: 0.55 | AK158: 0.55 | AL158: 0.55 | AM158: 0.55 | AN158: 0.55 | AO158: 0.55 | AP158: 0.55 | AQ158: 0.55 | AR158: 0.55 | AS158: 0.55 | AT158: 0.55 | AU158: 0.55 | AV158: 0.7 | AW158: 0.7 | AX158: 0.7 | AY158: 0.7 | AZ158: 0.7 | BA158: 0.7 | BB158: 0.7 | BC158: 0.7 | BD158: 0.8 | BE158: 0.8 | BF158: 0.8 | BG158: 0.8 | BH158: 0.8 | BI158: 0.8 | BJ158: 0.8 | BK158: 0.8 | BL158: 0.8 | BM158: 0.8
A159: 60 | B159: 0 | C159: 0 | D159: 0 | E159: 0 | F159: 0 | G159: 0 | H159: 0 | I159: 0 | J159: 0 | K159: 0 | L159: 0 | M159: 0 | N159: 0 | O159: 0 | P159: 0 | Q159: 0 | R159: 0 | S159: 0 | T159: 0 | U159: 0 | V159: 0 | W159: 0 | X159: 0 | Y159: 0 | Z159: 0.02 | AA159: 0.02 | AB159: 0.02 | AC159: 0.02 | AD159: 0.02 | AE159: 0.02 | AF159: 0.02 | AG159: 0.02 | AH159: 0.3 | AI159: 0.3 | AJ159: 0.3 | AK159: 0.3 | AL159: 0.3 | AM159: 0.3 | AN159: 0.3 | AO159: 0.3 | AP159: 0.3 | AQ159: 0.3 | AR159: 0.3 | AS159: 0.3 | AT159: 0.3 | AU159: 0.3 | AV159: 0.2 | AW159: 0.2 | AX159: 0.2 | AY159: 0.2 | AZ159: 0.2 | BA159: 0.2 | BB159: 0.2 | BC159: 0.2 | BD159: 0 | BE159: 0 | BF159: 0 | BG159: 0 | BH159: 0 | BI159: 0 | BJ159: 0 | BK159: 0 | BL159: 0 | BM159: 0
A160: 61 | B160: 0 | C160: 0 | D160: 0 | E160: 0 | F160: 0 | G160: 0 | H160: 0 | I160: 0 | J160: 0.01 | K160: 0.01 | L160: 0.01 | M160: 0.01 | N160: 0.01 | O160: 0.01 | P160: 0.01 | Q160: 0.01 | R160: 0.01 | S160: 0.01 | T160: 0.01 | U160: 0.01 | V160: 0.01 | W160: 0.01 | X160: 0.01 | Y160: 0.01 | Z160: 0.02 | AA160: 0.02 | AB160: 0.02 | AC160: 0.02 | AD160: 0.02 | AE160: 0.02 | AF160: 0.02 | AG160: 0.02 | AH160: 0.02 | AI160: 0.05 | AJ160: 0.05 | AK160: 0.05 | AL160: 0.05 | AM160: 0.05 | AN160: 0.05 | AO160: 0.05 | AP160: 0.05 | AQ160: 0.05 | AR160: 0.05 | AS160: 0.05 | AT160: 0.05 | AU160: 0.1 | AV160: 0.1 | AW160: 0.1 | AX160: 0.1 | AY160: 0.1 | AZ160: 0.1 | BA160: 0.1 | BB160: 0.1 | BC160: 0.1 | BD160: 0.2 | BE160: 0.2 | BF160: 0.2 | BG160: 0.2 | BH160: 0.2 | BI160: 0.2 | BJ160: 0.2 | BK160: 0.2 | BL160: 0.2 | BM160: 0.2
A161: 62 | B161: 0.4 | C161: 0.4 | D161: 0.4 | E161: 0.4 | F161: 0.4 | G161: 0.4 | H161: 0.4 | I161: 0.4 | J161: 0.3 | K161: 0.3 | L161: 0.3 | M161: 0.3 | N161: 0.3 | O161: 0.3 | P161: 0.3 | Q161: 0.3 | R161: 0.3 | S161: 0.3 | T161: 0.3 | U161: 0.3 | V161: 0.3 | W161: 0.3 | X161: 0.3 | Y161: 0.3 | Z161: 0.2 | AA161: 0.2 | AB161: 0.2 | AC161: 0.2 | AD161: 0.2 | AE161: 0.2 | AF161: 0.2 | AG161: 0.2 | AH161: 0.2 | AI161: 0.1 | AJ161: 0.1 | AK161: 0.1 | AL161: 0.1 | AM161: 0.1 | AN161: 0.1 | AO161: 0.1 | AP161: 0.1 | AQ161: 0.1 | AR161: 0.1 | AS161: 0.1 | AT161: 0.1 | AU161: 0 | AV161: 0 | AW161: 0 | AX161: 0 | AY161: 0 | AZ161: 0 | BA161: 0 | BB161: 0 | BC161: 0 | BD161: 0 | BE161: 0 | BF161: 0 | BG161: 0 | BH161: 0 | BI161: 0 | BJ161: 0 | BK161: 0 | BL161: 0 | BM161: 0
A162: 63 | B162: 0.6 | C162: 0.6 | D162: 0.6 | E162: 0.6 | F162: 0.6 | G162: 0.6 | H162: 0.6 | I162: 0.6 | J162: 0.69 | K162: 0.69 | L162: 0.69 | M162: 0.69 | N162: 0.69 | O162: 0.69 | P162: 0.69 | Q162: 0.69 | R162: 0.69 | S162: 0.69 | T162: 0.69 | U162: 0.69 | V162: 0.69 | W162: 0.69 | X162: 0.69 | Y162: 0.69 | Z162: 0.76 | AA162: 0.76 | AB162: 0.76 | AC162: 0.76 | AD162: 0.76 | AE162: 0.76 | AF162: 0.76 | AG162: 0.76 | AH162: 0.76 | AI162: 0.55 | AJ162: 0.55 | AK162: 0.55 | AL162: 0.55 | AM162: 0.55 | AN162: 0.55 | AO162: 0.55 | AP162: 0.55 | AQ162: 0.55 | AR162: 0.55 | AS162: 0.55 | AT162: 0.55 | AU162: 0.7 | AV162: 0.7 | AW162: 0.7 | AX162: 0.7 | AY162: 0.7 | AZ162: 0.7 | BA162: 0.7 | BB162: 0.7 | BC162: 0.7 | BD162: 0.8 | BE162: 0.8 | BF162: 0.8 | BG162: 0.8 | BH162: 0.8 | BI162: 0.8 | BJ162: 0.8 | BK162: 0.8 | BL162: 0.8 | BM162: 0.8
A163: 64 | B163: 0 | C163: 0 | D163: 0 | E163: 0 | F163: 0 | G163: 0 | H163: 0 | I163: 0 | J163: 0 | K163: 0 | L163: 0 | M163: 0 | N163: 0 | O163: 0 | P163: 0 | Q163: 0 | R163: 0 | S163: 0 | T163: 0 | U163: 0 | V163: 0 | W163: 0 | X163: 0 | Y163: 0 | Z163: 0.02 | AA163: 0.02 | AB163: 0.02 | AC163: 0.02 | AD163: 0.02 | AE163: 0.02 | AF163: 0.02 | AG163: 0.02 | AH163: 0.02 | AI163: 0.3 | AJ163: 0.3 | AK163: 0.3 | AL163: 0.3 | AM163: 0.3 | AN163: 0.3 | AO163: 0.3 | AP163: 0.3 | AQ163: 0.3 | AR163: 0.3 | AS163: 0.3 | AT163: 0.3 | AU163: 0.2 | AV163: 0.2 | AW163: 0.2 | AX163: 0.2 | AY163: 0.2 | AZ163: 0.2 | BA163: 0.2 | BB163: 0.2 | BC163: 0.2 | BD163: 0 | BE163: 0 | BF163: 0 | BG163: 0 | BH163: 0 | BI163: 0 | BJ163: 0 | BK163: 0 | BL163: 0 | BM163: 0
B164: 0 | C164: 0 | D164: 0 | E164: 0 | F164: 0 | G164: 0 | H164: 0 | I164: 0 | J164: 0 | K164: 0.01 | L164: 0.01 | M164: 0.01 | N164: 0.01 | O164: 0.01 | P164: 0.01 | Q164: 0.01 | R164: 0.01 | S164: 0.01 | T164: 0.01 | U164: 0.01 | V164: 0.01 | W164: 0.01 | X164: 0.01 | Y164: 0.01 | Z164: 0.02 | AA164: 0.02 | AB164: 0.02 | AC164: 0.02 | AD164: 0.02 | AE164: 0.02 | AF164: 0.02 | AG164: 0.02 | AH164: 0.02 | AI164: 0.05 | AJ164: 0.05 | AK164: 0.05 | AL164: 0.05 | AM164: 0.05 | AN164: 0.05 | AO164: 0.05 | AP164: 0.05 | AQ164: 0.05 | AR164: 0.05 | AS164: 0.05 | AT164: 0.05 | AU164: 0.1 | AV164: 0.1 | AW164: 0.1 | AX164: 0.1 | AY164: 0.1 | AZ164: 0.1 | BA164: 0.1 | BB164: 0.1 | BC164: 0.1 | BD164: 0.2 | BE164: 0.2 | BF164: 0.2 | BG164: 0.2 | BH164: 0.2 | BI164: 0.2 | BJ164: 0.2 | BK164: 0.2 | BL164: 0.2 | BM164: 0.2
B165: 0.4 | C165: 0.4 | D165: 0.4 | E165: 0.4 | F165: 0.4 | G165: 0.4 | H165: 0.4 | I165: 0.4 | J165: 0.4 | K165: 0.3 | L165: 0.3 | M165: 0.3 | N165: 0.3 | O165: 0.3 | P165: 0.3 | Q165: 0.3 | R165: 0.3 | S165: 0.3 | T165: 0.3 | U165: 0.3 | V165: 0.3 | W165: 0.3 | X165: 0.3 | Y165: 0.3 | Z165: 0.2 | AA165: 0.2 | AB165: 0.2 | AC165: 0.2 | AD165: 0.2 | AE165: 0.2 | AF165: 0.2 | AG165: 0.2 | AH165: 0.2 | AI165: 0.1 | AJ165: 0.1 | AK165: 0.1 | AL165: 0.1 | AM165: 0.1 | AN165: 0.1 | AO165: 0.1 | AP165: 0.1 | AQ165: 0.1 | AR165: 0.1 | AS165: 0.1 | AT165: 0.1 | AU165: 0 | AV165: 0 | AW165: 0 | AX165: 0 | AY165: 0 | AZ165: 0 | BA165: 0 | BB165: 0 | BC165: 0 | BD165: 0 | BE165: 0 | BF165: 0 | BG165: 0 | BH165: 0 | BI165: 0 | BJ165: 0 | BK165: 0 | BL165: 0 | BM165: 0
B166: 0.6 | C166: 0.6 | D166: 0.6 | E166: 0.6 | F166: 0.6 | G166: 0.6 | H166: 0.6 | I166: 0.6 | J166: 0.6 | K166: 0.69 | L166: 0.69 | M166: 0.69 | N166: 0.69 | O166: 0.69 | P166: 0.69 | Q166: 0.69 | R166: 0.69 | S166: 0.69 | T166: 0.69 | U166: 0.69 | V166: 0.69 | W166: 0.69 | X166: 0.69 | Y166: 0.69 | Z166: 0.76 | AA166: 0.76 | AB166: 0.76 | AC166: 0.76 | AD166: 0.76 | AE166: 0.76 | AF166: 0.76 | AG166: 0.76 | AH166: 0.76 | AI166: 0.55 | AJ166: 0.55 | AK166: 0.55 | AL166: 0.55 | AM166: 0.55 | AN166: 0.55 | AO166: 0.55 | AP166: 0.55 | AQ166: 0.55 | AR166: 0.55 | AS166: 0.55 | AT166: 0.55 | AU166: 0.7 | AV166: 0.7 | AW166: 0.7 | AX166: 0.7 | AY166: 0.7 | AZ166: 0.7 | BA166: 0.7 | BB166: 0.7 | BC166: 0.7 | BD166: 0.8 | BE166: 0.8 | BF166: 0.8 | BG166: 0.8 | BH166: 0.8 | BI166: 0.8 | BJ166: 0.8 | BK166: 0.8 | BL166: 0.8 | BM166: 0.8
B167: 0 | C167: 0 | D167: 0 | E167: 0 | F167: 0 | G167: 0 | H167: 0 | I167: 0 | J167: 0 | K167: 0 | L167: 0 | M167: 0 | N167: 0 | O167: 0 | P167: 0 | Q167: 0 | R167: 0 | S167: 0 | T167: 0 | U167: 0 | V167: 0 | W167: 0 | X167: 0 | Y167: 0 | Z167: 0.02 | AA167: 0.02 | AB167: 0.02 | AC167: 0.02 | AD167: 0.02 | AE167: 0.02 | AF167: 0.02 | AG167: 0.02 | AH167: 0.02 | AI167: 0.3 | AJ167: 0.3 | AK167: 0.3 | AL167: 0.3 | AM167: 0.3 | AN167: 0.3 | AO167: 0.3 | AP167: 0.3 | AQ167: 0.3 | AR167: 0.3 | AS167: 0.3 | AT167: 0.3 | AU167: 0.2 | AV167: 0.2 | AW167: 0.2 | AX167: 0.2 | AY167: 0.2 | AZ167: 0.2 | BA167: 0.2 | BB167: 0.2 | BC167: 0.2 | BD167: 0 | BE167: 0 | BF167: 0 | BG167: 0 | BH167: 0 | BI167: 0 | BJ167: 0 | BK167: 0 | BL167: 0 | BM167: 0
B168: 0 | C168: 0 | D168: 0 | E168: 0 | F168: 0 | G168: 0 | H168: 0 | I168: 0 | J168: 0 | K168: 0.01 | L168: 0.01 | M168: 0.01 | N168: 0.01 | O168: 0.01 | P168: 0.01 | Q168: 0.01 | R168: 0.01 | S168: 0.01 | T168: 0.01 | U168: 0.01 | V168: 0.01 | W168: 0.01 | X168: 0.01 | Y168: 0.02 | Z168: 0.02 | AA168: 0.02 | AB168: 0.02 | AC168: 0.02 | AD168: 0.02 | AE168: 0.02 | AF168: 0.02 | AG168: 0.02 | AH168: 0.02 | AI168: 0.02 | AJ168: 0.05 | AK168: 0.05 | AL168: 0.05 | AM168: 0.05 | AN168: 0.05 | AO168: 0.05 | AP168: 0.05 | AQ168: 0.05 | AR168: 0.05 | AS168: 0.05 | AT168: 0.05 | AU168: 0.1 | AV168: 0.1 | AW168: 0.1 | AX168: 0.1 | AY168: 0.1 | AZ168: 0.1 | BA168: 0.1 | BB168: 0.1 | BC168: 0.1 | BD168: 0.2 | BE168: 0.2 | BF168: 0.2 | BG168: 0.2 | BH168: 0.2 | BI168: 0.2 | BJ168: 0.2 | BK168: 0.2 | BL168: 0.2 | BM168: 0.2
B169: 0.4 | C169: 0.4 | D169: 0.4 | E169: 0.4 | F169: 0.4 | G169: 0.4 | H169: 0.4 | I169: 0.4 | J169: 0.4 | K169: 0.3 | L169: 0.3 | M169: 0.3 | N169: 0.3 | O169: 0.3 | P169: 0.3 | Q169: 0.3 | R169: 0.3 | S169: 0.3 | T169: 0.3 | U169: 0.3 | V169: 0.3 | W169: 0.3 | X169: 0.3 | Y169: 0.2 | Z169: 0.2 | AA169: 0.2 | AB169: 0.2 | AC169: 0.2 | AD169: 0.2 | AE169: 0.2 | AF169: 0.2 | AG169: 0.2 | AH169: 0.2 | AI169: 0.2 | AJ169: 0.1 | AK169: 0.1 | AL169: 0.1 | AM169: 0.1 | AN169: 0.1 | AO169: 0.1 | AP169: 0.1 | AQ169: 0.1 | AR169: 0.1 | AS169: 0.1 | AT169: 0.1 | AU169: 0 | AV169: 0 | AW169: 0 | AX169: 0 | AY169: 0 | AZ169: 0 | BA169: 0 | BB169: 0 | BC169: 0 | BD169: 0 | BE169: 0 | BF169: 0 | BG169: 0 | BH169: 0 | BI169: 0 | BJ169: 0 | BK169: 0 | BL169: 0 | BM169: 0
B170: 0.6 | C170: 0.6 | D170: 0.6 | E170: 0.6 | F170: 0.6 | G170: 0.6 | H170: 0.6 | I170: 0.6 | J170: 0.6 | K170: 0.69 | L170: 0.69 | M170: 0.69 | N170: 0.69 | O170: 0.69 | P170: 0.69 | Q170: 0.69 | R170: 0.69 | S170: 0.69 | T170: 0.69 | U170: 0.69 | V170: 0.69 | W170: 0.69 | X170: 0.69 | Y170: 0.76 | Z170: 0.76 | AA170: 0.76 | AB170: 0.76 | AC170: 0.76 | AD170: 0.76 | AE170: 0.76 | AF170: 0.76 | AG170: 0.76 | AH170: 0.76 | AI170: 0.76 | AJ170: 0.55 | AK170: 0.55 | AL170: 0.55 | AM170: 0.55 | AN170: 0.55 | AO170: 0.55 | AP170: 0.55 | AQ170: 0.55 | AR170: 0.55 | AS170: 0.55 | AT170: 0.55 | AU170: 0.7 | AV170: 0.7 | AW170: 0.7 | AX170: 0.7 | AY170: 0.7 | AZ170: 0.7 | BA170: 0.7 | BB170: 0.7 | BC170: 0.7 | BD170: 0.8 | BE170: 0.8 | BF170: 0.8 | BG170: 0.8 | BH170: 0.8 | BI170: 0.8 | BJ170: 0.8 | BK170: 0.8 | BL170: 0.8 | BM170: 0.8
B171: 0 | C171: 0 | D171: 0 | E171: 0 | F171: 0 | G171: 0 | H171: 0 | I171: 0 | J171: 0 | K171: 0 | L171: 0 | M171: 0 | N171: 0 | O171: 0 | P171: 0 | Q171: 0 | R171: 0 | S171: 0 | T171: 0 | U171: 0 | V171: 0 | W171: 0 | X171: 0 | Y171: 0.02 | Z171: 0.02 | AA171: 0.02 | AB171: 0.02 | AC171: 0.02 | AD171: 0.02 | AE171: 0.02 | AF171: 0.02 | AG171: 0.02 | AH171: 0.02 | AI171: 0.02 | AJ171: 0.3 | AK171: 0.3 | AL171: 0.3 | AM171: 0.3 | AN171: 0.3 | AO171: 0.3 | AP171: 0.3 | AQ171: 0.3 | AR171: 0.3 | AS171: 0.3 | AT171: 0.3 | AU171: 0.2 | AV171: 0.2 | AW171: 0.2 | AX171: 0.2 | AY171: 0.2 | AZ171: 0.2 | BA171: 0.2 | BB171: 0.2 | BC171: 0.2 | BD171: 0 | BE171: 0 | BF171: 0 | BG171: 0 | BH171: 0 | BI171: 0 | BJ171: 0 | BK171: 0 | BL171: 0 | BM171: 0
B172: 0 | C172: 0 | D172: 0 | E172: 0 | F172: 0 | G172: 0 | H172: 0 | I172: 0 | J172: 0 | K172: 0.01 | L172: 0.01 | M172: 0.01 | N172: 0.01 | O172: 0.01 | P172: 0.01 | Q172: 0.01 | R172: 0.01 | S172: 0.01 | T172: 0.01 | U172: 0.01 | V172: 0.01 | W172: 0.01 | X172: 0.01 | Y172: 0.02 | Z172: 0.02 | AA172: 0.02 | AB172: 0.02 | AC172: 0.02 | AD172: 0.02 | AE172: 0.02 | AF172: 0.02 | AG172: 0.02 | AH172: 0.02 | AI172: 0.02 | AJ172: 0.05 | AK172: 0.05 | AL172: 0.05 | AM172: 0.05 | AN172: 0.05 | AO172: 0.05 | AP172: 0.05 | AQ172: 0.05 | AR172: 0.05 | AS172: 0.05 | AT172: 0.1 | AU172: 0.1 | AV172: 0.1 | AW172: 0.1 | AX172: 0.1 | AY172: 0.1 | AZ172: 0.1 | BA172: 0.1 | BB172: 0.1 | BC172: 0.1 | BD172: 0.2 | BE172: 0.2 | BF172: 0.2 | BG172: 0.2 | BH172: 0.2 | BI172: 0.2 | BJ172: 0.2 | BK172: 0.2 | BL172: 0.2 | BM172: 0.2
B173: 0.4 | C173: 0.4 | D173: 0.4 | E173: 0.4 | F173: 0.4 | G173: 0.4 | H173: 0.4 | I173: 0.4 | J173: 0.4 | K173: 0.3 | L173: 0.3 | M173: 0.3 | N173: 0.3 | O173: 0.3 | P173: 0.3 | Q173: 0.3 | R173: 0.3 | S173: 0.3 | T173: 0.3 | U173: 0.3 | V173: 0.3 | W173: 0.3 | X173: 0.3 | Y173: 0.2 | Z173: 0.2 | AA173: 0.2 | AB173: 0.2 | AC173: 0.2 | AD173: 0.2 | AE173: 0.2 | AF173: 0.2 | AG173: 0.2 | AH173: 0.2 | AI173: 0.2 | AJ173: 0.1 | AK173: 0.1 | AL173: 0.1 | AM173: 0.1 | AN173: 0.1 | AO173: 0.1 | AP173: 0.1 | AQ173: 0.1 | AR173: 0.1 | AS173: 0.1 | AT173: 0 | AU173: 0 | AV173: 0 | AW173: 0 | AX173: 0 | AY173: 0 | AZ173: 0 | BA173: 0 | BB173: 0 | BC173: 0 | BD173: 0 | BE173: 0 | BF173: 0 | BG173: 0 | BH173: 0 | BI173: 0 | BJ173: 0 | BK173: 0 | BL173: 0 | BM173: 0
B174: 0.6 | C174: 0.6 | D174: 0.6 | E174: 0.6 | F174: 0.6 | G174: 0.6 | H174: 0.6 | I174: 0.6 | J174: 0.6 | K174: 0.69 | L174: 0.69 | M174: 0.69 | N174: 0.69 | O174: 0.69 | P174: 0.69 | Q174: 0.69 | R174: 0.69 | S174: 0.69 | T174: 0.69 | U174: 0.69 | V174: 0.69 | W174: 0.69 | X174: 0.69 | Y174: 0.76 | Z174: 0.76 | AA174: 0.76 | AB174: 0.76 | AC174: 0.76 | AD174: 0.76 | AE174: 0.76 | AF174: 0.76 | AG174: 0.76 | AH174: 0.76 | AI174: 0.76 | AJ174: 0.55 | AK174: 0.55 | AL174: 0.55 | AM174: 0.55 | AN174: 0.55 | AO174: 0.55 | AP174: 0.55 | AQ174: 0.55 | AR174: 0.55 | AS174: 0.55 | AT174: 0.7 | AU174: 0.7 | AV174: 0.7 | AW174: 0.7 | AX174: 0.7 | AY174: 0.7 | AZ174: 0.7 | BA174: 0.7 | BB174: 0.7 | BC174: 0.7 | BD174: 0.8 | BE174: 0.8 | BF174: 0.8 | BG174: 0.8 | BH174: 0.8 | BI174: 0.8 | BJ174: 0.8 | BK174: 0.8 | BL174: 0.8 | BM174: 0.8
B175: 0 | C175: 0 | D175: 0 | E175: 0 | F175: 0 | G175: 0 | H175: 0 | I175: 0 | J175: 0 | K175: 0 | L175: 0 | M175: 0 | N175: 0 | O175: 0 | P175: 0 | Q175: 0 | R175: 0 | S175: 0 | T175: 0 | U175: 0 | V175: 0 | W175: 0 | X175: 0 | Y175: 0.02 | Z175: 0.02 | AA175: 0.02 | AB175: 0.02 | AC175: 0.02 | AD175: 0.02 | AE175: 0.02 | AF175: 0.02 | AG175: 0.02 | AH175: 0.02 | AI175: 0.02 | AJ175: 0.3 | AK175: 0.3 | AL175: 0.3 | AM175: 0.3 | AN175: 0.3 | AO175: 0.3 | AP175: 0.3 | AQ175: 0.3 | AR175: 0.3 | AS175: 0.3 | AT175: 0.2 | AU175: 0.2 | AV175: 0.2 | AW175: 0.2 | AX175: 0.2 | AY175: 0.2 | AZ175: 0.2 | BA175: 0.2 | BB175: 0.2 | BC175: 0.2 | BD175: 0 | BE175: 0 | BF175: 0 | BG175: 0 | BH175: 0 | BI175: 0 | BJ175: 0 | BK175: 0 | BL175: 0 | BM175: 0
B176: 0 | C176: 0 | D176: 0 | E176: 0 | F176: 0 | G176: 0 | H176: 0 | I176: 0 | J176: 0 | K176: 0 | L176: 0.01 | M176: 0.01 | N176: 0.01 | O176: 0.01 | P176: 0.01 | Q176: 0.01 | R176: 0.01 | S176: 0.01 | T176: 0.01 | U176: 0.01 | V176: 0.01 | W176: 0.01 | X176: 0.01 | Y176: 0.02 | Z176: 0.02 | AA176: 0.02 | AB176: 0.02 | AC176: 0.02 | AD176: 0.02 | AE176: 0.02 | AF176: 0.02 | AG176: 0.02 | AH176: 0.02 | AI176: 0.02 | AJ176: 0.05 | AK176: 0.05 | AL176: 0.05 | AM176: 0.05 | AN176: 0.05 | AO176: 0.05 | AP176: 0.05 | AQ176: 0.05 | AR176: 0.05 | AS176: 0.05 | AT176: 0.1 | AU176: 0.1 | AV176: 0.1 | AW176: 0.1 | AX176: 0.1 | AY176: 0.1 | AZ176: 0.1 | BA176: 0.1 | BB176: 0.1 | BC176: 0.1 | BD176: 0.2 | BE176: 0.2 | BF176: 0.2 | BG176: 0.2 | BH176: 0.2 | BI176: 0.2 | BJ176: 0.2 | BK176: 0.2 | BL176: 0.2 | BM176: 0.2
B177: 0.4 | C177: 0.4 | D177: 0.4 | E177: 0.4 | F177: 0.4 | G177: 0.4 | H177: 0.4 | I177: 0.4 | J177: 0.4 | K177: 0.4 | L177: 0.3 | M177: 0.3 | N177: 0.3 | O177: 0.3 | P177: 0.3 | Q177: 0.3 | R177: 0.3 | S177: 0.3 | T177: 0.3 | U177: 0.3 | V177: 0.3 | W177: 0.3 | X177: 0.3 | Y177: 0.2 | Z177: 0.2 | AA177: 0.2 | AB177: 0.2 | AC177: 0.2 | AD177: 0.2 | AE177: 0.2 | AF177: 0.2 | AG177: 0.2 | AH177: 0.2 | AI177: 0.2 | AJ177: 0.1 | AK177: 0.1 | AL177: 0.1 | AM177: 0.1 | AN177: 0.1 | AO177: 0.1 | AP177: 0.1 | AQ177: 0.1 | AR177: 0.1 | AS177: 0.1 | AT177: 0 | AU177: 0 | AV177: 0 | AW177: 0 | AX177: 0 | AY177: 0 | AZ177: 0 | BA177: 0 | BB177: 0 | BC177: 0 | BD177: 0 | BE177: 0 | BF177: 0 | BG177: 0 | BH177: 0 | BI177: 0 | BJ177: 0 | BK177: 0 | BL177: 0 | BM177: 0
B178: 0.6 | C178: 0.6 | D178: 0.6 | E178: 0.6 | F178: 0.6 | G178: 0.6 | H178: 0.6 | I178: 0.6 | J178: 0.6 | K178: 0.6 | L178: 0.69 | M178: 0.69 | N178: 0.69 | O178: 0.69 | P178: 0.69 | Q178: 0.69 | R178: 0.69 | S178: 0.69 | T178: 0.69 | U178: 0.69 | V178: 0.69 | W178: 0.69 | X178: 0.69 | Y178: 0.76 | Z178: 0.76 | AA178: 0.76 | AB178: 0.76 | AC178: 0.76 | AD178: 0.76 | AE178: 0.76 | AF178: 0.76 | AG178: 0.76 | AH178: 0.76 | AI178: 0.76 | AJ178: 0.55 | AK178: 0.55 | AL178: 0.55 | AM178: 0.55 | AN178: 0.55 | AO178: 0.55 | AP178: 0.55 | AQ178: 0.55 | AR178: 0.55 | AS178: 0.55 | AT178: 0.7 | AU178: 0.7 | AV178: 0.7 | AW178: 0.7 | AX178: 0.7 | AY178: 0.7 | AZ178: 0.7 | BA178: 0.7 | BB178: 0.7 | BC178: 0.7 | BD178: 0.8 | BE178: 0.8 | BF178: 0.8 | BG178: 0.8 | BH178: 0.8 | BI178: 0.8 | BJ178: 0.8 | BK178: 0.8 | BL178: 0.8 | BM178: 0.8
B179: 0 | C179: 0 | D179: 0 | E179: 0 | F179: 0 | G179: 0 | H179: 0 | I179: 0 | J179: 0 | K179: 0 | L179: 0 | M179: 0 | N179: 0 | O179: 0 | P179: 0 | Q179: 0 | R179: 0 | S179: 0 | T179: 0 | U179: 0 | V179: 0 | W179: 0 | X179: 0 | Y179: 0.02 | Z179: 0.02 | AA179: 0.02 | AB179: 0.02 | AC179: 0.02 | AD179: 0.02 | AE179: 0.02 | AF179: 0.02 | AG179: 0.02 | AH179: 0.02 | AI179: 0.02 | AJ179: 0.3 | AK179: 0.3 | AL179: 0.3 | AM179: 0.3 | AN179: 0.3 | AO179: 0.3 | AP179: 0.3 | AQ179: 0.3 | AR179: 0.3 | AS179: 0.3 | AT179: 0.2 | AU179: 0.2 | AV179: 0.2 | AW179: 0.2 | AX179: 0.2 | AY179: 0.2 | AZ179: 0.2 | BA179: 0.2 | BB179: 0.2 | BC179: 0.2 | BD179: 0 | BE179: 0 | BF179: 0 | BG179: 0 | BH179: 0 | BI179: 0 | BJ179: 0 | BK179: 0 | BL179: 0 | BM179: 0
B180: 0 | C180: 0 | D180: 0 | E180: 0 | F180: 0 | G180: 0 | H180: 0 | I180: 0 | J180: 0 | K180: 0 | L180: 0.01 | M180: 0.01 | N180: 0.01 | O180: 0.01 | P180: 0.01 | Q180: 0.01 | R180: 0.01 | S180: 0.01 | T180: 0.01 | U180: 0.01 | V180: 0.01 | W180: 0.01 | X180: 0.02 | Y180: 0.02 | Z180: 0.02 | AA180: 0.02 | AB180: 0.02 | AC180: 0.02 | AD180: 0.02 | AE180: 0.02 | AF180: 0.02 | AG180: 0.02 | AH180: 0.02 | AI180: 0.02 | AJ180: 0.05 | AK180: 0.05 | AL180: 0.05 | AM180: 0.05 | AN180: 0.05 | AO180: 0.05 | AP180: 0.05 | AQ180: 0.05 | AR180: 0.05 | AS180: 0.05 | AT180: 0.1 | AU180: 0.1 | AV180: 0.1 | AW180: 0.1 | AX180: 0.1 | AY180: 0.1 | AZ180: 0.1 | BA180: 0.1 | BB180: 0.1 | BC180: 0.1 | BD180: 0.1 | BE180: 0.2 | BF180: 0.2 | BG180: 0.2 | BH180: 0.2 | BI180: 0.2 | BJ180: 0.2 | BK180: 0.2 | BL180: 0.2 | BM180: 0.2
B181: 0.4 | C181: 0.4 | D181: 0.4 | E181: 0.4 | F181: 0.4 | G181: 0.4 | H181: 0.4 | I181: 0.4 | J181: 0.4 | K181: 0.4 | L181: 0.3 | M181: 0.3 | N181: 0.3 | O181: 0.3 | P181: 0.3 | Q181: 0.3 | R181: 0.3 | S181: 0.3 | T181: 0.3 | U181: 0.3 | V181: 0.3 | W181: 0.3 | X181: 0.2 | Y181: 0.2 | Z181: 0.2 | AA181: 0.2 | AB181: 0.2 | AC181: 0.2 | AD181: 0.2 | AE181: 0.2 | AF181: 0.2 | AG181: 0.2 | AH181: 0.2 | AI181: 0.2 | AJ181: 0.1 | AK181: 0.1 | AL181: 0.1 | AM181: 0.1 | AN181: 0.1 | AO181: 0.1 | AP181: 0.1 | AQ181: 0.1 | AR181: 0.1 | AS181: 0.1 | AT181: 0 | AU181: 0 | AV181: 0 | AW181: 0 | AX181: 0 | AY181: 0 | AZ181: 0 | BA181: 0 | BB181: 0 | BC181: 0 | BD181: 0 | BE181: 0 | BF181: 0 | BG181: 0 | BH181: 0 | BI181: 0 | BJ181: 0 | BK181: 0 | BL181: 0 | BM181: 0
B182: 0.6 | C182: 0.6 | D182: 0.6 | E182: 0.6 | F182: 0.6 | G182: 0.6 | H182: 0.6 | I182: 0.6 | J182: 0.6 | K182: 0.6 | L182: 0.69 | M182: 0.69 | N182: 0.69 | O182: 0.69 | P182: 0.69 | Q182: 0.69 | R182: 0.69 | S182: 0.69 | T182: 0.69 | U182: 0.69 | V182: 0.69 | W182: 0.69 | X182: 0.76 | Y182: 0.76 | Z182: 0.76 | AA182: 0.76 | AB182: 0.76 | AC182: 0.76 | AD182: 0.76 | AE182: 0.76 | AF182: 0.76 | AG182: 0.76 | AH182: 0.76 | AI182: 0.76 | AJ182: 0.55 | AK182: 0.55 | AL182: 0.55 | AM182: 0.55 | AN182: 0.55 | AO182: 0.55 | AP182: 0.55 | AQ182: 0.55 | AR182: 0.55 | AS182: 0.55 | AT182: 0.7 | AU182: 0.7 | AV182: 0.7 | AW182: 0.7 | AX182: 0.7 | AY182: 0.7 | AZ182: 0.7 | BA182: 0.7 | BB182: 0.7 | BC182: 0.7 | BD182: 0.7 | BE182: 0.8 | BF182: 0.8 | BG182: 0.8 | BH182: 0.8 | BI182: 0.8 | BJ182: 0.8 | BK182: 0.8 | BL182: 0.8 | BM182: 0.8
B183: 0 | C183: 0 | D183: 0 | E183: 0 | F183: 0 | G183: 0 | H183: 0 | I183: 0 | J183: 0 | K183: 0 | L183: 0 | M183: 0 | N183: 0 | O183: 0 | P183: 0 | Q183: 0 | R183: 0 | S183: 0 | T183: 0 | U183: 0 | V183: 0 | W183: 0 | X183: 0.02 | Y183: 0.02 | Z183: 0.02 | AA183: 0.02 | AB183: 0.02 | AC183: 0.02 | AD183: 0.02 | AE183: 0.02 | AF183: 0.02 | AG183: 0.02 | AH183: 0.02 | AI183: 0.02 | AJ183: 0.3 | AK183: 0.3 | AL183: 0.3 | AM183: 0.3 | AN183: 0.3 | AO183: 0.3 | AP183: 0.3 | AQ183: 0.3 | AR183: 0.3 | AS183: 0.3 | AT183: 0.2 | AU183: 0.2 | AV183: 0.2 | AW183: 0.2 | AX183: 0.2 | AY183: 0.2 | AZ183: 0.2 | BA183: 0.2 | BB183: 0.2 | BC183: 0.2 | BD183: 0.2 | BE183: 0 | BF183: 0 | BG183: 0 | BH183: 0 | BI183: 0 | BJ183: 0 | BK183: 0 | BL183: 0 | BM183: 0
B184: 0 | C184: 0 | D184: 0 | E184: 0 | F184: 0 | G184: 0 | H184: 0 | I184: 0 | J184: 0 | K184: 0 | L184: 0.01 | M184: 0.01 | N184: 0.01 | O184: 0.01 | P184: 0.01 | Q184: 0.01 | R184: 0.01 | S184: 0.01 | T184: 0.01 | U184: 0.01 | V184: 0.01 | W184: 0.01 | X184: 0.02 | Y184: 0.02 | Z184: 0.02 | AA184: 0.02 | AB184: 0.02 | AC184: 0.02 | AD184: 0.02 | AE184: 0.02 | AF184: 0.02 | AG184: 0.02 | AH184: 0.02 | AI184: 0.02 | AJ184: 0.05 | AK184: 0.05 | AL184: 0.05 | AM184: 0.05 | AN184: 0.05 | AO184: 0.05 | AP184: 0.05 | AQ184: 0.05 | AR184: 0.05 | AS184: 0.05 | AT184: 0.1 | AU184: 0.1 | AV184: 0.1 | AW184: 0.1 | AX184: 0.1 | AY184: 0.1 | AZ184: 0.1 | BA184: 0.1 | BB184: 0.1 | BC184: 0.1 | BD184: 0.1 | BE184: 0.2 | BF184: 0.2 | BG184: 0.2 | BH184: 0.2 | BI184: 0.2 | BJ184: 0.2 | BK184: 0.2 | BL184: 0.2 | BM184: 0.2
B185: 0.4 | C185: 0.4 | D185: 0.4 | E185: 0.4 | F185: 0.4 | G185: 0.4 | H185: 0.4 | I185: 0.4 | J185: 0.4 | K185: 0.4 | L185: 0.3 | M185: 0.3 | N185: 0.3 | O185: 0.3 | P185: 0.3 | Q185: 0.3 | R185: 0.3 | S185: 0.3 | T185: 0.3 | U185: 0.3 | V185: 0.3 | W185: 0.3 | X185: 0.2 | Y185: 0.2 | Z185: 0.2 | AA185: 0.2 | AB185: 0.2 | AC185: 0.2 | AD185: 0.2 | AE185: 0.2 | AF185: 0.2 | AG185: 0.2 | AH185: 0.2 | AI185: 0.2 | AJ185: 0.1 | AK185: 0.1 | AL185: 0.1 | AM185: 0.1 | AN185: 0.1 | AO185: 0.1 | AP185: 0.1 | AQ185: 0.1 | AR185: 0.1 | AS185: 0.1 | AT185: 0 | AU185: 0 | AV185: 0 | AW185: 0 | AX185: 0 | AY185: 0 | AZ185: 0 | BA185: 0 | BB185: 0 | BC185: 0 | BD185: 0 | BE185: 0 | BF185: 0 | BG185: 0 | BH185: 0 | BI185: 0 | BJ185: 0 | BK185: 0 | BL185: 0 | BM185: 0
B186: 0.6 | C186: 0.6 | D186: 0.6 | E186: 0.6 | F186: 0.6 | G186: 0.6 | H186: 0.6 | I186: 0.6 | J186: 0.6 | K186: 0.6 | L186: 0.69 | M186: 0.69 | N186: 0.69 | O186: 0.69 | P186: 0.69 | Q186: 0.69 | R186: 0.69 | S186: 0.69 | T186: 0.69 | U186: 0.69 | V186: 0.69 | W186: 0.69 | X186: 0.76 | Y186: 0.76 | Z186: 0.76 | AA186: 0.76 | AB186: 0.76 | AC186: 0.76 | AD186: 0.76 | AE186: 0.76 | AF186: 0.76 | AG186: 0.76 | AH186: 0.76 | AI186: 0.76 | AJ186: 0.55 | AK186: 0.55 | AL186: 0.55 | AM186: 0.55 | AN186: 0.55 | AO186: 0.55 | AP186: 0.55 | AQ186: 0.55 | AR186: 0.55 | AS186: 0.55 | AT186: 0.7 | AU186: 0.7 | AV186: 0.7 | AW186: 0.7 | AX186: 0.7 | AY186: 0.7 | AZ186: 0.7 | BA186: 0.7 | BB186: 0.7 | BC186: 0.7 | BD186: 0.7 | BE186: 0.8 | BF186: 0.8 | BG186: 0.8 | BH186: 0.8 | BI186: 0.8 | BJ186: 0.8 | BK186: 0.8 | BL186: 0.8 | BM186: 0.8
B187: 0 | C187: 0 | D187: 0 | E187: 0 | F187: 0 | G187: 0 | H187: 0 | I187: 0 | J187: 0 | K187: 0 | L187: 0 | M187: 0 | N187: 0 | O187: 0 | P187: 0 | Q187: 0 | R187: 0 | S187: 0 | T187: 0 | U187: 0 | V187: 0 | W187: 0 | X187: 0.02 | Y187: 0.02 | Z187: 0.02 | AA187: 0.02 | AB187: 0.02 | AC187: 0.02 | AD187: 0.02 | AE187: 0.02 | AF187: 0.02 | AG187: 0.02 | AH187: 0.02 | AI187: 0.02 | AJ187: 0.3 | AK187: 0.3 | AL187: 0.3 | AM187: 0.3 | AN187: 0.3 | AO187: 0.3 | AP187: 0.3 | AQ187: 0.3 | AR187: 0.3 | AS187: 0.3 | AT187: 0.2 | AU187: 0.2 | AV187: 0.2 | AW187: 0.2 | AX187: 0.2 | AY187: 0.2 | AZ187: 0.2 | BA187: 0.2 | BB187: 0.2 | BC187: 0.2 | BD187: 0.2 | BE187: 0 | BF187: 0 | BG187: 0 | BH187: 0 | BI187: 0 | BJ187: 0 | BK187: 0 | BL187: 0 | BM187: 0
B188: 0 | C188: 0 | D188: 0 | E188: 0 | F188: 0 | G188: 0 | H188: 0 | I188: 0 | J188: 0 | K188: 0 | L188: 0.01 | M188: 0.01 | N188: 0.01 | O188: 0.01 | P188: 0.01 | Q188: 0.01 | R188: 0.01 | S188: 0.01 | T188: 0.01 | U188: 0.01 | V188: 0.01 | W188: 0.01 | X188: 0.02 | Y188: 0.02 | Z188: 0.02 | AA188: 0.02 | AB188: 0.02 | AC188: 0.02 | AD188: 0.02 | AE188: 0.02 | AF188: 0.02 | AG188: 0.02 | AH188: 0.02 | AI188: 0.02 | AJ188: 0.05 | AK188: 0.05 | AL188: 0.05 | AM188: 0.05 | AN188: 0.05 | AO188: 0.05 | AP188: 0.05 | AQ188: 0.05 | AR188: 0.05 | AS188: 0.05 | AT188: 0.1 | AU188: 0.1 | AV188: 0.1 | AW188: 0.1 | AX188: 0.1 | AY188: 0.1 | AZ188: 0.1 | BA188: 0.1 | BB188: 0.1 | BC188: 0.1 | BD188: 0.1 | BE188: 0.1 | BF188: 0.2 | BG188: 0.2 | BH188: 0.2 | BI188: 0.2 | BJ188: 0.2 | BK188: 0.2 | BL188: 0.2 | BM188: 0.2
B189: 0.4 | C189: 0.4 | D189: 0.4 | E189: 0.4 | F189: 0.4 | G189: 0.4 | H189: 0.4 | I189: 0.4 | J189: 0.4 | K189: 0.4 | L189: 0.3 | M189: 0.3 | N189: 0.3 | O189: 0.3 | P189: 0.3 | Q189: 0.3 | R189: 0.3 | S189: 0.3 | T189: 0.3 | U189: 0.3 | V189: 0.3 | W189: 0.3 | X189: 0.2 | Y189: 0.2 | Z189: 0.2 | AA189: 0.2 | AB189: 0.2 | AC189: 0.2 | AD189: 0.2 | AE189: 0.2 | AF189: 0.2 | AG189: 0.2 | AH189: 0.2 | AI189: 0.2 | AJ189: 0.1 | AK189: 0.1 | AL189: 0.1 | AM189: 0.1 | AN189: 0.1 | AO189: 0.1 | AP189: 0.1 | AQ189: 0.1 | AR189: 0.1 | AS189: 0.1 | AT189: 0 | AU189: 0 | AV189: 0 | AW189: 0 | AX189: 0 | AY189: 0 | AZ189: 0 | BA189: 0 | BB189: 0 | BC189: 0 | BD189: 0 | BE189: 0 | BF189: 0 | BG189: 0 | BH189: 0 | BI189: 0 | BJ189: 0 | BK189: 0 | BL189: 0 | BM189: 0
B190: 0.6 | C190: 0.6 | D190: 0.6 | E190: 0.6 | F190: 0.6 | G190: 0.6 | H190: 0.6 | I190: 0.6 | J190: 0.6 | K190: 0.6 | L190: 0.69 | M190: 0.69 | N190: 0.69 | O190: 0.69 | P190: 0.69 | Q190: 0.69 | R190: 0.69 | S190: 0.69 | T190: 0.69 | U190: 0.69 | V190: 0.69 | W190: 0.69 | X190: 0.76 | Y190: 0.76 | Z190: 0.76 | AA190: 0.76 | AB190: 0.76 | AC190: 0.76 | AD190: 0.76 | AE190: 0.76 | AF190: 0.76 | AG190: 0.76 | AH190: 0.76 | AI190: 0.76 | AJ190: 0.55 | AK190: 0.55 | AL190: 0.55 | AM190: 0.55 | AN190: 0.55 | AO190: 0.55 | AP190: 0.55 | AQ190: 0.55 | AR190: 0.55 | AS190: 0.55 | AT190: 0.7 | AU190: 0.7 | AV190: 0.7 | AW190: 0.7 | AX190: 0.7 | AY190: 0.7 | AZ190: 0.7 | BA190: 0.7 | BB190: 0.7 | BC190: 0.7 | BD190: 0.7 | BE190: 0.7 | BF190: 0.8 | BG190: 0.8 | BH190: 0.8 | BI190: 0.8 | BJ190: 0.8 | BK190: 0.8 | BL190: 0.8 | BM190: 0.8
B191: 0 | C191: 0 | D191: 0 | E191: 0 | F191: 0 | G191: 0 | H191: 0 | I191: 0 | J191: 0 | K191: 0 | L191: 0 | M191: 0 | N191: 0 | O191: 0 | P191: 0 | Q191: 0 | R191: 0 | S191: 0 | T191: 0 | U191: 0 | V191: 0 | W191: 0 | X191: 0.02 | Y191: 0.02 | Z191: 0.02 | AA191: 0.02 | AB191: 0.02 | AC191: 0.02 | AD191: 0.02 | AE191: 0.02 | AF191: 0.02 | AG191: 0.02 | AH191: 0.02 | AI191: 0.02 | AJ191: 0.3 | AK191: 0.3 | AL191: 0.3 | AM191: 0.3 | AN191: 0.3 | AO191: 0.3 | AP191: 0.3 | AQ191: 0.3 | AR191: 0.3 | AS191: 0.3 | AT191: 0.2 | AU191: 0.2 | AV191: 0.2 | AW191: 0.2 | AX191: 0.2 | AY191: 0.2 | AZ191: 0.2 | BA191: 0.2 | BB191: 0.2 | BC191: 0.2 | BD191: 0.2 | BE191: 0.2 | BF191: 0 | BG191: 0 | BH191: 0 | BI191: 0 | BJ191: 0 | BK191: 0 | BL191: 0 | BM191: 0
B192: 0 | C192: 0 | D192: 0 | E192: 0 | F192: 0 | G192: 0 | H192: 0 | I192: 0 | J192: 0 | K192: 0 | L192: 0.01 | M192: 0.01 | N192: 0.01 | O192: 0.01 | P192: 0.01 | Q192: 0.01 | R192: 0.01 | S192: 0.01 | T192: 0.01 | U192: 0.01 | V192: 0.01 | W192: 0.02 | X192: 0.02 | Y192: 0.02 | Z192: 0.02 | AA192: 0.02 | AB192: 0.02 | AC192: 0.02 | AD192: 0.02 | AE192: 0.02 | AF192: 0.02 | AG192: 0.02 | AH192: 0.02 | AI192: 0.02 | AJ192: 0.05 | AK192: 0.05 | AL192: 0.05 | AM192: 0.05 | AN192: 0.05 | AO192: 0.05 | AP192: 0.05 | AQ192: 0.05 | AR192: 0.05 | AS192: 0.05 | AT192: 0.1 | AU192: 0.1 | AV192: 0.1 | AW192: 0.1 | AX192: 0.1 | AY192: 0.1 | AZ192: 0.1 | BA192: 0.1 | BB192: 0.1 | BC192: 0.1 | BD192: 0.1 | BE192: 0.1 | BF192: 0.2 | BG192: 0.2 | BH192: 0.2 | BI192: 0.2 | BJ192: 0.2 | BK192: 0.2 | BL192: 0.2 | BM192: 0.2
B193: 0.4 | C193: 0.4 | D193: 0.4 | E193: 0.4 | F193: 0.4 | G193: 0.4 | H193: 0.4 | I193: 0.4 | J193: 0.4 | K193: 0.4 | L193: 0.3 | M193: 0.3 | N193: 0.3 | O193: 0.3 | P193: 0.3 | Q193: 0.3 | R193: 0.3 | S193: 0.3 | T193: 0.3 | U193: 0.3 | V193: 0.3 | W193: 0.2 | X193: 0.2 | Y193: 0.2 | Z193: 0.2 | AA193: 0.2 | AB193: 0.2 | AC193: 0.2 | AD193: 0.2 | AE193: 0.2 | AF193: 0.2 | AG193: 0.2 | AH193: 0.2 | AI193: 0.2 | AJ193: 0.1 | AK193: 0.1 | AL193: 0.1 | AM193: 0.1 | AN193: 0.1 | AO193: 0.1 | AP193: 0.1 | AQ193: 0.1 | AR193: 0.1 | AS193: 0.1 | AT193: 0 | AU193: 0 | AV193: 0 | AW193: 0 | AX193: 0 | AY193: 0 | AZ193: 0 | BA193: 0 | BB193: 0 | BC193: 0 | BD193: 0 | BE193: 0 | BF193: 0 | BG193: 0 | BH193: 0 | BI193: 0 | BJ193: 0 | BK193: 0 | BL193: 0 | BM193: 0
B194: 0.6 | C194: 0.6 | D194: 0.6 | E194: 0.6 | F194: 0.6 | G194: 0.6 | H194: 0.6 | I194: 0.6 | J194: 0.6 | K194: 0.6 | L194: 0.69 | M194: 0.69 | N194: 0.69 | O194: 0.69 | P194: 0.69 | Q194: 0.69 | R194: 0.69 | S194: 0.69 | T194: 0.69 | U194: 0.69 | V194: 0.69 | W194: 0.76 | X194: 0.76 | Y194: 0.76 | Z194: 0.76 | AA194: 0.76 | AB194: 0.76 | AC194: 0.76 | AD194: 0.76 | AE194: 0.76 | AF194: 0.76 | AG194: 0.76 | AH194: 0.76 | AI194: 0.76 | AJ194: 0.55 | AK194: 0.55 | AL194: 0.55 | AM194: 0.55 | AN194: 0.55 | AO194: 0.55 | AP194: 0.55 | AQ194: 0.55 | AR194: 0.55 | AS194: 0.55 | AT194: 0.7 | AU194: 0.7 | AV194: 0.7 | AW194: 0.7 | AX194: 0.7 | AY194: 0.7 | AZ194: 0.7 | BA194: 0.7 | BB194: 0.7 | BC194: 0.7 | BD194: 0.7 | BE194: 0.7 | BF194: 0.8 | BG194: 0.8 | BH194: 0.8 | BI194: 0.8 | BJ194: 0.8 | BK194: 0.8 | BL194: 0.8 | BM194: 0.8
B195: 0 | C195: 0 | D195: 0 | E195: 0 | F195: 0 | G195: 0 | H195: 0 | I195: 0 | J195: 0 | K195: 0 | L195: 0 | M195: 0 | N195: 0 | O195: 0 | P195: 0 | Q195: 0 | R195: 0 | S195: 0 | T195: 0 | U195: 0 | V195: 0 | W195: 0.02 | X195: 0.02 | Y195: 0.02 | Z195: 0.02 | AA195: 0.02 | AB195: 0.02 | AC195: 0.02 | AD195: 0.02 | AE195: 0.02 | AF195: 0.02 | AG195: 0.02 | AH195: 0.02 | AI195: 0.02 | AJ195: 0.3 | AK195: 0.3 | AL195: 0.3 | AM195: 0.3 | AN195: 0.3 | AO195: 0.3 | AP195: 0.3 | AQ195: 0.3 | AR195: 0.3 | AS195: 0.3 | AT195: 0.2 | AU195: 0.2 | AV195: 0.2 | AW195: 0.2 | AX195: 0.2 | AY195: 0.2 | AZ195: 0.2 | BA195: 0.2 | BB195: 0.2 | BC195: 0.2 | BD195: 0.2 | BE195: 0.2 | BF195: 0 | BG195: 0 | BH195: 0 | BI195: 0 | BJ195: 0 | BK195: 0 | BL195: 0 | BM195: 0
B196: 0 | C196: 0 | D196: 0 | E196: 0 | F196: 0 | G196: 0 | H196: 0 | I196: 0 | J196: 0 | K196: 0 | L196: 0.01 | M196: 0.01 | N196: 0.01 | O196: 0.01 | P196: 0.01 | Q196: 0.01 | R196: 0.01 | S196: 0.01 | T196: 0.01 | U196: 0.01 | V196: 0.01 | W196: 0.02 | X196: 0.02 | Y196: 0.02 | Z196: 0.02 | AA196: 0.02 | AB196: 0.02 | AC196: 0.02 | AD196: 0.02 | AE196: 0.02 | AF196: 0.02 | AG196: 0.02 | AH196: 0.02 | AI196: 0.02 | AJ196: 0.05 | AK196: 0.05 | AL196: 0.05 | AM196: 0.05 | AN196: 0.05 | AO196: 0.05 | AP196: 0.05 | AQ196: 0.05 | AR196: 0.05 | AS196: 0.05 | AT196: 0.05 | AU196: 0.1 | AV196: 0.1 | AW196: 0.1 | AX196: 0.1 | AY196: 0.1 | AZ196: 0.1 | BA196: 0.1 | BB196: 0.1 | BC196: 0.1 | BD196: 0.1 | BE196: 0.1 | BF196: 0.2 | BG196: 0.2 | BH196: 0.2 | BI196: 0.2 | BJ196: 0.2 | BK196: 0.2 | BL196: 0.2 | BM196: 0.2
B197: 0.4 | C197: 0.4 | D197: 0.4 | E197: 0.4 | F197: 0.4 | G197: 0.4 | H197: 0.4 | I197: 0.4 | J197: 0.4 | K197: 0.4 | L197: 0.3 | M197: 0.3 | N197: 0.3 | O197: 0.3 | P197: 0.3 | Q197: 0.3 | R197: 0.3 | S197: 0.3 | T197: 0.3 | U197: 0.3 | V197: 0.3 | W197: 0.2 | X197: 0.2 | Y197: 0.2 | Z197: 0.2 | AA197: 0.2 | AB197: 0.2 | AC197: 0.2 | AD197: 0.2 | AE197: 0.2 | AF197: 0.2 | AG197: 0.2 | AH197: 0.2 | AI197: 0.2 | AJ197: 0.1 | AK197: 0.1 | AL197: 0.1 | AM197: 0.1 | AN197: 0.1 | AO197: 0.1 | AP197: 0.1 | AQ197: 0.1 | AR197: 0.1 | AS197: 0.1 | AT197: 0.1 | AU197: 0 | AV197: 0 | AW197: 0 | AX197: 0 | AY197: 0 | AZ197: 0 | BA197: 0 | BB197: 0 | BC197: 0 | BD197: 0 | BE197: 0 | BF197: 0 | BG197: 0 | BH197: 0 | BI197: 0 | BJ197: 0 | BK197: 0 | BL197: 0 | BM197: 0
B198: 0.6 | C198: 0.6 | D198: 0.6 | E198: 0.6 | F198: 0.6 | G198: 0.6 | H198: 0.6 | I198: 0.6 | J198: 0.6 | K198: 0.6 | L198: 0.69 | M198: 0.69 | N198: 0.69 | O198: 0.69 | P198: 0.69 | Q198: 0.69 | R198: 0.69 | S198: 0.69 | T198: 0.69 | U198: 0.69 | V198: 0.69 | W198: 0.76 | X198: 0.76 | Y198: 0.76 | Z198: 0.76 | AA198: 0.76 | AB198: 0.76 | AC198: 0.76 | AD198: 0.76 | AE198: 0.76 | AF198: 0.76 | AG198: 0.76 | AH198: 0.76 | AI198: 0.76 | AJ198: 0.55 | AK198: 0.55 | AL198: 0.55 | AM198: 0.55 | AN198: 0.55 | AO198: 0.55 | AP198: 0.55 | AQ198: 0.55 | AR198: 0.55 | AS198: 0.55 | AT198: 0.55 | AU198: 0.7 | AV198: 0.7 | AW198: 0.7 | AX198: 0.7 | AY198: 0.7 | AZ198: 0.7 | BA198: 0.7 | BB198: 0.7 | BC198: 0.7 | BD198: 0.7 | BE198: 0.7 | BF198: 0.8 | BG198: 0.8 | BH198: 0.8 | BI198: 0.8 | BJ198: 0.8 | BK198: 0.8 | BL198: 0.8 | BM198: 0.8
B199: 0 | C199: 0 | D199: 0 | E199: 0 | F199: 0 | G199: 0 | H199: 0 | I199: 0 | J199: 0 | K199: 0 | L199: 0 | M199: 0 | N199: 0 | O199: 0 | P199: 0 | Q199: 0 | R199: 0 | S199: 0 | T199: 0 | U199: 0 | V199: 0 | W199: 0.02 | X199: 0.02 | Y199: 0.02 | Z199: 0.02 | AA199: 0.02 | AB199: 0.02 | AC199: 0.02 | AD199: 0.02 | AE199: 0.02 | AF199: 0.02 | AG199: 0.02 | AH199: 0.02 | AI199: 0.02 | AJ199: 0.3 | AK199: 0.3 | AL199: 0.3 | AM199: 0.3 | AN199: 0.3 | AO199: 0.3 | AP199: 0.3 | AQ199: 0.3 | AR199: 0.3 | AS199: 0.3 | AT199: 0.3 | AU199: 0.2 | AV199: 0.2 | AW199: 0.2 | AX199: 0.2 | AY199: 0.2 | AZ199: 0.2 | BA199: 0.2 | BB199: 0.2 | BC199: 0.2 | BD199: 0.2 | BE199: 0.2 | BF199: 0 | BG199: 0 | BH199: 0 | BI199: 0 | BJ199: 0 | BK199: 0 | BL199: 0 | BM199: 0
B200: 0 | C200: 0 | D200: 0 | E200: 0 | F200: 0 | G200: 0 | H200: 0 | I200: 0 | J200: 0 | K200: 0 | L200: 0.01 | M200: 0.01 | N200: 0.01 | O200: 0.01 | P200: 0.01 | Q200: 0.01 | R200: 0.01 | S200: 0.01 | T200: 0.01 | U200: 0.01 | V200: 0.02 | W200: 0.02 | X200: 0.02 | Y200: 0.02 | Z200: 0.02 | AA200: 0.02 | AB200: 0.02 | AC200: 0.02 | AD200: 0.02 | AE200: 0.02 | AF200: 0.02 | AG200: 0.02 | AH200: 0.02 | AI200: 0.02 | AJ200: 0.05 | AK200: 0.05 | AL200: 0.05 | AM200: 0.05 | AN200: 0.05 | AO200: 0.05 | AP200: 0.05 | AQ200: 0.05 | AR200: 0.05 | AS200: 0.05 | AT200: 0.05 | AU200: 0.1 | AV200: 0.1 | AW200: 0.1 | AX200: 0.1 | AY200: 0.1 | AZ200: 0.1 | BA200: 0.1 | BB200: 0.1 | BC200: 0.1 | BD200: 0.1 | BE200: 0.1 | BF200: 0.1 | BG200: 0.2 | BH200: 0.2 | BI200: 0.2 | BJ200: 0.2 | BK200: 0.2 | BL200: 0.2 | BM200: 0.2
B201: 0.4 | C201: 0.4 | D201: 0.4 | E201: 0.4 | F201: 0.4 | G201: 0.4 | H201: 0.4 | I201: 0.4 | J201: 0.4 | K201: 0.4 | L201: 0.3 | M201: 0.3 | N201: 0.3 | O201: 0.3 | P201: 0.3 | Q201: 0.3 | R201: 0.3 | S201: 0.3 | T201: 0.3 | U201: 0.3 | V201: 0.2 | W201: 0.2 | X201: 0.2 | Y201: 0.2 | Z201: 0.2 | AA201: 0.2 | AB201: 0.2 | AC201: 0.2 | AD201: 0.2 | AE201: 0.2 | AF201: 0.2 | AG201: 0.2 | AH201: 0.2 | AI201: 0.2 | AJ201: 0.1 | AK201: 0.1 | AL201: 0.1 | AM201: 0.1 | AN201: 0.1 | AO201: 0.1 | AP201: 0.1 | AQ201: 0.1 | AR201: 0.1 | AS201: 0.1 | AT201: 0.1 | AU201: 0 | AV201: 0 | AW201: 0 | AX201: 0 | AY201: 0 | AZ201: 0 | BA201: 0 | BB201: 0 | BC201: 0 | BD201: 0 | BE201: 0 | BF201: 0 | BG201: 0 | BH201: 0 | BI201: 0 | BJ201: 0 | BK201: 0 | BL201: 0 | BM201: 0
B202: 0.6 | C202: 0.6 | D202: 0.6 | E202: 0.6 | F202: 0.6 | G202: 0.6 | H202: 0.6 | I202: 0.6 | J202: 0.6 | K202: 0.6 | L202: 0.69 | M202: 0.69 | N202: 0.69 | O202: 0.69 | P202: 0.69 | Q202: 0.69 | R202: 0.69 | S202: 0.69 | T202: 0.69 | U202: 0.69 | V202: 0.76 | W202: 0.76 | X202: 0.76 | Y202: 0.76 | Z202: 0.76 | AA202: 0.76 | AB202: 0.76 | AC202: 0.76 | AD202: 0.76 | AE202: 0.76 | AF202: 0.76 | AG202: 0.76 | AH202: 0.76 | AI202: 0.76 | AJ202: 0.55 | AK202: 0.55 | AL202: 0.55 | AM202: 0.55 | AN202: 0.55 | AO202: 0.55 | AP202: 0.55 | AQ202: 0.55 | AR202: 0.55 | AS202: 0.55 | AT202: 0.55 | AU202: 0.7 | AV202: 0.7 | AW202: 0.7 | AX202: 0.7 | AY202: 0.7 | AZ202: 0.7 | BA202: 0.7 | BB202: 0.7 | BC202: 0.7 | BD202: 0.7 | BE202: 0.7 | BF202: 0.7 | BG202: 0.8 | BH202: 0.8 | BI202: 0.8 | BJ202: 0.8 | BK202: 0.8 | BL202: 0.8 | BM202: 0.8
B203: 0 | C203: 0 | D203: 0 | E203: 0 | F203: 0 | G203: 0 | H203: 0 | I203: 0 | J203: 0 | K203: 0 | L203: 0 | M203: 0 | N203: 0 | O203: 0 | P203: 0 | Q203: 0 | R203: 0 | S203: 0 | T203: 0 | U203: 0 | V203: 0.02 | W203: 0.02 | X203: 0.02 | Y203: 0.02 | Z203: 0.02 | AA203: 0.02 | AB203: 0.02 | AC203: 0.02 | AD203: 0.02 | AE203: 0.02 | AF203: 0.02 | AG203: 0.02 | AH203: 0.02 | AI203: 0.02 | AJ203: 0.3 | AK203: 0.3 | AL203: 0.3 | AM203: 0.3 | AN203: 0.3 | AO203: 0.3 | AP203: 0.3 | AQ203: 0.3 | AR203: 0.3 | AS203: 0.3 | AT203: 0.3 | AU203: 0.2 | AV203: 0.2 | AW203: 0.2 | AX203: 0.2 | AY203: 0.2 | AZ203: 0.2 | BA203: 0.2 | BB203: 0.2 | BC203: 0.2 | BD203: 0.2 | BE203: 0.2 | BF203: 0.2 | BG203: 0 | BH203: 0 | BI203: 0 | BJ203: 0 | BK203: 0 | BL203: 0 | BM203: 0
B204: 0 | C204: 0 | D204: 0 | E204: 0 | F204: 0 | G204: 0 | H204: 0 | I204: 0 | J204: 0 | K204: 0.01 | L204: 0.01 | M204: 0.01 | N204: 0.01 | O204: 0.01 | P204: 0.01 | Q204: 0.01 | R204: 0.01 | S204: 0.01 | T204: 0.01 | U204: 0.01 | V204: 0.02 | W204: 0.02 | X204: 0.02 | Y204: 0.02 | Z204: 0.02 | AA204: 0.02 | AB204: 0.02 | AC204: 0.02 | AD204: 0.02 | AE204: 0.02 | AF204: 0.02 | AG204: 0.02 | AH204: 0.02 | AI204: 0.05 | AJ204: 0.05 | AK204: 0.05 | AL204: 0.05 | AM204: 0.05 | AN204: 0.05 | AO204: 0.05 | AP204: 0.05 | AQ204: 0.05 | AR204: 0.05 | AS204: 0.05 | AT204: 0.05 | AU204: 0.1 | AV204: 0.1 | AW204: 0.1 | AX204: 0.1 | AY204: 0.1 | AZ204: 0.1 | BA204: 0.1 | BB204: 0.1 | BC204: 0.1 | BD204: 0.1 | BE204: 0.1 | BF204: 0.1 | BG204: 0.2 | BH204: 0.2 | BI204: 0.2 | BJ204: 0.2 | BK204: 0.2 | BL204: 0.2 | BM204: 0.2
B205: 0.4 | C205: 0.4 | D205: 0.4 | E205: 0.4 | F205: 0.4 | G205: 0.4 | H205: 0.4 | I205: 0.4 | J205: 0.4 | K205: 0.3 | L205: 0.3 | M205: 0.3 | N205: 0.3 | O205: 0.3 | P205: 0.3 | Q205: 0.3 | R205: 0.3 | S205: 0.3 | T205: 0.3 | U205: 0.3 | V205: 0.2 | W205: 0.2 | X205: 0.2 | Y205: 0.2 | Z205: 0.2 | AA205: 0.2 | AB205: 0.2 | AC205: 0.2 | AD205: 0.2 | AE205: 0.2 | AF205: 0.2 | AG205: 0.2 | AH205: 0.2 | AI205: 0.1 | AJ205: 0.1 | AK205: 0.1 | AL205: 0.1 | AM205: 0.1 | AN205: 0.1 | AO205: 0.1 | AP205: 0.1 | AQ205: 0.1 | AR205: 0.1 | AS205: 0.1 | AT205: 0.1 | AU205: 0 | AV205: 0 | AW205: 0 | AX205: 0 | AY205: 0 | AZ205: 0 | BA205: 0 | BB205: 0 | BC205: 0 | BD205: 0 | BE205: 0 | BF205: 0 | BG205: 0 | BH205: 0 | BI205: 0 | BJ205: 0 | BK205: 0 | BL205: 0 | BM205: 0
B206: 0.6 | C206: 0.6 | D206: 0.6 | E206: 0.6 | F206: 0.6 | G206: 0.6 | H206: 0.6 | I206: 0.6 | J206: 0.6 | K206: 0.69 | L206: 0.69 | M206: 0.69 | N206: 0.69 | O206: 0.69 | P206: 0.69 | Q206: 0.69 | R206: 0.69 | S206: 0.69 | T206: 0.69 | U206: 0.69 | V206: 0.76 | W206: 0.76 | X206: 0.76 | Y206: 0.76 | Z206: 0.76 | AA206: 0.76 | AB206: 0.76 | AC206: 0.76 | AD206: 0.76 | AE206: 0.76 | AF206: 0.76 | AG206: 0.76 | AH206: 0.76 | AI206: 0.55 | AJ206: 0.55 | AK206: 0.55 | AL206: 0.55 | AM206: 0.55 | AN206: 0.55 | AO206: 0.55 | AP206: 0.55 | AQ206: 0.55 | AR206: 0.55 | AS206: 0.55 | AT206: 0.55 | AU206: 0.7 | AV206: 0.7 | AW206: 0.7 | AX206: 0.7 | AY206: 0.7 | AZ206: 0.7 | BA206: 0.7 | BB206: 0.7 | BC206: 0.7 | BD206: 0.7 | BE206: 0.7 | BF206: 0.7 | BG206: 0.8 | BH206: 0.8 | BI206: 0.8 | BJ206: 0.8 | BK206: 0.8 | BL206: 0.8 | BM206: 0.8
... 149 more rows
